Publisher Label,Publisher URI,"Directorate code","Directorate","Service code","Service","Revenue or capital code","Revenue capital","Cost centre","Cost centre description","Bvsub Category","Bvsub description","Bvsum code","Bvsum description","Account code","Account description","Transaction No","Period","Transaction Date","Amount","Classification code","Classification description","Supplier ID","Supplier description","Company registration number","Company registration number Uri","VAT registration number"
"London Borough of Redbridge","http://opendatacommunities.org/doc/london-borough-council/redbridge","3BLEACENTFND","LEA Centrally Held School Funds","3CNONSCH","Non Schools","REV","Revenue","R3256","ISS Free School Meals Contract","04-SUPPLIES","Supplies And Services","04A","Equipment, furniture and materials","5502","Equipment Purchase","60170450","201212",06/03/2012 00:00:00,-20920.41,"16270","Catering Schools","REDACTED DATA","ISS CATERHOUSE- DIV OF ISS MEDICLEAN LTD(INVOICES)","1659837","http://opencorporates.com/companies/gb/1659837","417115775"
"London Borough of Redbridge","http://opendatacommunities.org/doc/london-borough-council/redbridge","6BADULTSOCIA","Adult Social Care","6CADLEARNDIS","Adults Under 65 with Learning Disabilities","REV","Revenue","R4185","LD - Supported Living","06-TRANSFER","Transfer Payments","06B","Social Services Clients","7066","Supportive Lodgings (Transfer Payments)","90315475","201301",30/03/2012 00:00:00,-717.76,"1266","Accommodation Agencies - Residential","REDACTED DATA","SPENCER & ARLINGTON LTD","4377774","http://opencorporates.com/companies/gb/4377774",""
"London Borough of Redbridge","http://opendatacommunities.org/doc/london-borough-council/redbridge","6BADULTSOCIA","Adult Social Care","6CADLEARNDIS","Adults Under 65 with Learning Disabilities","REV","Revenue","R4185","LD - Supported Living","06-TRANSFER","Transfer Payments","06B","Social Services Clients","7066","Supportive Lodgings (Transfer Payments)","90315475","201301",30/03/2012 00:00:00,-18087.48,"1266","Accommodation Agencies - Residential","REDACTED DATA","SPENCER & ARLINGTON LTD","4377774","http://opencorporates.com/companies/gb/4377774",""
"London Borough of Redbridge","http://opendatacommunities.org/doc/london-borough-council/redbridge","6BADULTSOCIA","Adult Social Care","6CADLEARNDIS","Adults Under 65 with Learning Disabilities","REV","Revenue","R4185","LD - Supported Living","06-TRANSFER","Transfer Payments","06B","Social Services Clients","7066","Supportive Lodgings (Transfer Payments)","90315475","201301",30/03/2012 00:00:00,-5239.63,"1266","Accommodation Agencies - Residential","REDACTED DATA","SPENCER & ARLINGTON LTD","4377774","http://opencorporates.com/companies/gb/4377774",""
"London Borough of Redbridge","http://opendatacommunities.org/doc/london-borough-council/redbridge","6BADULTSOCIA","Adult Social Care","6CADLEARNDIS","Adults Under 65 with Learning Disabilities","REV","Revenue","R4185","LD - Supported Living","06-TRANSFER","Transfer Payments","06B","Social Services Clients","7066","Supportive Lodgings (Transfer Payments)","90315475","201301",30/03/2012 00:00:00,4464.75,"1266","Accommodation Agencies - Residential","REDACTED DATA","SPENCER & ARLINGTON LTD","4377774","http://opencorporates.com/companies/gb/4377774",""
"London Borough of Redbridge","http://opendatacommunities.org/doc/london-borough-council/redbridge","6BADULTSOCIA","Adult Social Care","6CADLEARNDIS","Adults Under 65 with Learning Disabilities","REV","Revenue","R4185","LD - Supported Living","09-INCOME","Income","09C","Customer & Client Receipts","8553","Care Package Charges","90315475","201301",30/03/2012 00:00:00,-37.82,"1266","Accommodation Agencies - Residential","REDACTED DATA","SPENCER & ARLINGTON LTD","4377774","http://opencorporates.com/companies/gb/4377774",""
"London Borough of Redbridge","http://opendatacommunities.org/doc/london-borough-council/redbridge","7BCDC","Corporate & Democratic Core","7CCORPMGT","Corporate Management","REV","Revenue","R9812","Redbridge I","04-SUPPLIES","Supplies And Services","04D","Printing, stationery and general office expenses","5708","Advertising Publicity and Promotions","60173347","201301",20/03/2012 00:00:00,-12441,"93806","Sign & Poster Writers","REDACTED DATA","ACTIVE SIGNS & DESIGNS- DIV OF NATIONAL SIGNS LTD","4716586","http://opencorporates.com/companies/gb/4716586","814335939"
"London Borough of Redbridge","http://opendatacommunities.org/doc/london-borough-council/redbridge","6BADULTSOCIA","Adult Social Care","6CADMENHLTH","Adults Under 65 with Mental Health Needs","REV","Revenue","R4213","MH Direct Payments","06-TRANSFER","Transfer Payments","06B","Social Services Clients","7053","Direct Payments","3225770","201301",10/04/2012 00:00:00,-141.25,"56800","Payroll Services","REDACTED DATA","HUMAN MANAGEMENT ASSISTANCE-CLIENT ACCOUNT","4752026","http://opencorporates.com/companies/gb/4752026","815230071"
"London Borough of Redbridge","http://opendatacommunities.org/doc/london-borough-council/redbridge","6BADULTSOCIA","Adult Social Care","6CADMENHLTH","Adults Under 65 with Mental Health Needs","REV","Revenue","R4213","MH Direct Payments","06-TRANSFER","Transfer Payments","06B","Social Services Clients","7053","Direct Payments","3225770","201301",10/04/2012 00:00:00,-10593.75,"56800","Payroll Services","REDACTED DATA","HUMAN MANAGEMENT ASSISTANCE-CLIENT ACCOUNT","4752026","http://opencorporates.com/companies/gb/4752026","815230071"
"London Borough of Redbridge","http://opendatacommunities.org/doc/london-borough-council/redbridge","6BADULTSOCIA","Adult Social Care","6CADMENHLTH","Adults Under 65 with Mental Health Needs","REV","Revenue","R4213","MH Direct Payments","09-INCOME","Income","09C","Customer & Client Receipts","8545","Direct Payments Income","3225770","201301",10/04/2012 00:00:00,24.88,"56800","Payroll Services","REDACTED DATA","HUMAN MANAGEMENT ASSISTANCE-CLIENT ACCOUNT","4752026","http://opencorporates.com/companies/gb/4752026","815230071"
"London Borough of Redbridge","http://opendatacommunities.org/doc/london-borough-council/redbridge","6BADULTSOCIA","Adult Social Care","6CADMENHLTH","Adults Under 65 with Mental Health Needs","REV","Revenue","R4213","MH Direct Payments","09-INCOME","Income","09C","Customer & Client Receipts","8545","Direct Payments Income","3225770","201301",10/04/2012 00:00:00,90.28,"56800","Payroll Services","REDACTED DATA","HUMAN MANAGEMENT ASSISTANCE-CLIENT ACCOUNT","4752026","http://opencorporates.com/companies/gb/4752026","815230071"
"London Borough of Redbridge","http://opendatacommunities.org/doc/london-borough-council/redbridge","6BADULTSOCIA","Adult Social Care","6CADMENHLTH","Adults Under 65 with Mental Health Needs","REV","Revenue","R4213","MH Direct Payments","09-INCOME","Income","09C","Customer & Client Receipts","8545","Direct Payments Income","3225770","201301",10/04/2012 00:00:00,920.56,"56800","Payroll Services","REDACTED DATA","HUMAN MANAGEMENT ASSISTANCE-CLIENT ACCOUNT","4752026","http://opencorporates.com/companies/gb/4752026","815230071"
"London Borough of Redbridge","http://opendatacommunities.org/doc/london-borough-council/redbridge","6BADULTSOCIA","Adult Social Care","6CADLEARNDIS","Adults Under 65 with Learning Disabilities","REV","Revenue","R4215","LD Direct Payments","06-TRANSFER","Transfer Payments","06B","Social Services Clients","7053","Direct Payments","3225956","201301",10/04/2012 00:00:00,-226,"56800","Payroll Services","REDACTED DATA","HUMAN MANAGEMENT ASSISTANCE-CLIENT ACCOUNT","4752026","http://opencorporates.com/companies/gb/4752026","815230071"
"London Borough of Redbridge","http://opendatacommunities.org/doc/london-borough-council/redbridge","6BADULTSOCIA","Adult Social Care","6CADLEARNDIS","Adults Under 65 with Learning Disabilities","REV","Revenue","R4215","LD Direct Payments","06-TRANSFER","Transfer Payments","06B","Social Services Clients","7053","Direct Payments","3225956","201301",10/04/2012 00:00:00,1160,"56800","Payroll Services","REDACTED DATA","HUMAN MANAGEMENT ASSISTANCE-CLIENT ACCOUNT","4752026","http://opencorporates.com/companies/gb/4752026","815230071"
"London Borough of Redbridge","http://opendatacommunities.org/doc/london-borough-council/redbridge","6BADULTSOCIA","Adult Social Care","6CADLEARNDIS","Adults Under 65 with Learning Disabilities","REV","Revenue","R4215","LD Direct Payments","06-TRANSFER","Transfer Payments","06B","Social Services Clients","7053","Direct Payments","3225956","201301",10/04/2012 00:00:00,-10000,"56800","Payroll Services","REDACTED DATA","HUMAN MANAGEMENT ASSISTANCE-CLIENT ACCOUNT","4752026","http://opencorporates.com/companies/gb/4752026","815230071"
"London Borough of Redbridge","http://opendatacommunities.org/doc/london-borough-council/redbridge","3BNONSCHFUND","Non-School Funding","3CNONSCH","Non Schools","REV","Revenue","R2055","Under 8 Service DSG","05-THIRD","Third Party Payments","05H","Private contractors","6908","Private Nurseries & Childminders","60171123","201212",08/03/2012 00:00:00,-8750,"42200","Health Authorities","REDACTED DATA","REDBRIDGE PRIMARY CARE TRUST","",,"654405248"
"London Borough of Redbridge","http://opendatacommunities.org/doc/london-borough-council/redbridge","6BADULTSOCIA","Adult Social Care","6CSUPPSERMGT","Support Service & Management Costs","REV","Revenue","R4433","Care First Team","04-SUPPLIES","Supplies And Services","04F","Communications and computing","5852","Computer Equipment - Repairs & Maintenance","60169861","201212",29/02/2012 00:00:00,-7140,"20703","Computer Systems and Software","REDACTED DATA","OLM SYSTEMS LTD","2615716","http://opencorporates.com/companies/gb/2615716","577661495"
"London Borough of Redbridge","http://opendatacommunities.org/doc/london-borough-council/redbridge","6BADULTSOCIA","Adult Social Care","6CADPHYSDIS","Adults Under 65 with Phys Disab or Sensory Impair","REV","Revenue","R4214","PD Direct Payments","06-TRANSFER","Transfer Payments","06B","Social Services Clients","7053","Direct Payments","3226018","201301",10/04/2012 00:00:00,-7789.13,"56800","Payroll Services","REDACTED DATA","HUMAN MANAGEMENT ASSISTANCE-CLIENT ACCOUNT","4752026","http://opencorporates.com/companies/gb/4752026","815230071"
"London Borough of Redbridge","http://opendatacommunities.org/doc/london-borough-council/redbridge","6BADULTSOCIA","Adult Social Care","6CADPHYSDIS","Adults Under 65 with Phys Disab or Sensory Impair","REV","Revenue","R4214","PD Direct Payments","06-TRANSFER","Transfer Payments","06B","Social Services Clients","7053","Direct Payments","3225805","201301",10/04/2012 00:00:00,-7170.12,"56800","Payroll Services","REDACTED DATA","HUMAN MANAGEMENT ASSISTANCE-CLIENT ACCOUNT","4752026","http://opencorporates.com/companies/gb/4752026","815230071"
"London Borough of Redbridge","http://opendatacommunities.org/doc/london-borough-council/redbridge","6BADULTSOCIA","Adult Social Care","6CADPHYSDIS","Adults Under 65 with Phys Disab or Sensory Impair","REV","Revenue","R4214","PD Direct Payments","06-TRANSFER","Transfer Payments","06B","Social Services Clients","7053","Direct Payments","3225805","201301",10/04/2012 00:00:00,90.81,"56800","Payroll Services","REDACTED DATA","HUMAN MANAGEMENT ASSISTANCE-CLIENT ACCOUNT","4752026","http://opencorporates.com/companies/gb/4752026","815230071"
"London Borough of Redbridge","http://opendatacommunities.org/doc/london-borough-council/redbridge","6BADULTSOCIA","Adult Social Care","6CADPHYSDIS","Adults Under 65 with Phys Disab or Sensory Impair","REV","Revenue","R4214","PD Direct Payments","06-TRANSFER","Transfer Payments","06B","Social Services Clients","7053","Direct Payments","3225805","201301",10/04/2012 00:00:00,652.5,"56800","Payroll Services","REDACTED DATA","HUMAN MANAGEMENT ASSISTANCE-CLIENT ACCOUNT","4752026","http://opencorporates.com/companies/gb/4752026","815230071"
"London Borough of Redbridge","http://opendatacommunities.org/doc/london-borough-council/redbridge","6BADULTSOCIA","Adult Social Care","6CADLEARNDIS","Adults Under 65 with Learning Disabilities","REV","Revenue","R4215","LD Direct Payments","06-TRANSFER","Transfer Payments","06B","Social Services Clients","7053","Direct Payments","3225944","201301",10/04/2012 00:00:00,-6000,"56800","Payroll Services","REDACTED DATA","HUMAN MANAGEMENT ASSISTANCE-CLIENT ACCOUNT","4752026","http://opencorporates.com/companies/gb/4752026","815230071"
"London Borough of Redbridge","http://opendatacommunities.org/doc/london-borough-council/redbridge","6BADULTSOCIA","Adult Social Care","6CADLEARNDIS","Adults Under 65 with Learning Disabilities","REV","Revenue","R4215","LD Direct Payments","06-TRANSFER","Transfer Payments","06B","Social Services Clients","7053","Direct Payments","3225944","201301",10/04/2012 00:00:00,-226,"56800","Payroll Services","REDACTED DATA","HUMAN MANAGEMENT ASSISTANCE-CLIENT ACCOUNT","4752026","http://opencorporates.com/companies/gb/4752026","815230071"
"London Borough of Redbridge","http://opendatacommunities.org/doc/london-borough-council/redbridge","6BADULTSOCIA","Adult Social Care","6CADLEARNDIS","Adults Under 65 with Learning Disabilities","REV","Revenue","R4215","LD Direct Payments","06-TRANSFER","Transfer Payments","06B","Social Services Clients","7053","Direct Payments","3225944","201301",10/04/2012 00:00:00,1160,"56800","Payroll Services","REDACTED DATA","HUMAN MANAGEMENT ASSISTANCE-CLIENT ACCOUNT","4752026","http://opencorporates.com/companies/gb/4752026","815230071"
"London Borough of Redbridge","http://opendatacommunities.org/doc/london-borough-council/redbridge","6BADULTSOCIA","Adult Social Care","6CADLEARNDIS","Adults Under 65 with Learning Disabilities","REV","Revenue","R4215","LD Direct Payments","06-TRANSFER","Transfer Payments","06B","Social Services Clients","7053","Direct Payments","3226048","201301",10/04/2012 00:00:00,-33.9,"56800","Payroll Services","REDACTED DATA","HUMAN MANAGEMENT ASSISTANCE-CLIENT ACCOUNT","4752026","http://opencorporates.com/companies/gb/4752026","815230071"
"London Borough of Redbridge","http://opendatacommunities.org/doc/london-borough-council/redbridge","6BADULTSOCIA","Adult Social Care","6CADLEARNDIS","Adults Under 65 with Learning Disabilities","REV","Revenue","R4215","LD Direct Payments","06-TRANSFER","Transfer Payments","06B","Social Services Clients","7053","Direct Payments","3226048","201301",10/04/2012 00:00:00,174,"56800","Payroll Services","REDACTED DATA","HUMAN MANAGEMENT ASSISTANCE-CLIENT ACCOUNT","4752026","http://opencorporates.com/companies/gb/4752026","815230071"
"London Borough of Redbridge","http://opendatacommunities.org/doc/london-borough-council/redbridge","6BADULTSOCIA","Adult Social Care","6CADLEARNDIS","Adults Under 65 with Learning Disabilities","REV","Revenue","R4215","LD Direct Payments","06-TRANSFER","Transfer Payments","06B","Social Services Clients","7053","Direct Payments","3226048","201301",10/04/2012 00:00:00,-5000,"56800","Payroll Services","REDACTED DATA","HUMAN MANAGEMENT ASSISTANCE-CLIENT ACCOUNT","4752026","http://opencorporates.com/companies/gb/4752026","815230071"
"London Borough of Redbridge","http://opendatacommunities.org/doc/london-borough-council/redbridge","6BADULTSOCIA","Adult Social Care","6CADPHYSDIS","Adults Under 65 with Phys Disab or Sensory Impair","REV","Revenue","R4206","PCT Physical Disability and Sensory Home  Care","05-THIRD","Third Party Payments","05A","Independent units within the council","6502","Agency Homecare (Payments To Independent Units)","90317563","201301",20/04/2012 00:00:00,-3131.01,"43419","Home Care Services","REDACTED DATA","FASTFLOW DE VERE CARE","",,""
"London Borough of Redbridge","http://opendatacommunities.org/doc/london-borough-council/redbridge","6BADULTSOCIA","Adult Social Care","6CADPHYSDIS","Adults Under 65 with Phys Disab or Sensory Impair","REV","Revenue","R4206","PCT Physical Disability and Sensory Home  Care","05-THIRD","Third Party Payments","05A","Independent units within the council","6502","Agency Homecare (Payments To Independent Units)","90317611","201301",23/04/2012 00:00:00,-3087.11,"43419","Home Care Services","REDACTED DATA","FASTFLOW DE VERE CARE","",,""
"London Borough of Redbridge","http://opendatacommunities.org/doc/london-borough-council/redbridge","6BADULTSOCIA","Adult Social Care","6COLDINCMENT","Older People (65 or over) incl. Older Mentally Ill","REV","Revenue","R4211","Older People Direct Payments","06-TRANSFER","Transfer Payments","06B","Social Services Clients","7053","Direct Payments","3225992","201301",10/04/2012 00:00:00,-3254.4,"56800","Payroll Services","REDACTED DATA","HUMAN MANAGEMENT ASSISTANCE-CLIENT ACCOUNT","4752026","http://opencorporates.com/companies/gb/4752026","815230071"
"London Borough of Redbridge","http://opendatacommunities.org/doc/london-borough-council/redbridge","6BADULTSOCIA","Adult Social Care","6COLDINCMENT","Older People (65 or over) incl. Older Mentally Ill","REV","Revenue","R4211","Older People Direct Payments","09-INCOME","Income","09C","Customer & Client Receipts","8545","Direct Payments Income","3225992","201301",10/04/2012 00:00:00,176.5,"56800","Payroll Services","REDACTED DATA","HUMAN MANAGEMENT ASSISTANCE-CLIENT ACCOUNT","4752026","http://opencorporates.com/companies/gb/4752026","815230071"
"London Borough of Redbridge","http://opendatacommunities.org/doc/london-borough-council/redbridge","6BADULTSOCIA","Adult Social Care","6CADPHYSDIS","Adults Under 65 with Phys Disab or Sensory Impair","REV","Revenue","R4206","PCT Physical Disability and Sensory Home  Care","05-THIRD","Third Party Payments","05A","Independent units within the council","6502","Agency Homecare (Payments To Independent Units)","90310360","201212",22/03/2012 00:00:00,-2992.43,"43419","Home Care Services","REDACTED DATA","FASTFLOW DE VERE CARE","",,""
"London Borough of Redbridge","http://opendatacommunities.org/doc/london-borough-council/redbridge","6BADULTSOCIA","Adult Social Care","6CADLEARNDIS","Adults Under 65 with Learning Disabilities","REV","Revenue","R4022","Carers LD Direct Payments","06-TRANSFER","Transfer Payments","06B","Social Services Clients","7053","Direct Payments","3226224","201301",10/04/2012 00:00:00,-9.69,"56800","Payroll Services","REDACTED DATA","HUMAN MANAGEMENT ASSISTANCE-CLIENT ACCOUNT","4752026","http://opencorporates.com/companies/gb/4752026","815230071"
"London Borough of Redbridge","http://opendatacommunities.org/doc/london-borough-council/redbridge","6BADULTSOCIA","Adult Social Care","6CADLEARNDIS","Adults Under 65 with Learning Disabilities","REV","Revenue","R4022","Carers LD Direct Payments","06-TRANSFER","Transfer Payments","06B","Social Services Clients","7053","Direct Payments","3226224","201301",10/04/2012 00:00:00,-2799.17,"56800","Payroll Services","REDACTED DATA","HUMAN MANAGEMENT ASSISTANCE-CLIENT ACCOUNT","4752026","http://opencorporates.com/companies/gb/4752026","815230071"
"London Borough of Redbridge","http://opendatacommunities.org/doc/london-borough-council/redbridge","6BADULTSOCIA","Adult Social Care","6CADMENHLTH","Adults Under 65 with Mental Health Needs","REV","Revenue","R4213","MH Direct Payments","06-TRANSFER","Transfer Payments","06B","Social Services Clients","7053","Direct Payments","3225951","201301",10/04/2012 00:00:00,-2318.17,"56800","Payroll Services","REDACTED DATA","HUMAN MANAGEMENT ASSISTANCE-CLIENT ACCOUNT","4752026","http://opencorporates.com/companies/gb/4752026","815230071"
"London Borough of Redbridge","http://opendatacommunities.org/doc/london-borough-council/redbridge","6BADULTSOCIA","Adult Social Care","6CADMENHLTH","Adults Under 65 with Mental Health Needs","REV","Revenue","R4213","MH Direct Payments","09-INCOME","Income","09C","Customer & Client Receipts","8545","Direct Payments Income","3225951","201301",10/04/2012 00:00:00,15.02,"56800","Payroll Services","REDACTED DATA","HUMAN MANAGEMENT ASSISTANCE-CLIENT ACCOUNT","4752026","http://opencorporates.com/companies/gb/4752026","815230071"
"London Borough of Redbridge","http://opendatacommunities.org/doc/london-borough-council/redbridge","6BADULTSOCIA","Adult Social Care","6CADMENHLTH","Adults Under 65 with Mental Health Needs","REV","Revenue","R4213","MH Direct Payments","09-INCOME","Income","09C","Customer & Client Receipts","8545","Direct Payments Income","3225951","201301",10/04/2012 00:00:00,284.76,"56800","Payroll Services","REDACTED DATA","HUMAN MANAGEMENT ASSISTANCE-CLIENT ACCOUNT","4752026","http://opencorporates.com/companies/gb/4752026","815230071"
"London Borough of Redbridge","http://opendatacommunities.org/doc/london-borough-council/redbridge","6BADULTSOCIA","Adult Social Care","6COLDINCMENT","Older People (65 or over) incl. Older Mentally Ill","REV","Revenue","R4378","OP Residential","05-THIRD","Third Party Payments","05F","Voluntary associations","6802","Residential Homes","90319844","201301",28/03/2012 00:00:00,-2104.68,"64710","Residential Care Homes","REDACTED DATA","ABBEY CARE COMPLEX LTD","4832515","http://opencorporates.com/companies/gb/4832515",""
"London Borough of Redbridge","http://opendatacommunities.org/doc/london-borough-council/redbridge","6BADULTSOCIA","Adult Social Care","6COLDINCMENT","Older People (65 or over) incl. Older Mentally Ill","REV","Revenue","R4378","OP Residential","05-THIRD","Third Party Payments","05F","Voluntary associations","6802","Residential Homes","90319844","201301",28/03/2012 00:00:00,337.14,"64710","Residential Care Homes","REDACTED DATA","ABBEY CARE COMPLEX LTD","4832515","http://opencorporates.com/companies/gb/4832515",""
"London Borough of Redbridge","http://opendatacommunities.org/doc/london-borough-council/redbridge","6BADULTSOCIA","Adult Social Care","6COLDINCMENT","Older People (65 or over) incl. Older Mentally Ill","REV","Revenue","R4385","OP Nursing","05-THIRD","Third Party Payments","05H","Private contractors","6909","Nursing Homes","90306182","201212",29/02/2012 00:00:00,-1906.16,"53350","Nursing Homes","REDACTED DATA","BUPA CARE HOMES(SEABROOKE MANOR)","",,"239731641"
"London Borough of Redbridge","http://opendatacommunities.org/doc/london-borough-council/redbridge","6BSOCIALSERV","Social Services","6CASYLUMSEEK","Asylum Seekers","REV","Revenue","R2128","CLAFH - Leaving Care Asylum Seekers","06-TRANSFER","Transfer Payments","06B","Social Services Clients","7051","Asylum Seekers","70039676","201301",02/04/2012 00:00:00,-1328.57,"47846","Letting Agents","REDACTED DATA","XCHANGE PROPERTY SERVICES LTD","4331388","http://opencorporates.com/companies/gb/4331388",""
"London Borough of Redbridge","http://opendatacommunities.org/doc/london-borough-council/redbridge","6BADULTSOCIA","Adult Social Care","6COTHADSERV","Other Adult Services","REV","Revenue","R4390","PCT HIV Home Care","05-THIRD","Third Party Payments","05A","Independent units within the council","6502","Agency Homecare (Payments To Independent Units)","90317577","201301",20/04/2012 00:00:00,-1564.86,"43419","Home Care Services","REDACTED DATA","FASTFLOW DE VERE CARE","",,""
"London Borough of Redbridge","http://opendatacommunities.org/doc/london-borough-council/redbridge","6BADULTSOCIA","Adult Social Care","6COTHADSERV","Other Adult Services","REV","Revenue","R4390","PCT HIV Home Care","05-THIRD","Third Party Payments","05A","Independent units within the council","6502","Agency Homecare (Payments To Independent Units)","90310504","201212",26/03/2012 00:00:00,-1562.15,"43419","Home Care Services","REDACTED DATA","FASTFLOW DE VERE CARE","",,""
"London Borough of Redbridge","http://opendatacommunities.org/doc/london-borough-council/redbridge","6BADULTSOCIA","Adult Social Care","6COTHADSERV","Other Adult Services","REV","Revenue","R4390","PCT HIV Home Care","05-THIRD","Third Party Payments","05A","Independent units within the council","6502","Agency Homecare (Payments To Independent Units)","90307364","201212",07/03/2012 00:00:00,-1556.48,"43419","Home Care Services","REDACTED DATA","FASTFLOW DE VERE CARE","",,""
"London Borough of Redbridge","http://opendatacommunities.org/doc/london-borough-council/redbridge","6BADULTSOCIA","Adult Social Care","6COTHADSERV","Other Adult Services","REV","Revenue","R4390","PCT HIV Home Care","05-THIRD","Third Party Payments","05A","Independent units within the council","6502","Agency Homecare (Payments To Independent Units)","90313719","201301",09/04/2012 00:00:00,-1545.77,"43419","Home Care Services","REDACTED DATA","FASTFLOW DE VERE CARE","",,""
"London Borough of Redbridge","http://opendatacommunities.org/doc/london-borough-council/redbridge","6BADULTSOCIA","Adult Social Care","6COTHADSERV","Other Adult Services","REV","Revenue","R4390","PCT HIV Home Care","05-THIRD","Third Party Payments","05A","Independent units within the council","6502","Agency Homecare (Payments To Independent Units)","90313620","201301",04/04/2012 00:00:00,-1541.77,"43419","Home Care Services","REDACTED DATA","FASTFLOW DE VERE CARE","",,""
"London Borough of Redbridge","http://opendatacommunities.org/doc/london-borough-council/redbridge","6BADULTSOCIA","Adult Social Care","6COTHADSERV","Other Adult Services","REV","Revenue","R4390","PCT HIV Home Care","05-THIRD","Third Party Payments","05A","Independent units within the council","6502","Agency Homecare (Payments To Independent Units)","90310267","201212",12/03/2012 00:00:00,-1540.04,"43419","Home Care Services","REDACTED DATA","FASTFLOW DE VERE CARE","",,""
"London Borough of Redbridge","http://opendatacommunities.org/doc/london-borough-council/redbridge","6BADULTSOCIA","Adult Social Care","6COTHADSERV","Other Adult Services","REV","Revenue","R4390","PCT HIV Home Care","05-THIRD","Third Party Payments","05A","Independent units within the council","6502","Agency Homecare (Payments To Independent Units)","90310371","201212",22/03/2012 00:00:00,-1539.44,"43419","Home Care Services","REDACTED DATA","FASTFLOW DE VERE CARE","",,""
"London Borough of Redbridge","http://opendatacommunities.org/doc/london-borough-council/redbridge","6BADULTSOCIA","Adult Social Care","6COTHADSERV","Other Adult Services","REV","Revenue","R4390","PCT HIV Home Care","05-THIRD","Third Party Payments","05A","Independent units within the council","6502","Agency Homecare (Payments To Independent Units)","90313543","201301",26/03/2012 00:00:00,-1535.18,"43419","Home Care Services","REDACTED DATA","FASTFLOW DE VERE CARE","",,""
"London Borough of Redbridge","http://opendatacommunities.org/doc/london-borough-council/redbridge","6BADULTSOCIA","Adult Social Care","6COLDINCMENT","Older People (65 or over) incl. Older Mentally Ill","REV","Revenue","R4378","OP Residential","05-THIRD","Third Party Payments","05F","Voluntary associations","6802","Residential Homes","90315880","201301",28/03/2012 00:00:00,-1745.1,"53350","Nursing Homes","REDACTED DATA","JEWISH CARE (MERIT  HOUSE)","2447900","http://opencorporates.com/companies/gb/2447900","587033133"
"London Borough of Redbridge","http://opendatacommunities.org/doc/london-borough-council/redbridge","6BADULTSOCIA","Adult Social Care","6COLDINCMENT","Older People (65 or over) incl. Older Mentally Ill","REV","Revenue","R4378","OP Residential","05-THIRD","Third Party Payments","05F","Voluntary associations","6802","Residential Homes","90315880","201301",28/03/2012 00:00:00,315.16,"53350","Nursing Homes","REDACTED DATA","JEWISH CARE (MERIT  HOUSE)","2447900","http://opencorporates.com/companies/gb/2447900","587033133"
"London Borough of Redbridge","http://opendatacommunities.org/doc/london-borough-council/redbridge","6BADULTSOCIA","Adult Social Care","6COLDINCMENT","Older People (65 or over) incl. Older Mentally Ill","REV","Revenue","R4020","Carers Older People Direct Payments","06-TRANSFER","Transfer Payments","06B","Social Services Clients","7053","Direct Payments","3222796","201212",12/03/2012 00:00:00,-1423.8,"56800","Payroll Services","REDACTED DATA","HUMAN MANAGEMENT ASSISTANCE-CLIENT ACCOUNT","4752026","http://opencorporates.com/companies/gb/4752026","815230071"
"London Borough of Redbridge","http://opendatacommunities.org/doc/london-borough-council/redbridge","6BADULTSOCIA","Adult Social Care","6COLDINCMENT","Older People (65 or over) incl. Older Mentally Ill","REV","Revenue","R4385","OP Nursing","05-THIRD","Third Party Payments","05H","Private contractors","6909","Nursing Homes","90315829","201301",28/03/2012 00:00:00,-1626.17,"53350","Nursing Homes","REDACTED DATA","BUPA CARE HOMES(GABLE COURT)","",,"239731641"
"London Borough of Redbridge","http://opendatacommunities.org/doc/london-borough-council/redbridge","6BADULTSOCIA","Adult Social Care","6COLDINCMENT","Older People (65 or over) incl. Older Mentally Ill","REV","Revenue","R4385","OP Nursing","05-THIRD","Third Party Payments","05H","Private contractors","6909","Nursing Homes","90315829","201301",28/03/2012 00:00:00,282.39,"53350","Nursing Homes","REDACTED DATA","BUPA CARE HOMES(GABLE COURT)","",,"239731641"
"London Borough of Redbridge","http://opendatacommunities.org/doc/london-borough-council/redbridge","6BADULTSOCIA","Adult Social Care","6CADMENHLTH","Adults Under 65 with Mental Health Needs","REV","Revenue","R4213","MH Direct Payments","06-TRANSFER","Transfer Payments","06B","Social Services Clients","7053","Direct Payments","3222888","201212",12/03/2012 00:00:00,-2915.4,"56800","Payroll Services","REDACTED DATA","HUMAN MANAGEMENT ASSISTANCE-CLIENT ACCOUNT","4752026","http://opencorporates.com/companies/gb/4752026","815230071"
"London Borough of Redbridge","http://opendatacommunities.org/doc/london-borough-council/redbridge","6BADULTSOCIA","Adult Social Care","6CADMENHLTH","Adults Under 65 with Mental Health Needs","REV","Revenue","R4213","MH Direct Payments","06-TRANSFER","Transfer Payments","06B","Social Services Clients","7053","Direct Payments","3222888","201212",12/03/2012 00:00:00,1593.3,"56800","Payroll Services","REDACTED DATA","HUMAN MANAGEMENT ASSISTANCE-CLIENT ACCOUNT","4752026","http://opencorporates.com/companies/gb/4752026","815230071"
"London Borough of Redbridge","http://opendatacommunities.org/doc/london-borough-council/redbridge","6BADULTSOCIA","Adult Social Care","6COLDINCMENT","Older People (65 or over) incl. Older Mentally Ill","REV","Revenue","R4020","Carers Older People Direct Payments","06-TRANSFER","Transfer Payments","06B","Social Services Clients","7053","Direct Payments","3222761","201212",12/03/2012 00:00:00,-864.34,"56800","Payroll Services","REDACTED DATA","HUMAN MANAGEMENT ASSISTANCE-CLIENT ACCOUNT","4752026","http://opencorporates.com/companies/gb/4752026","815230071"
"London Borough of Redbridge","http://opendatacommunities.org/doc/london-borough-council/redbridge","6BADULTSOCIA","Adult Social Care","6COLDINCMENT","Older People (65 or over) incl. Older Mentally Ill","REV","Revenue","R4020","Carers Older People Direct Payments","06-TRANSFER","Transfer Payments","06B","Social Services Clients","7053","Direct Payments","3222761","201212",12/03/2012 00:00:00,-435.86,"56800","Payroll Services","REDACTED DATA","HUMAN MANAGEMENT ASSISTANCE-CLIENT ACCOUNT","4752026","http://opencorporates.com/companies/gb/4752026","815230071"
"London Borough of Redbridge","http://opendatacommunities.org/doc/london-borough-council/redbridge","6BADULTSOCIA","Adult Social Care","6COLDINCMENT","Older People (65 or over) incl. Older Mentally Ill","REV","Revenue","R4378","OP Residential","05-THIRD","Third Party Payments","05F","Voluntary associations","6802","Residential Homes","90312506","201212",29/02/2012 00:00:00,-1131.27,"53350","Nursing Homes","REDACTED DATA","WOODLANDS NURSING HOME","",,""
"London Borough of Redbridge","http://opendatacommunities.org/doc/london-borough-council/redbridge","6BADULTSOCIA","Adult Social Care","6CADLEARNDIS","Adults Under 65 with Learning Disabilities","REV","Revenue","R4383","LD - External Day Care","05-THIRD","Third Party Payments","05H","Private contractors","6904","Day Centres","90320056","201301",16/04/2012 00:00:00,-1099,"29360","Educational Services","REDACTED DATA","ST MARK�S SOCIAL EDUCATION SERVICES","342972","http://opencorporates.com/companies/gb/342972","761453629"
"London Borough of Redbridge","http://opendatacommunities.org/doc/london-borough-council/redbridge","6BADULTSOCIA","Adult Social Care","6COLDINCMENT","Older People (65 or over) incl. Older Mentally Ill","REV","Revenue","R4378","OP Residential","05-THIRD","Third Party Payments","05F","Voluntary associations","6802","Residential Homes","90319856","201301",28/03/2012 00:00:00,-1742.28,"64710","Residential Care Homes","REDACTED DATA","ABBEY CARE COMPLEX LTD","4832515","http://opencorporates.com/companies/gb/4832515",""
"London Borough of Redbridge","http://opendatacommunities.org/doc/london-borough-council/redbridge","6BADULTSOCIA","Adult Social Care","6COLDINCMENT","Older People (65 or over) incl. Older Mentally Ill","REV","Revenue","R4378","OP Residential","05-THIRD","Third Party Payments","05F","Voluntary associations","6802","Residential Homes","90319856","201301",28/03/2012 00:00:00,305.89,"64710","Residential Care Homes","REDACTED DATA","ABBEY CARE COMPLEX LTD","4832515","http://opencorporates.com/companies/gb/4832515",""
"London Borough of Redbridge","http://opendatacommunities.org/doc/london-borough-council/redbridge","6BADULTSOCIA","Adult Social Care","6COLDINCMENT","Older People (65 or over) incl. Older Mentally Ill","REV","Revenue","R4378","OP Residential","05-THIRD","Third Party Payments","05F","Voluntary associations","6802","Residential Homes","90319856","201301",28/03/2012 00:00:00,305.89,"64710","Residential Care Homes","REDACTED DATA","ABBEY CARE COMPLEX LTD","4832515","http://opencorporates.com/companies/gb/4832515",""
"London Borough of Redbridge","http://opendatacommunities.org/doc/london-borough-council/redbridge","6BADULTSOCIA","Adult Social Care","6COLDINCMENT","Older People (65 or over) incl. Older Mentally Ill","REV","Revenue","R4378","OP Residential","05-THIRD","Third Party Payments","05F","Voluntary associations","6802","Residential Homes","90319856","201301",28/03/2012 00:00:00,183.53,"64710","Residential Care Homes","REDACTED DATA","ABBEY CARE COMPLEX LTD","4832515","http://opencorporates.com/companies/gb/4832515",""
"London Borough of Redbridge","http://opendatacommunities.org/doc/london-borough-council/redbridge","6BADULTSOCIA","Adult Social Care","6COLDINCMENT","Older People (65 or over) incl. Older Mentally Ill","REV","Revenue","R4378","OP Residential","09-INCOME","Income","09C","Customer & Client Receipts","8555","Accommodation Charges","90319856","201301",28/03/2012 00:00:00,-65.58,"64710","Residential Care Homes","REDACTED DATA","ABBEY CARE COMPLEX LTD","4832515","http://opencorporates.com/companies/gb/4832515",""
"London Borough of Redbridge","http://opendatacommunities.org/doc/london-borough-council/redbridge","6BADULTSOCIA","Adult Social Care","6COLDINCMENT","Older People (65 or over) incl. Older Mentally Ill","REV","Revenue","R4378","OP Residential","09-INCOME","Income","09C","Customer & Client Receipts","8555","Accommodation Charges","90319856","201301",28/03/2012 00:00:00,-49.18,"64710","Residential Care Homes","REDACTED DATA","ABBEY CARE COMPLEX LTD","4832515","http://opencorporates.com/companies/gb/4832515",""
"London Borough of Redbridge","http://opendatacommunities.org/doc/london-borough-council/redbridge","6BADULTSOCIA","Adult Social Care","6COLDINCMENT","Older People (65 or over) incl. Older Mentally Ill","REV","Revenue","R4385","OP Nursing","05-THIRD","Third Party Payments","05H","Private contractors","6909","Nursing Homes","90306161","201212",29/02/2012 00:00:00,-1300.94,"53350","Nursing Homes","REDACTED DATA","AVONPARK (RYEDALE) LTD - IN ADMINISTRATION","3724264","http://opencorporates.com/companies/gb/3724264",""
"London Borough of Redbridge","http://opendatacommunities.org/doc/london-borough-council/redbridge","6BADULTSOCIA","Adult Social Care","6COLDINCMENT","Older People (65 or over) incl. Older Mentally Ill","REV","Revenue","R4385","OP Nursing","05-THIRD","Third Party Payments","05H","Private contractors","6909","Nursing Homes","90319935","201301",28/03/2012 00:00:00,-1525.11,"53350","Nursing Homes","REDACTED DATA","JEWISH CARE (MERIT  HOUSE)","2447900","http://opencorporates.com/companies/gb/2447900","587033133"
"London Borough of Redbridge","http://opendatacommunities.org/doc/london-borough-council/redbridge","6BADULTSOCIA","Adult Social Care","6COLDINCMENT","Older People (65 or over) incl. Older Mentally Ill","REV","Revenue","R4385","OP Nursing","05-THIRD","Third Party Payments","05H","Private contractors","6909","Nursing Homes","90319935","201301",28/03/2012 00:00:00,228.77,"53350","Nursing Homes","REDACTED DATA","JEWISH CARE (MERIT  HOUSE)","2447900","http://opencorporates.com/companies/gb/2447900","587033133"
"London Borough of Redbridge","http://opendatacommunities.org/doc/london-borough-council/redbridge","6BADULTSOCIA","Adult Social Care","6COLDINCMENT","Older People (65 or over) incl. Older Mentally Ill","REV","Revenue","R4385","OP Nursing","05-THIRD","Third Party Payments","05H","Private contractors","6909","Nursing Homes","90319935","201301",28/03/2012 00:00:00,46.59,"53350","Nursing Homes","REDACTED DATA","JEWISH CARE (MERIT  HOUSE)","2447900","http://opencorporates.com/companies/gb/2447900","587033133"
"London Borough of Redbridge","http://opendatacommunities.org/doc/london-borough-council/redbridge","6BADULTSOCIA","Adult Social Care","6COLDINCMENT","Older People (65 or over) incl. Older Mentally Ill","REV","Revenue","R4385","OP Nursing","05-THIRD","Third Party Payments","05H","Private contractors","6909","Nursing Homes","90319935","201301",28/03/2012 00:00:00,305.02,"53350","Nursing Homes","REDACTED DATA","JEWISH CARE (MERIT  HOUSE)","2447900","http://opencorporates.com/companies/gb/2447900","587033133"
"London Borough of Redbridge","http://opendatacommunities.org/doc/london-borough-council/redbridge","6BADULTSOCIA","Adult Social Care","6COLDINCMENT","Older People (65 or over) incl. Older Mentally Ill","REV","Revenue","R4385","OP Nursing","09-INCOME","Income","09C","Customer & Client Receipts","8557","Nursing Home Charges","90319935","201301",28/03/2012 00:00:00,-46.59,"53350","Nursing Homes","REDACTED DATA","JEWISH CARE (MERIT  HOUSE)","2447900","http://opencorporates.com/companies/gb/2447900","587033133"
"London Borough of Redbridge","http://opendatacommunities.org/doc/london-borough-council/redbridge","6BADULTSOCIA","Adult Social Care","6CADLEARNDIS","Adults Under 65 with Learning Disabilities","REV","Revenue","R4394","LD - Homecare","05-THIRD","Third Party Payments","05A","Independent units within the council","6502","Agency Homecare (Payments To Independent Units)","90317595","201301",20/04/2012 00:00:00,-819.79,"43419","Home Care Services","REDACTED DATA","FASTFLOW DE VERE CARE","",,""
"London Borough of Redbridge","http://opendatacommunities.org/doc/london-borough-council/redbridge","6BADULTSOCIA","Adult Social Care","6CADLEARNDIS","Adults Under 65 with Learning Disabilities","REV","Revenue","R4394","LD - Homecare","05-THIRD","Third Party Payments","05A","Independent units within the council","6502","Agency Homecare (Payments To Independent Units)","90310279","201212",12/03/2012 00:00:00,-804.3,"43419","Home Care Services","REDACTED DATA","FASTFLOW DE VERE CARE","",,""
"London Borough of Redbridge","http://opendatacommunities.org/doc/london-borough-council/redbridge","6BADULTSOCIA","Adult Social Care","6CADLEARNDIS","Adults Under 65 with Learning Disabilities","REV","Revenue","R4394","LD - Homecare","05-THIRD","Third Party Payments","05A","Independent units within the council","6502","Agency Homecare (Payments To Independent Units)","90310389","201212",22/03/2012 00:00:00,-799.21,"43419","Home Care Services","REDACTED DATA","FASTFLOW DE VERE CARE","",,""
"London Borough of Redbridge","http://opendatacommunities.org/doc/london-borough-council/redbridge","6BADULTSOCIA","Adult Social Care","6COLDINCMENT","Older People (65 or over) incl. Older Mentally Ill","REV","Revenue","R4391","OP Home Care","05-THIRD","Third Party Payments","05A","Independent units within the council","6502","Agency Homecare (Payments To Independent Units)","90312905","201301",30/03/2012 00:00:00,-747.26,"43419","Home Care Services","REDACTED DATA","ALLIED HEALTHCARE GROUP LTD","1689856","http://opencorporates.com/companies/gb/1689856","813058355"
"London Borough of Redbridge","http://opendatacommunities.org/doc/london-borough-council/redbridge","6BADULTSOCIA","Adult Social Care","6COLDINCMENT","Older People (65 or over) incl. Older Mentally Ill","REV","Revenue","R4385","OP Nursing","05-THIRD","Third Party Payments","05H","Private contractors","6909","Nursing Homes","90316025","201301",10/04/2012 00:00:00,282.39,"53350","Nursing Homes","REDACTED DATA","THE CHESTNUTS","",,""
"London Borough of Redbridge","http://opendatacommunities.org/doc/london-borough-council/redbridge","6BADULTSOCIA","Adult Social Care","6COLDINCMENT","Older People (65 or over) incl. Older Mentally Ill","REV","Revenue","R4385","OP Nursing","05-THIRD","Third Party Payments","05H","Private contractors","6909","Nursing Homes","90316025","201301",10/04/2012 00:00:00,-1003.14,"53350","Nursing Homes","REDACTED DATA","THE CHESTNUTS","",,""
"London Borough of Redbridge","http://opendatacommunities.org/doc/london-borough-council/redbridge","4BMANGT&SUPP","Management & Support Services","4CTRANSPP&S","Transport Planning, Policy & Strategy","REV","Revenue","R7001","London Permit Scheme","04-SUPPLIES","Supplies And Services","04H","Grants and subscriptions","5954","Professional Fees","60171068","201212",10/03/2012 00:00:00,-600,"65400","Road Surfacing Contractors","REDACTED DATA","STRATA CORING LTD","4247924","http://opencorporates.com/companies/gb/4247924","778307103"
"London Borough of Redbridge","http://opendatacommunities.org/doc/london-borough-council/redbridge","6BADULTSOCIA","Adult Social Care","6COLDINCMENT","Older People (65 or over) incl. Older Mentally Ill","REV","Revenue","R4211","Older People Direct Payments","06-TRANSFER","Transfer Payments","06B","Social Services Clients","7053","Direct Payments","3225987","201301",10/04/2012 00:00:00,-678.59,"56800","Payroll Services","REDACTED DATA","HUMAN MANAGEMENT ASSISTANCE-CLIENT ACCOUNT","4752026","http://opencorporates.com/companies/gb/4752026","815230071"
"London Borough of Redbridge","http://opendatacommunities.org/doc/london-borough-council/redbridge","6BADULTSOCIA","Adult Social Care","6COLDINCMENT","Older People (65 or over) incl. Older Mentally Ill","REV","Revenue","R4211","Older People Direct Payments","06-TRANSFER","Transfer Payments","06B","Social Services Clients","7053","Direct Payments","3226030","201301",10/04/2012 00:00:00,-678,"56800","Payroll Services","REDACTED DATA","HUMAN MANAGEMENT ASSISTANCE-CLIENT ACCOUNT","4752026","http://opencorporates.com/companies/gb/4752026","815230071"
"London Borough of Redbridge","http://opendatacommunities.org/doc/london-borough-council/redbridge","6BSOCIALSERV","Social Services","6COLDINCMENT","Older People (65 or over) incl. Older Mentally Ill","REV","Revenue","R4059","Elderly Mentally ill Home Care","05-THIRD","Third Party Payments","05A","Independent units within the council","6502","Agency Homecare (Payments To Independent Units)","90306829","201212",09/01/2012 00:00:00,-645.5,"31230","Employment & Recruitment Agencies","REDACTED DATA","TAYLOR GORDON & CO LTD T/AS PLAN PERSONNEL & PLAN CARE","",,"190680845"
"London Borough of Redbridge","http://opendatacommunities.org/doc/london-borough-council/redbridge","6BADULTSOCIA","Adult Social Care","6CADPHYSDIS","Adults Under 65 with Phys Disab or Sensory Impair","REV","Revenue","R4214","PD Direct Payments","06-TRANSFER","Transfer Payments","06B","Social Services Clients","7053","Direct Payments","3225920","201301",10/04/2012 00:00:00,-1380.38,"56800","Payroll Services","REDACTED DATA","HUMAN MANAGEMENT ASSISTANCE-CLIENT ACCOUNT","4752026","http://opencorporates.com/companies/gb/4752026","815230071"
"London Borough of Redbridge","http://opendatacommunities.org/doc/london-borough-council/redbridge","6BADULTSOCIA","Adult Social Care","6CADPHYSDIS","Adults Under 65 with Phys Disab or Sensory Impair","REV","Revenue","R4214","PD Direct Payments","09-INCOME","Income","09C","Customer & Client Receipts","8545","Direct Payments Income","3225920","201301",10/04/2012 00:00:00,498.78,"56800","Payroll Services","REDACTED DATA","HUMAN MANAGEMENT ASSISTANCE-CLIENT ACCOUNT","4752026","http://opencorporates.com/companies/gb/4752026","815230071"
"London Borough of Redbridge","http://opendatacommunities.org/doc/london-borough-council/redbridge","6BADULTSOCIA","Adult Social Care","6CADPHYSDIS","Adults Under 65 with Phys Disab or Sensory Impair","REV","Revenue","R4214","PD Direct Payments","09-INCOME","Income","09C","Customer & Client Receipts","8545","Direct Payments Income","3225920","201301",10/04/2012 00:00:00,262.22,"56800","Payroll Services","REDACTED DATA","HUMAN MANAGEMENT ASSISTANCE-CLIENT ACCOUNT","4752026","http://opencorporates.com/companies/gb/4752026","815230071"
"London Borough of Redbridge","http://opendatacommunities.org/doc/london-borough-council/redbridge","6BADULTSOCIA","Adult Social Care","6COLDINCMENT","Older People (65 or over) incl. Older Mentally Ill","REV","Revenue","R4391","OP Home Care","05-THIRD","Third Party Payments","05A","Independent units within the council","6502","Agency Homecare (Payments To Independent Units)","90308898","201212",02/03/2012 00:00:00,-597.4,"43419","Home Care Services","REDACTED DATA","ENARA LTD (ENARA COMMUNITY CARE)","65455420","http://opencorporates.com/companies/gb/65455420",""
"London Borough of Redbridge","http://opendatacommunities.org/doc/london-borough-council/redbridge","1BCENTRALPUB","Central Services to the Public","1CLOCALTAXCO","Local Tax Collection","REV","Revenue","R5760","Council Tax Collection","04-SUPPLIES","Supplies And Services","04H","Grants and subscriptions","5957","Bailiff Fees","70039306","201301",28/02/2012 00:00:00,-583.13,"24230","Debt Collection Agencies","REDACTED DATA","NEWLYN PLC","3770985","http://opencorporates.com/companies/gb/3770985","739828088"
"London Borough of Redbridge","http://opendatacommunities.org/doc/london-borough-council/redbridge","6BADULTSOCIA","Adult Social Care","6COTHADSERV","Other Adult Services","REV","Revenue","R4389","PCT Older Person Home Care","05-THIRD","Third Party Payments","05A","Independent units within the council","6502","Agency Homecare (Payments To Independent Units)","90319183","201301",04/04/2012 00:00:00,-512.5,"43419","Home Care Services","REDACTED DATA","ENARA LTD (ENARA COMMUNITY CARE)","65455420","http://opencorporates.com/companies/gb/65455420",""
"London Borough of Redbridge","http://opendatacommunities.org/doc/london-borough-council/redbridge","6BADULTSOCIA","Adult Social Care","6COLDINCMENT","Older People (65 or over) incl. Older Mentally Ill","REV","Revenue","R4391","OP Home Care","05-THIRD","Third Party Payments","05A","Independent units within the council","6502","Agency Homecare (Payments To Independent Units)","90318879","201301",18/04/2012 00:00:00,500.04,"53350","Nursing Homes","REDACTED DATA","ELEANOR NURSING & SOCIALCARE LTD","4393038","http://opencorporates.com/companies/gb/4393038",""
"London Borough of Redbridge","http://opendatacommunities.org/doc/london-borough-council/redbridge","6BADULTSOCIA","Adult Social Care","6COTHADSERV","Other Adult Services","REV","Revenue","R4390","PCT HIV Home Care","05-THIRD","Third Party Payments","05A","Independent units within the council","6502","Agency Homecare (Payments To Independent Units)","90308106","201212",02/03/2012 00:00:00,500.12,"53280","Nursing Agencies","REDACTED DATA","IMMACULATE HEALTHCARE SERVICES LIMITED","",,""
"London Borough of Redbridge","http://opendatacommunities.org/doc/london-borough-council/redbridge","6BSOCIALSERV","Social Services","6CCHILLOOKED","Children Looked After","REV","Revenue","R2158","Albert Road - Integrated Team Social Care","06-TRANSFER","Transfer Payments","06B","Social Services Clients","7057","Section 17 Payments","60171502","201212",18/03/2012 00:00:00,417,"53350","Nursing Homes","REDACTED DATA","JUSTICE ASSESSMENT & SUPPORT SERVICES LTD","6382678","http://opencorporates.com/companies/gb/6382678","992524687"
"London Borough of Redbridge","http://opendatacommunities.org/doc/london-borough-council/redbridge","4BMANGT&SUPP","Management & Support Services","4CHIGHRDROUT","Highways/Roads (Routine)","REV","Revenue","R7070","Reactive Maintenance","05-THIRD","Third Party Payments","05H","Private contractors","6915","Contractor Payments","3226742","201301",04/04/2012 00:00:00,417.25,"18632","Civil Engineers","REDACTED DATA","KENSON CONTRACTORS BENINGTON LTD","1314691","http://opencorporates.com/companies/gb/1314691","301629589"
"London Borough of Redbridge","http://opendatacommunities.org/doc/london-borough-council/redbridge","4BMANGT&SUPP","Management & Support Services","4CHIGHRDROUT","Highways/Roads (Routine)","REV","Revenue","R7070","Reactive Maintenance","05-THIRD","Third Party Payments","05H","Private contractors","6915","Contractor Payments","3226926","201301",04/04/2012 00:00:00,417.27,"18632","Civil Engineers","REDACTED DATA","KENSON CONTRACTORS BENINGTON LTD","1314691","http://opencorporates.com/companies/gb/1314691","301629589"
"London Borough of Redbridge","http://opendatacommunities.org/doc/london-borough-council/redbridge","4BPUBLICTRAN","Public Transport","4CPARKING","Parking Services","REV","Revenue","R7012","Ley St MSCP","01-EMPLOYEES","Employees","01A","Direct employee expenses","4","Agency Staff - Pay","60173933","201301",12/04/2012 00:00:00,417.36,"31230","Employment & Recruitment Agencies","REDACTED DATA","PREMIERE EMPLOYMENT LTD","",,""
"London Borough of Redbridge","http://opendatacommunities.org/doc/london-borough-council/redbridge","4BMANGT&SUPP","Management & Support Services","4CHIGHRDROUT","Highways/Roads (Routine)","REV","Revenue","R7068","Signs - Schedule 2","05-THIRD","Third Party Payments","05H","Private contractors","6915","Contractor Payments","3222182","201212",06/03/2012 00:00:00,417.79,"21555","Construction Contractors - General","REDACTED DATA","MAY GURNEY LIMITED","873179","http://opencorporates.com/companies/gb/873179","105540018"
"London Borough of Redbridge","http://opendatacommunities.org/doc/london-borough-council/redbridge","1BCENTRALPUB","Central Services to the Public","1CTRADSURDEF","Trading Account Surpluses & Deficits","REV","Revenue","R5754","Income","04-SUPPLIES","Supplies And Services","04H","Grants and subscriptions","5954","Professional Fees","60171853","201212",16/03/2012 00:00:00,417.8,"48582","Loans & Debt - Management","REDACTED DATA","MOORCROFT DEBT RECOVERY LTD","1703704","http://opencorporates.com/companies/gb/1703704","453109273"
"London Borough of Redbridge","http://opendatacommunities.org/doc/london-borough-council/redbridge","6BADULTSOCIA","Adult Social Care","6CADMENHLTH","Adults Under 65 with Mental Health Needs","REV","Revenue","R4271","Abury House","02-PREMISES","Premises","02A","Repairs, alteration and maintenance of buildings","3037","Service Contracts","788071","201301",02/04/2012 00:00:00,418.2,"16111","Catering Equipment","REDACTED DATA","J SCOTT & SONS  LTD","",,"354241082"
"London Borough of Redbridge","http://opendatacommunities.org/doc/london-borough-council/redbridge","6BSOCIALSERV","Social Services","6COLDINCMENT","Older People (65 or over) incl. Older Mentally Ill","REV","Revenue","R4059","Elderly Mentally ill Home Care","05-THIRD","Third Party Payments","05A","Independent units within the council","6502","Agency Homecare (Payments To Independent Units)","90317684","201301",23/04/2012 00:00:00,502.04,"43419","Home Care Services","REDACTED DATA","FASTFLOW DE VERE CARE","",,""
"London Borough of Redbridge","http://opendatacommunities.org/doc/london-borough-council/redbridge","6BSOCIALSERV","Social Services","6COLDINCMENT","Older People (65 or over) incl. Older Mentally Ill","REV","Revenue","R4059","Elderly Mentally ill Home Care","05-THIRD","Third Party Payments","05A","Independent units within the council","6502","Agency Homecare (Payments To Independent Units)","90317587","201301",20/04/2012 00:00:00,502.04,"43419","Home Care Services","REDACTED DATA","FASTFLOW DE VERE CARE","",,""
"London Borough of Redbridge","http://opendatacommunities.org/doc/london-borough-council/redbridge","6BADULTSOCIA","Adult Social Care","6CADPHYSDIS","Adults Under 65 with Phys Disab or Sensory Impair","REV","Revenue","R4214","PD Direct Payments","06-TRANSFER","Transfer Payments","06B","Social Services Clients","7053","Direct Payments","3225873","201301",10/04/2012 00:00:00,-121.48,"56800","Payroll Services","REDACTED DATA","HUMAN MANAGEMENT ASSISTANCE-CLIENT ACCOUNT","4752026","http://opencorporates.com/companies/gb/4752026","815230071"
"London Borough of Redbridge","http://opendatacommunities.org/doc/london-borough-council/redbridge","6BADULTSOCIA","Adult Social Care","6CADPHYSDIS","Adults Under 65 with Phys Disab or Sensory Impair","REV","Revenue","R4214","PD Direct Payments","06-TRANSFER","Transfer Payments","06B","Social Services Clients","7053","Direct Payments","3225873","201301",10/04/2012 00:00:00,623.55,"56800","Payroll Services","REDACTED DATA","HUMAN MANAGEMENT ASSISTANCE-CLIENT ACCOUNT","4752026","http://opencorporates.com/companies/gb/4752026","815230071"
"London Borough of Redbridge","http://opendatacommunities.org/doc/london-borough-council/redbridge","6BADULTSOCIA","Adult Social Care","6CADPHYSDIS","Adults Under 65 with Phys Disab or Sensory Impair","REV","Revenue","R4214","PD Direct Payments","06-TRANSFER","Transfer Payments","06B","Social Services Clients","7053","Direct Payments","3225832","201301",10/04/2012 00:00:00,-121.48,"56800","Payroll Services","REDACTED DATA","HUMAN MANAGEMENT ASSISTANCE-CLIENT ACCOUNT","4752026","http://opencorporates.com/companies/gb/4752026","815230071"
"London Borough of Redbridge","http://opendatacommunities.org/doc/london-borough-council/redbridge","6BADULTSOCIA","Adult Social Care","6CADPHYSDIS","Adults Under 65 with Phys Disab or Sensory Impair","REV","Revenue","R4214","PD Direct Payments","06-TRANSFER","Transfer Payments","06B","Social Services Clients","7053","Direct Payments","3225832","201301",10/04/2012 00:00:00,623.55,"56800","Payroll Services","REDACTED DATA","HUMAN MANAGEMENT ASSISTANCE-CLIENT ACCOUNT","4752026","http://opencorporates.com/companies/gb/4752026","815230071"
"London Borough of Redbridge","http://opendatacommunities.org/doc/london-borough-council/redbridge","6BADULTSOCIA","Adult Social Care","6CADPHYSDIS","Adults Under 65 with Phys Disab or Sensory Impair","REV","Revenue","R4214","PD Direct Payments","06-TRANSFER","Transfer Payments","06B","Social Services Clients","7053","Direct Payments","3225970","201301",10/04/2012 00:00:00,-121.48,"56800","Payroll Services","REDACTED DATA","HUMAN MANAGEMENT ASSISTANCE-CLIENT ACCOUNT","4752026","http://opencorporates.com/companies/gb/4752026","815230071"
"London Borough of Redbridge","http://opendatacommunities.org/doc/london-borough-council/redbridge","6BADULTSOCIA","Adult Social Care","6CADPHYSDIS","Adults Under 65 with Phys Disab or Sensory Impair","REV","Revenue","R4214","PD Direct Payments","06-TRANSFER","Transfer Payments","06B","Social Services Clients","7053","Direct Payments","3225970","201301",10/04/2012 00:00:00,623.55,"56800","Payroll Services","REDACTED DATA","HUMAN MANAGEMENT ASSISTANCE-CLIENT ACCOUNT","4752026","http://opencorporates.com/companies/gb/4752026","815230071"
"London Borough of Redbridge","http://opendatacommunities.org/doc/london-borough-council/redbridge","6BADULTSOCIA","Adult Social Care","6CADMENHLTH","Adults Under 65 with Mental Health Needs","REV","Revenue","R4163","Extra Care","04-SUPPLIES","Supplies And Services","04C","Clothes, uniform and laundry","5651","Protective Clothing","60170746","201212",25/02/2012 00:00:00,20.93,"81420","Uniforms & Staff Wear","REDACTED DATA","MWUK ACQUISITION CO LTD T/AS ALEXANDRA","7331424","http://opencorporates.com/companies/gb/7331424",""
"London Borough of Redbridge","http://opendatacommunities.org/doc/london-borough-council/redbridge","6BADULTSOCIA","Adult Social Care","6CADPHYSDIS","Adults Under 65 with Phys Disab or Sensory Impair","REV","Revenue","R4163","Extra Care","04-SUPPLIES","Supplies And Services","04C","Clothes, uniform and laundry","5651","Protective Clothing","60170746","201212",25/02/2012 00:00:00,41.86,"81420","Uniforms & Staff Wear","REDACTED DATA","MWUK ACQUISITION CO LTD T/AS ALEXANDRA","7331424","http://opencorporates.com/companies/gb/7331424",""
"London Borough of Redbridge","http://opendatacommunities.org/doc/london-borough-council/redbridge","6BADULTSOCIA","Adult Social Care","6COLDINCMENT","Older People (65 or over) incl. Older Mentally Ill","REV","Revenue","R4163","Extra Care","04-SUPPLIES","Supplies And Services","04C","Clothes, uniform and laundry","5651","Protective Clothing","60170746","201212",25/02/2012 00:00:00,355.81,"81420","Uniforms & Staff Wear","REDACTED DATA","MWUK ACQUISITION CO LTD T/AS ALEXANDRA","7331424","http://opencorporates.com/companies/gb/7331424",""
"London Borough of Redbridge","http://opendatacommunities.org/doc/london-borough-council/redbridge","6BADULTSOCIA","Adult Social Care","6COLDINCMENT","Older People (65 or over) incl. Older Mentally Ill","REV","Revenue","R4211","Older People Direct Payments","06-TRANSFER","Transfer Payments","06B","Social Services Clients","7053","Direct Payments","3222584","201212",12/03/2012 00:00:00,757.12,"56800","Payroll Services","REDACTED DATA","HUMAN MANAGEMENT ASSISTANCE-CLIENT ACCOUNT","4752026","http://opencorporates.com/companies/gb/4752026","815230071"
"London Borough of Redbridge","http://opendatacommunities.org/doc/london-borough-council/redbridge","6BADULTSOCIA","Adult Social Care","6CSUPPSERMGT","Support Service & Management Costs","REV","Revenue","R4004","CC - Training General","01-EMPLOYEES","Employees","01B","Indirect employee expenses","2403","External Training","60172250","201212",26/03/2012 00:00:00,419.5,"29380","Educational Training Providers","REDACTED DATA","LIFECARE QUALIFICATIONS LTD T/A LIFECARE INSTITUTE","7369500","http://opencorporates.com/companies/gb/7369500",""
"London Borough of Redbridge","http://opendatacommunities.org/doc/london-borough-council/redbridge","6BADULTSOCIA","Adult Social Care","6CADPHYSDIS","Adults Under 65 with Phys Disab or Sensory Impair","REV","Revenue","R4214","PD Direct Payments","06-TRANSFER","Transfer Payments","06B","Social Services Clients","7053","Direct Payments","3225958","201301",10/04/2012 00:00:00,696,"56800","Payroll Services","REDACTED DATA","HUMAN MANAGEMENT ASSISTANCE-CLIENT ACCOUNT","4752026","http://opencorporates.com/companies/gb/4752026","815230071"
"London Borough of Redbridge","http://opendatacommunities.org/doc/london-borough-council/redbridge","6BADULTSOCIA","Adult Social Care","6CADPHYSDIS","Adults Under 65 with Phys Disab or Sensory Impair","REV","Revenue","R4214","PD Direct Payments","06-TRANSFER","Transfer Payments","06B","Social Services Clients","7053","Direct Payments","3225958","201301",10/04/2012 00:00:00,-135.6,"56800","Payroll Services","REDACTED DATA","HUMAN MANAGEMENT ASSISTANCE-CLIENT ACCOUNT","4752026","http://opencorporates.com/companies/gb/4752026","815230071"
"London Borough of Redbridge","http://opendatacommunities.org/doc/london-borough-council/redbridge","6BADULTSOCIA","Adult Social Care","6CADPHYSDIS","Adults Under 65 with Phys Disab or Sensory Impair","REV","Revenue","R4214","PD Direct Payments","09-INCOME","Income","09C","Customer & Client Receipts","8545","Direct Payments Income","3225958","201301",10/04/2012 00:00:00,-71.95,"56800","Payroll Services","REDACTED DATA","HUMAN MANAGEMENT ASSISTANCE-CLIENT ACCOUNT","4752026","http://opencorporates.com/companies/gb/4752026","815230071"
"London Borough of Redbridge","http://opendatacommunities.org/doc/london-borough-council/redbridge","6BADULTSOCIA","Adult Social Care","6CADPHYSDIS","Adults Under 65 with Phys Disab or Sensory Impair","REV","Revenue","R4214","PD Direct Payments","09-INCOME","Income","09C","Customer & Client Receipts","8545","Direct Payments Income","3225958","201301",10/04/2012 00:00:00,14.96,"56800","Payroll Services","REDACTED DATA","HUMAN MANAGEMENT ASSISTANCE-CLIENT ACCOUNT","4752026","http://opencorporates.com/companies/gb/4752026","815230071"
"London Borough of Redbridge","http://opendatacommunities.org/doc/london-borough-council/redbridge","9BNONBVO","Outside the BVACOP Objective Structure","9CNONBVO","Outside the BVACOP Objective Structure","BAL","Balance Sheet","B0179","Court Orders","99-NONBV","Capital, Balance Sheet and Control","50Q","Other Balances & Reserves","9910","Personal Account - Debtor","70039082","201301",02/04/2012 00:00:00,503.58,"48583","Local Government","REDACTED DATA","LONDON BOROUGH OF NEWHAM","",,"248481537"
"London Borough of Redbridge","http://opendatacommunities.org/doc/london-borough-council/redbridge","3BOPTIONHLDG","Optional Holding Accounts","3CADULT","Adult Education","REV","Revenue","R3490","RIAE   Home Cost Centre","02-PREMISES","Premises","02A","Repairs, alteration and maintenance of buildings","3040","Tenant Maintenance","3225592","201301",02/04/2012 00:00:00,419.7,"29340","Educational Equipment & Supplies","REDACTED DATA","DEMCO EUROPE LTD (GRESSWELL)","2067190","http://opencorporates.com/companies/gb/2067190","443818636"
"London Borough of Redbridge","http://opendatacommunities.org/doc/london-borough-council/redbridge","6BADULTSOCIA","Adult Social Care","6COLDINCMENT","Older People (65 or over) incl. Older Mentally Ill","REV","Revenue","R4391","OP Home Care","05-THIRD","Third Party Payments","05A","Independent units within the council","6502","Agency Homecare (Payments To Independent Units)","90307439","201212",09/03/2012 00:00:00,503.66,"43419","Home Care Services","REDACTED DATA","FASTFLOW DE VERE CARE","",,""
"London Borough of Redbridge","http://opendatacommunities.org/doc/london-borough-council/redbridge","9BNONBVO","Outside the BVACOP Objective Structure","9CNONBVO","Outside the BVACOP Objective Structure","REV","Revenue","R7701","Veh Admin O'Head A/C","04-SUPPLIES","Supplies And Services","04D","Printing, stationery and general office expenses","5710","Stationery","631918","201301",17/04/2012 00:00:00,102.94,"20703","Computer Systems and Software","REDACTED DATA","INSIGHT DIRECT (UK) LTD.","",,""
"London Borough of Redbridge","http://opendatacommunities.org/doc/london-borough-council/redbridge","9BNONBVO","Outside the BVACOP Objective Structure","9CNONBVO","Outside the BVACOP Objective Structure","REV","Revenue","R7701","Veh Admin O'Head A/C","04-SUPPLIES","Supplies And Services","04D","Printing, stationery and general office expenses","5710","Stationery","631918","201301",17/04/2012 00:00:00,158.39,"20703","Computer Systems and Software","REDACTED DATA","INSIGHT DIRECT (UK) LTD.","",,""
"London Borough of Redbridge","http://opendatacommunities.org/doc/london-borough-council/redbridge","9BNONBVO","Outside the BVACOP Objective Structure","9CNONBVO","Outside the BVACOP Objective Structure","REV","Revenue","R7701","Veh Admin O'Head A/C","04-SUPPLIES","Supplies And Services","04D","Printing, stationery and general office expenses","5710","Stationery","631918","201301",17/04/2012 00:00:00,158.39,"20703","Computer Systems and Software","REDACTED DATA","INSIGHT DIRECT (UK) LTD.","",,""
"London Borough of Redbridge","http://opendatacommunities.org/doc/london-borough-council/redbridge","9BNONBVO","Outside the BVACOP Objective Structure","9CNONBVO","Outside the BVACOP Objective Structure","REV","Revenue","R7702","Vehicle Workshop","04-SUPPLIES","Supplies And Services","04A","Equipment, furniture and materials","5510","Materials","631847","201301",11/04/2012 00:00:00,420,"84920","Windscreen Services","REDACTED DATA","SMART GLASS ESSEX","",,"672373033"
"London Borough of Redbridge","http://opendatacommunities.org/doc/london-borough-council/redbridge","1BOTHEROPI&E","Other Operating Income & Expenditure","1CTRADSURDEF","Trading Account Surpluses & Deficits","REV","Revenue","R9354","Legal Disbursements","04-SUPPLIES","Supplies And Services","04H","Grants and subscriptions","5954","Professional Fees","60170148","201212",10/02/2012 00:00:00,420,"6700","Barristers","REDACTED DATA","SIMON FORSHAW","3128877143","http://opencorporates.com/companies/gb/3128877143","863805015"
"London Borough of Redbridge","http://opendatacommunities.org/doc/london-borough-council/redbridge","6BADULTSOCIA","Adult Social Care","6COLDINCMENT","Older People (65 or over) incl. Older Mentally Ill","REV","Revenue","R4391","OP Home Care","05-THIRD","Third Party Payments","05A","Independent units within the council","6502","Agency Homecare (Payments To Independent Units)","90317644","201301",23/04/2012 00:00:00,504.16,"43419","Home Care Services","REDACTED DATA","FASTFLOW DE VERE CARE","",,""
"London Borough of Redbridge","http://opendatacommunities.org/doc/london-borough-council/redbridge","1BOTHEROPI&E","Other Operating Income & Expenditure","1CTRADSURDEF","Trading Account Surpluses & Deficits","REV","Revenue","R9147","Invoices Holding Account Leisure","02-PREMISES","Premises","02A","Repairs, alteration and maintenance of buildings","3043","Window Cleaning","60174057","201301",17/04/2012 00:00:00,420.32,"15269","Cleaning Services - Commercial","REDACTED DATA","F & G CLEANERS LIMITED","1233735","http://opencorporates.com/companies/gb/1233735","236797421"
"London Borough of Redbridge","http://opendatacommunities.org/doc/london-borough-council/redbridge","6BADULTSOCIA","Adult Social Care","6CADPHYSDIS","Adults Under 65 with Phys Disab or Sensory Impair","REV","Revenue","R4214","PD Direct Payments","06-TRANSFER","Transfer Payments","06B","Social Services Clients","7053","Direct Payments","3226011","201301",10/04/2012 00:00:00,-141.25,"90005","Home Care Services DP","REDACTED DATA","REDACTED DATA","",,""
"London Borough of Redbridge","http://opendatacommunities.org/doc/london-borough-council/redbridge","6BADULTSOCIA","Adult Social Care","6CADPHYSDIS","Adults Under 65 with Phys Disab or Sensory Impair","REV","Revenue","R4214","PD Direct Payments","06-TRANSFER","Transfer Payments","06B","Social Services Clients","7053","Direct Payments","3226011","201301",10/04/2012 00:00:00,725,"90005","Home Care Services DP","REDACTED DATA","REDACTED DATA","",,""
"London Borough of Redbridge","http://opendatacommunities.org/doc/london-borough-council/redbridge","6BADULTSOCIA","Adult Social Care","6CADPHYSDIS","Adults Under 65 with Phys Disab or Sensory Impair","REV","Revenue","R4214","PD Direct Payments","09-INCOME","Income","09C","Customer & Client Receipts","8545","Direct Payments Income","3226011","201301",10/04/2012 00:00:00,20.31,"90005","Home Care Services DP","REDACTED DATA","REDACTED DATA","",,""
"London Borough of Redbridge","http://opendatacommunities.org/doc/london-borough-council/redbridge","6BADULTSOCIA","Adult Social Care","6CADPHYSDIS","Adults Under 65 with Phys Disab or Sensory Impair","REV","Revenue","R4214","PD Direct Payments","09-INCOME","Income","09C","Customer & Client Receipts","8545","Direct Payments Income","3226011","201301",10/04/2012 00:00:00,-99.5,"90005","Home Care Services DP","REDACTED DATA","REDACTED DATA","",,""
"London Borough of Redbridge","http://opendatacommunities.org/doc/london-borough-council/redbridge","9BNONBVO","Outside the BVACOP Objective Structure","9CNONBVO","Outside the BVACOP Objective Structure","REV","Revenue","R7702","Vehicle Workshop","04-SUPPLIES","Supplies And Services","04A","Equipment, furniture and materials","5504","Equipment Repairs & Maintenance","631559","201301",28/03/2012 00:00:00,92.34,"13330","Car Body Repairs","REDACTED DATA","BARKING PANELCRAFT","",,""
"London Borough of Redbridge","http://opendatacommunities.org/doc/london-borough-council/redbridge","9BNONBVO","Outside the BVACOP Objective Structure","9CNONBVO","Outside the BVACOP Objective Structure","REV","Revenue","R7702","Vehicle Workshop","04-SUPPLIES","Supplies And Services","04A","Equipment, furniture and materials","5504","Equipment Repairs & Maintenance","631559","201301",28/03/2012 00:00:00,328.25,"13330","Car Body Repairs","REDACTED DATA","BARKING PANELCRAFT","",,""
"London Borough of Redbridge","http://opendatacommunities.org/doc/london-borough-council/redbridge","6BADULTSOCIA","Adult Social Care","6COLDINCMENT","Older People (65 or over) incl. Older Mentally Ill","REV","Revenue","R4391","OP Home Care","05-THIRD","Third Party Payments","05A","Independent units within the council","6502","Agency Homecare (Payments To Independent Units)","90313686","201301",09/04/2012 00:00:00,505.35,"43419","Home Care Services","REDACTED DATA","FASTFLOW DE VERE CARE","",,""
"London Borough of Redbridge","http://opendatacommunities.org/doc/london-borough-council/redbridge","2BENVIRONMEN","Environmental Services","2CSTCLEANS","Street Cleansing (not chargeable to Highways)","REV","Revenue","R6060","Street Scene Enforcement","04-SUPPLIES","Supplies And Services","04K","Miscellaneous expenses","6263","Supportive Activities","3222173","201212",06/03/2012 00:00:00,421.14,"21555","Construction Contractors - General","REDACTED DATA","MAY GURNEY LIMITED","873179","http://opencorporates.com/companies/gb/873179","105540018"
"London Borough of Redbridge","http://opendatacommunities.org/doc/london-borough-council/redbridge","6BADULTSOCIA","Adult Social Care","6CADPHYSDIS","Adults Under 65 with Phys Disab or Sensory Impair","REV","Revenue","R4393","PD Home Care","05-THIRD","Third Party Payments","05A","Independent units within the council","6502","Agency Homecare (Payments To Independent Units)","90311903","201212",22/03/2012 00:00:00,505.6,"43419","Home Care Services","REDACTED DATA","CAREWATCH CARE SERVICES LTD","2949558","http://opencorporates.com/companies/gb/2949558","927457005"
"London Borough of Redbridge","http://opendatacommunities.org/doc/london-borough-council/redbridge","6BADULTSOCIA","Adult Social Care","6COLDINCMENT","Older People (65 or over) incl. Older Mentally Ill","REV","Revenue","R4211","Older People Direct Payments","06-TRANSFER","Transfer Payments","06B","Social Services Clients","7053","Direct Payments","3226041","201301",10/04/2012 00:00:00,-158.2,"56800","Payroll Services","REDACTED DATA","HUMAN MANAGEMENT ASSISTANCE-CLIENT ACCOUNT","4752026","http://opencorporates.com/companies/gb/4752026","815230071"
"London Borough of Redbridge","http://opendatacommunities.org/doc/london-borough-council/redbridge","6BADULTSOCIA","Adult Social Care","6COLDINCMENT","Older People (65 or over) incl. Older Mentally Ill","REV","Revenue","R4211","Older People Direct Payments","06-TRANSFER","Transfer Payments","06B","Social Services Clients","7053","Direct Payments","3226041","201301",10/04/2012 00:00:00,812,"56800","Payroll Services","REDACTED DATA","HUMAN MANAGEMENT ASSISTANCE-CLIENT ACCOUNT","4752026","http://opencorporates.com/companies/gb/4752026","815230071"
"London Borough of Redbridge","http://opendatacommunities.org/doc/london-borough-council/redbridge","6BADULTSOCIA","Adult Social Care","6COLDINCMENT","Older People (65 or over) incl. Older Mentally Ill","REV","Revenue","R4211","Older People Direct Payments","09-INCOME","Income","09C","Customer & Client Receipts","8545","Direct Payments Income","3226041","201301",10/04/2012 00:00:00,31.86,"56800","Payroll Services","REDACTED DATA","HUMAN MANAGEMENT ASSISTANCE-CLIENT ACCOUNT","4752026","http://opencorporates.com/companies/gb/4752026","815230071"
"London Borough of Redbridge","http://opendatacommunities.org/doc/london-borough-council/redbridge","6BADULTSOCIA","Adult Social Care","6COLDINCMENT","Older People (65 or over) incl. Older Mentally Ill","REV","Revenue","R4211","Older People Direct Payments","09-INCOME","Income","09C","Customer & Client Receipts","8545","Direct Payments Income","3226041","201301",10/04/2012 00:00:00,-180,"56800","Payroll Services","REDACTED DATA","HUMAN MANAGEMENT ASSISTANCE-CLIENT ACCOUNT","4752026","http://opencorporates.com/companies/gb/4752026","815230071"
"London Borough of Redbridge","http://opendatacommunities.org/doc/london-borough-council/redbridge","2BENVIRONMEN","Environmental Services","2CENVTLHEALT","Environmental Health","REV","Revenue","R6020","Public Conveniences","02-PREMISES","Premises","02B","Energy costs","4000","Electricity","70040127","201301",05/04/2012 00:00:00,421.74,"30586","Electricity Companies","REDACTED DATA","SOUTHERN ELECTRIC","2716495","http://opencorporates.com/companies/gb/2716495","553769603"
"London Borough of Redbridge","http://opendatacommunities.org/doc/london-borough-council/redbridge","6BADULTSOCIA","Adult Social Care","6COTHADSERV","Other Adult Services","REV","Revenue","R4389","PCT Older Person Home Care","05-THIRD","Third Party Payments","05A","Independent units within the council","6502","Agency Homecare (Payments To Independent Units)","90311511","201212",21/03/2012 00:00:00,506.52,"53350","Nursing Homes","REDACTED DATA","ELEANOR NURSING & SOCIALCARE LTD","4393038","http://opencorporates.com/companies/gb/4393038",""
"London Borough of Redbridge","http://opendatacommunities.org/doc/london-borough-council/redbridge","6BADULTSOCIA","Adult Social Care","6CADLEARNDIS","Adults Under 65 with Learning Disabilities","REV","Revenue","R4394","LD - Homecare","05-THIRD","Third Party Payments","05A","Independent units within the council","6502","Agency Homecare (Payments To Independent Units)","90318016","201301",16/04/2012 00:00:00,508.09,"17020","Charities and Voluntary Organisations","REDACTED DATA","REDBRIDGE CROSSROADS CAS","2647932","http://opencorporates.com/companies/gb/2647932",""
"London Borough of Redbridge","http://opendatacommunities.org/doc/london-borough-council/redbridge","6BADULTSOCIA","Adult Social Care","6COLDINCMENT","Older People (65 or over) incl. Older Mentally Ill","REV","Revenue","R4391","OP Home Care","05-THIRD","Third Party Payments","05A","Independent units within the council","6502","Agency Homecare (Payments To Independent Units)","90308235","201212",05/03/2012 00:00:00,508.96,"53350","Nursing Homes","REDACTED DATA","JEWISH CARE (MERIT  HOUSE)","2447900","http://opencorporates.com/companies/gb/2447900","587033133"
"London Borough of Redbridge","http://opendatacommunities.org/doc/london-borough-council/redbridge","6BADULTSOCIA","Adult Social Care","6CADLEARNDIS","Adults Under 65 with Learning Disabilities","REV","Revenue","R4296","Mulberry Lodge","01-EMPLOYEES","Employees","01A","Direct employee expenses","409","Agency Staff Pay","60172872","201301",28/03/2012 00:00:00,424.83,"31230","Employment & Recruitment Agencies","REDACTED DATA","CRASTER RECRUITMENT LTD","7654534","http://opencorporates.com/companies/gb/7654534","119719983"
"London Borough of Redbridge","http://opendatacommunities.org/doc/london-borough-council/redbridge","3BINDSCHFUND","Individual School Funds","3CDELPRIMARY","Delegated Individual Primary School Budgets","REV","Revenue","R3579","Barley Lane Primary School","02-PREMISES","Premises","02A","Repairs, alteration and maintenance of buildings","3001","Major Works Programme","788155","201301",20/04/2012 00:00:00,125,"4970","Asbestos Surveys and Removals","REDACTED DATA","CHESS ENVIRONMENTAL LIMITED","6848094","http://opencorporates.com/companies/gb/6848094","970483208"
"London Borough of Redbridge","http://opendatacommunities.org/doc/london-borough-council/redbridge","3BINDSCHFUND","Individual School Funds","3CDELPRIMARY","Delegated Individual Primary School Budgets","REV","Revenue","R3579","Barley Lane Primary School","02-PREMISES","Premises","02A","Repairs, alteration and maintenance of buildings","3001","Major Works Programme","788155","201301",20/04/2012 00:00:00,300,"4970","Asbestos Surveys and Removals","REDACTED DATA","CHESS ENVIRONMENTAL LIMITED","6848094","http://opencorporates.com/companies/gb/6848094","970483208"
"London Borough of Redbridge","http://opendatacommunities.org/doc/london-borough-council/redbridge","3BLEACENTFND","LEA Centrally Held School Funds","3CASSURACCES","Assuring Access to Schools","REV","Revenue","R3832","Primary Free Sch Meals","04-SUPPLIES","Supplies And Services","04A","Equipment, furniture and materials","5504","Equipment Repairs & Maintenance","787794","201212",14/03/2012 00:00:00,425,"16111","Catering Equipment","REDACTED DATA","J SCOTT & SONS  LTD","",,"354241082"
"London Borough of Redbridge","http://opendatacommunities.org/doc/london-borough-council/redbridge","3BOPTIONHLDG","Optional Holding Accounts","3CYOUTH","Youth Service","REV","Revenue","R3367","Targeted Prevention (Core)","04-SUPPLIES","Supplies And Services","04A","Equipment, furniture and materials","5506","Furniture & Fittings - Purchase","60172385","201212",15/03/2012 00:00:00,425,"23100","Curtain & Blind Fittings","REDACTED DATA","AJS BLINDS","",,"707473137"
"London Borough of Redbridge","http://opendatacommunities.org/doc/london-borough-council/redbridge","4BMANGT&SUPP","Management & Support Services","4CHIGHRDROUT","Highways/Roads (Routine)","REV","Revenue","R7070","Reactive Maintenance","05-THIRD","Third Party Payments","05H","Private contractors","6915","Contractor Payments","3222043","201212",06/03/2012 00:00:00,425.09,"66370","Sand, Gravel & Other Aggregates","REDACTED DATA","LAFARGE AGGREGATES LTD","297905","http://opencorporates.com/companies/gb/297905","210479684"
"London Borough of Redbridge","http://opendatacommunities.org/doc/london-borough-council/redbridge","1BCENTRALPUB","Central Services to the Public","1CEMERGPLAN","Emergency Planning","REV","Revenue","R9361","Local Land Charges","04-SUPPLIES","Supplies And Services","04A","Equipment, furniture and materials","5501","Equipment Provision","60168824","201212",19/02/2012 00:00:00,161.8,"20703","Computer Systems and Software","REDACTED DATA","NORTHGATE INFORMATION SOLUTIONS UK LTD","968498","http://opencorporates.com/companies/gb/968498","207588545"
"London Borough of Redbridge","http://opendatacommunities.org/doc/london-borough-council/redbridge","3BLEACENTFND","LEA Centrally Held School Funds","3CASSURACCES","Assuring Access to Schools","REV","Revenue","R3832","Primary Free Sch Meals","04-SUPPLIES","Supplies And Services","04A","Equipment, furniture and materials","5504","Equipment Repairs & Maintenance","788027","201301",29/03/2012 00:00:00,425.66,"16111","Catering Equipment","REDACTED DATA","J SCOTT & SONS  LTD","",,"354241082"
"London Borough of Redbridge","http://opendatacommunities.org/doc/london-borough-council/redbridge","3BNONSCHFUND","Non-School Funding","3CNONSCH","Non Schools","REV","Revenue","R3931","Wanstead CC","02-PREMISES","Premises","02H","Cleaning and domestic supplies","4620","Cleaning Contract Payments","60170261","201212",01/03/2012 00:00:00,147.59,"15269","Cleaning Services - Commercial","REDACTED DATA","OCEAN CONTRACT CLEANING LTD","1105443","http://opencorporates.com/companies/gb/1105443","197418033"
"London Borough of Redbridge","http://opendatacommunities.org/doc/london-borough-council/redbridge","3BNONSCHFUND","Non-School Funding","3CNONSCH","Non Schools","REV","Revenue","R3932","Aldersbrook CC","02-PREMISES","Premises","02H","Cleaning and domestic supplies","4620","Cleaning Contract Payments","60170261","201212",01/03/2012 00:00:00,278.55,"15269","Cleaning Services - Commercial","REDACTED DATA","OCEAN CONTRACT CLEANING LTD","1105443","http://opencorporates.com/companies/gb/1105443","197418033"
"London Borough of Redbridge","http://opendatacommunities.org/doc/london-borough-council/redbridge","1BOTHEROPI&E","Other Operating Income & Expenditure","1CTRADSURDEF","Trading Account Surpluses & Deficits","REV","Revenue","R9802","Administrative Service","04-SUPPLIES","Supplies And Services","04A","Equipment, furniture and materials","5503","Equipment Rentals","60170653","201212",27/02/2012 00:00:00,426.71,"57614","Photocopiers","REDACTED DATA","CANON UK LTD","1264300","http://opencorporates.com/companies/gb/1264300","523797128"
"London Borough of Redbridge","http://opendatacommunities.org/doc/london-borough-council/redbridge","6BADULTSOCIA","Adult Social Care","6COTHADSERV","Other Adult Services","REV","Revenue","R4389","PCT Older Person Home Care","05-THIRD","Third Party Payments","05A","Independent units within the council","6502","Agency Homecare (Payments To Independent Units)","90315210","201301",04/04/2012 00:00:00,512.5,"43419","Home Care Services","REDACTED DATA","ENARA LTD (ENARA COMMUNITY CARE)","65455420","http://opencorporates.com/companies/gb/65455420",""
"London Borough of Redbridge","http://opendatacommunities.org/doc/london-borough-council/redbridge","6BADULTSOCIA","Adult Social Care","6COLDINCMENT","Older People (65 or over) incl. Older Mentally Ill","REV","Revenue","R4211","Older People Direct Payments","09-INCOME","Income","09C","Customer & Client Receipts","8545","Direct Payments Income","3222841","201212",12/03/2012 00:00:00,-40.68,"56800","Payroll Services","REDACTED DATA","HUMAN MANAGEMENT ASSISTANCE-CLIENT ACCOUNT","4752026","http://opencorporates.com/companies/gb/4752026","815230071"
"London Borough of Redbridge","http://opendatacommunities.org/doc/london-borough-council/redbridge","1BCENTRALPUB","Central Services to the Public","1CEMERGPLAN","Emergency Planning","REV","Revenue","R9361","Local Land Charges","04-SUPPLIES","Supplies And Services","04D","Printing, stationery and general office expenses","5705","Postage","60173882","201301",30/03/2012 00:00:00,427.6,"24510","Delivery Services","REDACTED DATA","DX NETWORK SERVICES LTD","5026914","http://opencorporates.com/companies/gb/5026914","849741385"
"London Borough of Redbridge","http://opendatacommunities.org/doc/london-borough-council/redbridge","1BCENTRALPUB","Central Services to the Public","1CEMERGPLAN","Emergency Planning","REV","Revenue","R9361","Local Land Charges","04-SUPPLIES","Supplies And Services","04D","Printing, stationery and general office expenses","5705","Postage","60173884","201301",30/03/2012 00:00:00,427.6,"24510","Delivery Services","REDACTED DATA","DX NETWORK SERVICES LTD","5026914","http://opencorporates.com/companies/gb/5026914","849741385"
"London Borough of Redbridge","http://opendatacommunities.org/doc/london-borough-council/redbridge","4BMANGT&SUPP","Management & Support Services","4CHIGHRDROUT","Highways/Roads (Routine)","REV","Revenue","R7070","Reactive Maintenance","05-THIRD","Third Party Payments","05H","Private contractors","6915","Contractor Payments","3224979","201212",21/03/2012 00:00:00,427.62,"18632","Civil Engineers","REDACTED DATA","KENSON CONTRACTORS BENINGTON LTD","1314691","http://opencorporates.com/companies/gb/1314691","301629589"
"London Borough of Redbridge","http://opendatacommunities.org/doc/london-borough-council/redbridge","6BADULTSOCIA","Adult Social Care","6COLDINCMENT","Older People (65 or over) incl. Older Mentally Ill","REV","Revenue","R4211","Older People Direct Payments","09-INCOME","Income","09C","Customer & Client Receipts","8545","Direct Payments Income","3222531","201212",12/03/2012 00:00:00,-40.44,"56800","Payroll Services","REDACTED DATA","HUMAN MANAGEMENT ASSISTANCE-CLIENT ACCOUNT","4752026","http://opencorporates.com/companies/gb/4752026","815230071"
"London Borough of Redbridge","http://opendatacommunities.org/doc/london-borough-council/redbridge","1BOTHEROPI&E","Other Operating Income & Expenditure","1CTRADSURDEF","Trading Account Surpluses & Deficits","REV","Revenue","R9147","Invoices Holding Account Leisure","02-PREMISES","Premises","02I","Grounds maintenance costs","4753","Trees / Recreational","60172620","201212",16/03/2012 00:00:00,41,"91569","Nurserymen - Trees, Shrubs & Bonsai","REDACTED DATA","PRINCIPAL TREES LTD","7035737","http://opencorporates.com/companies/gb/7035737","980080328"
"London Borough of Redbridge","http://opendatacommunities.org/doc/london-borough-council/redbridge","6BADULTSOCIA","Adult Social Care","6CADPHYSDIS","Adults Under 65 with Phys Disab or Sensory Impair","REV","Revenue","R4214","PD Direct Payments","06-TRANSFER","Transfer Payments","06B","Social Services Clients","7053","Direct Payments","3226063","201301",10/04/2012 00:00:00,-124.3,"56800","Payroll Services","REDACTED DATA","HUMAN MANAGEMENT ASSISTANCE-CLIENT ACCOUNT","4752026","http://opencorporates.com/companies/gb/4752026","815230071"
"London Borough of Redbridge","http://opendatacommunities.org/doc/london-borough-council/redbridge","6BADULTSOCIA","Adult Social Care","6CADPHYSDIS","Adults Under 65 with Phys Disab or Sensory Impair","REV","Revenue","R4214","PD Direct Payments","06-TRANSFER","Transfer Payments","06B","Social Services Clients","7053","Direct Payments","3226063","201301",10/04/2012 00:00:00,638,"56800","Payroll Services","REDACTED DATA","HUMAN MANAGEMENT ASSISTANCE-CLIENT ACCOUNT","4752026","http://opencorporates.com/companies/gb/4752026","815230071"
"London Borough of Redbridge","http://opendatacommunities.org/doc/london-borough-council/redbridge","6BADULTSOCIA","Adult Social Care","6COLDINCMENT","Older People (65 or over) incl. Older Mentally Ill","REV","Revenue","R4211","Older People Direct Payments","06-TRANSFER","Transfer Payments","06B","Social Services Clients","7053","Direct Payments","3222526","201212",12/03/2012 00:00:00,632.8,"56800","Payroll Services","REDACTED DATA","HUMAN MANAGEMENT ASSISTANCE-CLIENT ACCOUNT","4752026","http://opencorporates.com/companies/gb/4752026","815230071"
"London Borough of Redbridge","http://opendatacommunities.org/doc/london-borough-council/redbridge","6BADULTSOCIA","Adult Social Care","6COLDINCMENT","Older People (65 or over) incl. Older Mentally Ill","REV","Revenue","R4391","OP Home Care","05-THIRD","Third Party Payments","05A","Independent units within the council","6502","Agency Homecare (Payments To Independent Units)","90317538","201301",20/04/2012 00:00:00,514.14,"43419","Home Care Services","REDACTED DATA","FASTFLOW DE VERE CARE","",,""
"London Borough of Redbridge","http://opendatacommunities.org/doc/london-borough-council/redbridge","6BADULTSOCIA","Adult Social Care","6COTHADSERV","Other Adult Services","REV","Revenue","R4389","PCT Older Person Home Care","05-THIRD","Third Party Payments","05A","Independent units within the council","6502","Agency Homecare (Payments To Independent Units)","90308965","201212",09/03/2012 00:00:00,514.37,"43419","Home Care Services","REDACTED DATA","ENARA LTD (ENARA COMMUNITY CARE)","65455420","http://opencorporates.com/companies/gb/65455420",""
"London Borough of Redbridge","http://opendatacommunities.org/doc/london-borough-council/redbridge","6BSOCIALSERV","Social Services","6CCHILLOOKED","Children Looked After","REV","Revenue","R2132","CLAFH - Asylum Seekers Non Grant Funded","06-TRANSFER","Transfer Payments","06B","Social Services Clients","7055","Habitual Residents","3221566","201212",16/01/2012 00:00:00,428.64,"43419","Home Care Services","REDACTED DATA","LCS PARTNERSHIPS LTD (LONDON CARE SOLUTIONS)","6820538","http://opencorporates.com/companies/gb/6820538","975528279"
"London Borough of Redbridge","http://opendatacommunities.org/doc/london-borough-council/redbridge","6BADULTSOCIA","Adult Social Care","6COLDINCMENT","Older People (65 or over) incl. Older Mentally Ill","REV","Revenue","R4391","OP Home Care","05-THIRD","Third Party Payments","05A","Independent units within the council","6502","Agency Homecare (Payments To Independent Units)","90318368","201301",12/04/2012 00:00:00,515.24,"53280","Nursing Agencies","REDACTED DATA","IMMACULATE HEALTHCARE SERVICES LIMITED","",,""
"London Borough of Redbridge","http://opendatacommunities.org/doc/london-borough-council/redbridge","6BADULTSOCIA","Adult Social Care","6CADMENHLTH","Adults Under 65 with Mental Health Needs","REV","Revenue","R4163","Extra Care","04-SUPPLIES","Supplies And Services","04D","Printing, stationery and general office expenses","5705","Postage","60173517","201301",26/03/2012 00:00:00,21.47,"60230","Post Office Services","REDACTED DATA","NEOPOST LIMITED","",,"597265489"
"London Borough of Redbridge","http://opendatacommunities.org/doc/london-borough-council/redbridge","6BADULTSOCIA","Adult Social Care","6CADPHYSDIS","Adults Under 65 with Phys Disab or Sensory Impair","REV","Revenue","R4163","Extra Care","04-SUPPLIES","Supplies And Services","04D","Printing, stationery and general office expenses","5705","Postage","60173517","201301",26/03/2012 00:00:00,42.94,"60230","Post Office Services","REDACTED DATA","NEOPOST LIMITED","",,"597265489"
"London Borough of Redbridge","http://opendatacommunities.org/doc/london-borough-council/redbridge","6BADULTSOCIA","Adult Social Care","6COLDINCMENT","Older People (65 or over) incl. Older Mentally Ill","REV","Revenue","R4163","Extra Care","04-SUPPLIES","Supplies And Services","04D","Printing, stationery and general office expenses","5705","Postage","60173517","201301",26/03/2012 00:00:00,365.02,"60230","Post Office Services","REDACTED DATA","NEOPOST LIMITED","",,"597265489"
"London Borough of Redbridge","http://opendatacommunities.org/doc/london-borough-council/redbridge","4BMANGT&SUPP","Management & Support Services","4CHIGHRDROUT","Highways/Roads (Routine)","REV","Revenue","R7070","Reactive Maintenance","05-THIRD","Third Party Payments","05H","Private contractors","6915","Contractor Payments","3229218","201301",17/04/2012 00:00:00,429.5,"18632","Civil Engineers","REDACTED DATA","KENSON CONTRACTORS BENINGTON LTD","1314691","http://opencorporates.com/companies/gb/1314691","301629589"
"London Borough of Redbridge","http://opendatacommunities.org/doc/london-borough-council/redbridge","6BADULTSOCIA","Adult Social Care","6COLDINCMENT","Older People (65 or over) incl. Older Mentally Ill","REV","Revenue","R4211","Older People Direct Payments","06-TRANSFER","Transfer Payments","06B","Social Services Clients","7053","Direct Payments","3226140","201301",10/04/2012 00:00:00,-138.43,"56800","Payroll Services","REDACTED DATA","HUMAN MANAGEMENT ASSISTANCE-CLIENT ACCOUNT","4752026","http://opencorporates.com/companies/gb/4752026","815230071"
"London Borough of Redbridge","http://opendatacommunities.org/doc/london-borough-council/redbridge","6BADULTSOCIA","Adult Social Care","6COLDINCMENT","Older People (65 or over) incl. Older Mentally Ill","REV","Revenue","R4211","Older People Direct Payments","06-TRANSFER","Transfer Payments","06B","Social Services Clients","7053","Direct Payments","3226140","201301",10/04/2012 00:00:00,710.55,"56800","Payroll Services","REDACTED DATA","HUMAN MANAGEMENT ASSISTANCE-CLIENT ACCOUNT","4752026","http://opencorporates.com/companies/gb/4752026","815230071"
"London Borough of Redbridge","http://opendatacommunities.org/doc/london-borough-council/redbridge","6BADULTSOCIA","Adult Social Care","6COLDINCMENT","Older People (65 or over) incl. Older Mentally Ill","REV","Revenue","R4211","Older People Direct Payments","09-INCOME","Income","09C","Customer & Client Receipts","8545","Direct Payments Income","3226140","201301",10/04/2012 00:00:00,10.17,"56800","Payroll Services","REDACTED DATA","HUMAN MANAGEMENT ASSISTANCE-CLIENT ACCOUNT","4752026","http://opencorporates.com/companies/gb/4752026","815230071"
"London Borough of Redbridge","http://opendatacommunities.org/doc/london-borough-council/redbridge","6BADULTSOCIA","Adult Social Care","6COLDINCMENT","Older People (65 or over) incl. Older Mentally Ill","REV","Revenue","R4211","Older People Direct Payments","09-INCOME","Income","09C","Customer & Client Receipts","8545","Direct Payments Income","3226140","201301",10/04/2012 00:00:00,-66.8,"56800","Payroll Services","REDACTED DATA","HUMAN MANAGEMENT ASSISTANCE-CLIENT ACCOUNT","4752026","http://opencorporates.com/companies/gb/4752026","815230071"
"London Borough of Redbridge","http://opendatacommunities.org/doc/london-borough-council/redbridge","6BADULTSOCIA","Adult Social Care","6COLDINCMENT","Older People (65 or over) incl. Older Mentally Ill","REV","Revenue","R4211","Older People Direct Payments","06-TRANSFER","Transfer Payments","06B","Social Services Clients","7053","Direct Payments","3226253","201301",10/04/2012 00:00:00,-197.75,"56800","Payroll Services","REDACTED DATA","HUMAN MANAGEMENT ASSISTANCE-CLIENT ACCOUNT","4752026","http://opencorporates.com/companies/gb/4752026","815230071"
"London Borough of Redbridge","http://opendatacommunities.org/doc/london-borough-council/redbridge","6BADULTSOCIA","Adult Social Care","6COLDINCMENT","Older People (65 or over) incl. Older Mentally Ill","REV","Revenue","R4211","Older People Direct Payments","06-TRANSFER","Transfer Payments","06B","Social Services Clients","7053","Direct Payments","3226253","201301",10/04/2012 00:00:00,1015,"56800","Payroll Services","REDACTED DATA","HUMAN MANAGEMENT ASSISTANCE-CLIENT ACCOUNT","4752026","http://opencorporates.com/companies/gb/4752026","815230071"
"London Borough of Redbridge","http://opendatacommunities.org/doc/london-borough-council/redbridge","6BADULTSOCIA","Adult Social Care","6COLDINCMENT","Older People (65 or over) incl. Older Mentally Ill","REV","Revenue","R4211","Older People Direct Payments","09-INCOME","Income","09C","Customer & Client Receipts","8545","Direct Payments Income","3226253","201301",10/04/2012 00:00:00,-371.9,"56800","Payroll Services","REDACTED DATA","HUMAN MANAGEMENT ASSISTANCE-CLIENT ACCOUNT","4752026","http://opencorporates.com/companies/gb/4752026","815230071"
"London Borough of Redbridge","http://opendatacommunities.org/doc/london-borough-council/redbridge","6BADULTSOCIA","Adult Social Care","6COLDINCMENT","Older People (65 or over) incl. Older Mentally Ill","REV","Revenue","R4211","Older People Direct Payments","09-INCOME","Income","09C","Customer & Client Receipts","8545","Direct Payments Income","3226253","201301",10/04/2012 00:00:00,70.26,"56800","Payroll Services","REDACTED DATA","HUMAN MANAGEMENT ASSISTANCE-CLIENT ACCOUNT","4752026","http://opencorporates.com/companies/gb/4752026","815230071"
"London Borough of Redbridge","http://opendatacommunities.org/doc/london-borough-council/redbridge","3BLEACENTFND","LEA Centrally Held School Funds","3CSUPPORTSEN","Supporting Special Education Needs","REV","Revenue","R3431","Pupil Referral Unit (KS4)","01-EMPLOYEES","Employees","01A","Direct employee expenses","4","Agency Staff - Pay","60173842","201301",13/04/2012 00:00:00,430,"31230","Employment & Recruitment Agencies","REDACTED DATA","TOTAL ASSIST EDUCATION LTD","5368892","http://opencorporates.com/companies/gb/5368892","946069692"
"London Borough of Redbridge","http://opendatacommunities.org/doc/london-borough-council/redbridge","3BLEACENTFND","LEA Centrally Held School Funds","3CSUPPORTSEN","Supporting Special Education Needs","REV","Revenue","R3431","Pupil Referral Unit (KS4)","01-EMPLOYEES","Employees","01A","Direct employee expenses","4","Agency Staff - Pay","60174542","201301",07/02/2012 00:00:00,430,"31230","Employment & Recruitment Agencies","REDACTED DATA","TOTAL ASSIST EDUCATION LTD","5368892","http://opencorporates.com/companies/gb/5368892","946069692"
"London Borough of Redbridge","http://opendatacommunities.org/doc/london-borough-council/redbridge","3BLEACENTFND","LEA Centrally Held School Funds","3CSUPPORTSEN","Supporting Special Education Needs","REV","Revenue","R3431","Pupil Referral Unit (KS4)","01-EMPLOYEES","Employees","01A","Direct employee expenses","4","Agency Staff - Pay","60173839","201301",16/04/2012 00:00:00,430,"31230","Employment & Recruitment Agencies","REDACTED DATA","TOTAL ASSIST EDUCATION LTD","5368892","http://opencorporates.com/companies/gb/5368892","946069692"
"London Borough of Redbridge","http://opendatacommunities.org/doc/london-borough-council/redbridge","3BLEACENTFND","LEA Centrally Held School Funds","3CSUPPORTSEN","Supporting Special Education Needs","REV","Revenue","R3431","Pupil Referral Unit (KS4)","01-EMPLOYEES","Employees","01A","Direct employee expenses","4","Agency Staff - Pay","60174543","201301",07/02/2012 00:00:00,430,"31230","Employment & Recruitment Agencies","REDACTED DATA","TOTAL ASSIST EDUCATION LTD","5368892","http://opencorporates.com/companies/gb/5368892","946069692"
"London Borough of Redbridge","http://opendatacommunities.org/doc/london-borough-council/redbridge","3BLEACENTFND","LEA Centrally Held School Funds","3CSUPPORTSEN","Supporting Special Education Needs","REV","Revenue","R3431","Pupil Referral Unit (KS4)","01-EMPLOYEES","Employees","01A","Direct employee expenses","4","Agency Staff - Pay","60172311","201212",26/03/2012 00:00:00,430,"31230","Employment & Recruitment Agencies","REDACTED DATA","TOTAL ASSIST EDUCATION LTD","5368892","http://opencorporates.com/companies/gb/5368892","946069692"
"London Borough of Redbridge","http://opendatacommunities.org/doc/london-borough-council/redbridge","6BADULTSOCIA","Adult Social Care","6COLDINCMENT","Older People (65 or over) incl. Older Mentally Ill","REV","Revenue","R4329","Elderberries","04-SUPPLIES","Supplies And Services","04B","Catering","5601","Catering Provisions (Food & Drink)","60171035","201212",12/03/2012 00:00:00,516,"16250","Catering Food and Drink Suppliers","REDACTED DATA","NEW TESTAMENT ASSEMBLY COMMUNITY PROJECTS","CHARITY 1062661/0","http://opencorporates.com/companies/gb/CHARITY 1062661/0",""
"London Borough of Redbridge","http://opendatacommunities.org/doc/london-borough-council/redbridge","6BADULTSOCIA","Adult Social Care","6COTHADSERV","Other Adult Services","REV","Revenue","R4389","PCT Older Person Home Care","05-THIRD","Third Party Payments","05A","Independent units within the council","6502","Agency Homecare (Payments To Independent Units)","90312026","201212",22/03/2012 00:00:00,516.04,"43419","Home Care Services","REDACTED DATA","ENARA LTD (ENARA COMMUNITY CARE)","65455420","http://opencorporates.com/companies/gb/65455420",""
"London Borough of Redbridge","http://opendatacommunities.org/doc/london-borough-council/redbridge","6BADULTSOCIA","Adult Social Care","6COTHADSERV","Other Adult Services","REV","Revenue","R4389","PCT Older Person Home Care","05-THIRD","Third Party Payments","05A","Independent units within the council","6502","Agency Homecare (Payments To Independent Units)","90319588","201301",17/04/2012 00:00:00,516.45,"43419","Home Care Services","REDACTED DATA","ENARA LTD (ENARA COMMUNITY CARE)","65455420","http://opencorporates.com/companies/gb/65455420",""
"London Borough of Redbridge","http://opendatacommunities.org/doc/london-borough-council/redbridge","1BOTHEROPI&E","Other Operating Income & Expenditure","1CTRADSURDEF","Trading Account Surpluses & Deficits","REV","Revenue","R9830","Print Team","04-SUPPLIES","Supplies And Services","04D","Printing, stationery and general office expenses","5703","Reprographics","60169640","201212",02/03/2012 00:00:00,430.55,"61540","Printers","REDACTED DATA","AMX OFFSET SERVICES","",,"595486872"
"London Borough of Redbridge","http://opendatacommunities.org/doc/london-borough-council/redbridge","3BOPTIONHLDG","Optional Holding Accounts","3CYOUTH","Youth Service","REV","Revenue","R3359","Effective Practice","04-SUPPLIES","Supplies And Services","04F","Communications and computing","5853","Computer Software","60172240","201212",07/03/2012 00:00:00,517,"79980","Training Services","REDACTED DATA","CAREWORKS LIMITED","",,"796059089"
"London Borough of Redbridge","http://opendatacommunities.org/doc/london-borough-council/redbridge","3BOPTIONHLDG","Optional Holding Accounts","3CADULT","Adult Education","REV","Revenue","R3490","RIAE   Home Cost Centre","04-SUPPLIES","Supplies And Services","04A","Equipment, furniture and materials","5502","Equipment Purchase","3225603","201301",02/04/2012 00:00:00,430.85,"20703","Computer Systems and Software","REDACTED DATA","MISCO COMPUTER SUPPLIES LTD","",,""
"London Borough of Redbridge","http://opendatacommunities.org/doc/london-borough-council/redbridge","4BMANGT&SUPP","Management & Support Services","4CHIGHRDROUT","Highways/Roads (Routine)","REV","Revenue","R7070","Reactive Maintenance","05-THIRD","Third Party Payments","05H","Private contractors","6915","Contractor Payments","3223451","201212",09/03/2012 00:00:00,430.98,"18632","Civil Engineers","REDACTED DATA","KENSON CONTRACTORS BENINGTON LTD","1314691","http://opencorporates.com/companies/gb/1314691","301629589"
"London Borough of Redbridge","http://opendatacommunities.org/doc/london-borough-council/redbridge","6BADULTSOCIA","Adult Social Care","6COTHADSERV","Other Adult Services","REV","Revenue","R4389","PCT Older Person Home Care","05-THIRD","Third Party Payments","05A","Independent units within the council","6502","Agency Homecare (Payments To Independent Units)","90312161","201212",22/03/2012 00:00:00,517.71,"43419","Home Care Services","REDACTED DATA","ENARA LTD (ENARA COMMUNITY CARE)","65455420","http://opencorporates.com/companies/gb/65455420",""
"London Borough of Redbridge","http://opendatacommunities.org/doc/london-borough-council/redbridge","9BNONBVO","Outside the BVACOP Objective Structure","9CNONBVO","Outside the BVACOP Objective Structure","REV","Revenue","R5031","Central Heating HRA","02-PREMISES","Premises","02E","Water services","4005","Heating and Hot Water","3227920","201301",27/03/2012 00:00:00,496.88,"30586","Electricity Companies","REDACTED DATA","EDF ENERGY 1 LTD (PO BOX 3956 PLYMOUTH)","",,"523041202"
"London Borough of Redbridge","http://opendatacommunities.org/doc/london-borough-council/redbridge","9BNONBVO","Outside the BVACOP Objective Structure","9CNONBVO","Outside the BVACOP Objective Structure","REV","Revenue","R5031","Central Heating HRA","02-PREMISES","Premises","02E","Water services","4005","Heating and Hot Water","3227920","201301",27/03/2012 00:00:00,-3.59,"30586","Electricity Companies","REDACTED DATA","EDF ENERGY 1 LTD (PO BOX 3956 PLYMOUTH)","",,"523041202"
"London Borough of Redbridge","http://opendatacommunities.org/doc/london-borough-council/redbridge","6BADULTSOCIA","Adult Social Care","6CADLEARNDIS","Adults Under 65 with Learning Disabilities","REV","Revenue","R4297","Out There Project","01-EMPLOYEES","Employees","01A","Direct employee expenses","4","Agency Staff - Pay","60170622","201212",12/03/2012 00:00:00,432.25,"31230","Employment & Recruitment Agencies","REDACTED DATA","CRASTER RECRUITMENT LTD","7654534","http://opencorporates.com/companies/gb/7654534","119719983"
"London Borough of Redbridge","http://opendatacommunities.org/doc/london-borough-council/redbridge","6BADULTSOCIA","Adult Social Care","6COLDINCMENT","Older People (65 or over) incl. Older Mentally Ill","REV","Revenue","R4391","OP Home Care","05-THIRD","Third Party Payments","05A","Independent units within the council","6502","Agency Homecare (Payments To Independent Units)","90318899","201301",18/04/2012 00:00:00,518.88,"53350","Nursing Homes","REDACTED DATA","ELEANOR NURSING & SOCIALCARE LTD","4393038","http://opencorporates.com/companies/gb/4393038",""
"London Borough of Redbridge","http://opendatacommunities.org/doc/london-borough-council/redbridge","6BADULTSOCIA","Adult Social Care","6CADLEARNDIS","Adults Under 65 with Learning Disabilities","REV","Revenue","R4394","LD - Homecare","05-THIRD","Third Party Payments","05A","Independent units within the council","6502","Agency Homecare (Payments To Independent Units)","90318263","201301",17/04/2012 00:00:00,519.71,"17580","Childcare Services","REDACTED DATA","DIGNITY CARE PLUS LTD (SURECARE ILFORD)","7342446","http://opencorporates.com/companies/gb/7342446",""
"London Borough of Redbridge","http://opendatacommunities.org/doc/london-borough-council/redbridge","3BNONSCHFUND","Non-School Funding","3CNONSCH","Non Schools","REV","Revenue","R3960","FiND","04-SUPPLIES","Supplies And Services","04K","Miscellaneous expenses","6227","Furniture Removal & Storage","60174232","201301",23/04/2012 00:00:00,433.33,"64550","Removals - Business and Industrial","REDACTED DATA","SONNY WHITE","",,""
"London Borough of Redbridge","http://opendatacommunities.org/doc/london-borough-council/redbridge","3BNONSCHFUND","Non-School Funding","3CNONSCH","Non Schools","REV","Revenue","R3960","FiND","04-SUPPLIES","Supplies And Services","04K","Miscellaneous expenses","6227","Furniture Removal & Storage","60171786","201212",21/03/2012 00:00:00,433.33,"64550","Removals - Business and Industrial","REDACTED DATA","SONNY WHITE","",,""
"London Borough of Redbridge","http://opendatacommunities.org/doc/london-borough-council/redbridge","6BADULTSOCIA","Adult Social Care","6COTHADSERV","Other Adult Services","REV","Revenue","R4201","LD - Care Packages","05-THIRD","Third Party Payments","05H","Private contractors","6910","Care Packages","90319917","201301",23/04/2012 00:00:00,520.3,"1266","Accommodation Agencies - Residential","REDACTED DATA","FAMILY MOSAIC HOUSING ASSOCIATION (ALBION HSE)","",,"547939979"
"London Borough of Redbridge","http://opendatacommunities.org/doc/london-borough-council/redbridge","6BADULTSOCIA","Adult Social Care","6CADLEARNDIS","Adults Under 65 with Learning Disabilities","REV","Revenue","R4296","Mulberry Lodge","01-EMPLOYEES","Employees","01A","Direct employee expenses","409","Agency Staff Pay","60171028","201212",12/03/2012 00:00:00,433.7,"31230","Employment & Recruitment Agencies","REDACTED DATA","CRASTER RECRUITMENT LTD","7654534","http://opencorporates.com/companies/gb/7654534","119719983"
"London Borough of Redbridge","http://opendatacommunities.org/doc/london-borough-council/redbridge","6BADULTSOCIA","Adult Social Care","6CADLEARNDIS","Adults Under 65 with Learning Disabilities","REV","Revenue","R4394","LD - Homecare","05-THIRD","Third Party Payments","05A","Independent units within the council","6502","Agency Homecare (Payments To Independent Units)","90309391","201212",15/03/2012 00:00:00,520.56,"31230","Employment & Recruitment Agencies","REDACTED DATA","SHARED CARE SERVICES LTD","4704680","http://opencorporates.com/companies/gb/4704680",""
"London Borough of Redbridge","http://opendatacommunities.org/doc/london-borough-council/redbridge","6BADULTSOCIA","Adult Social Care","6COTHADSERV","Other Adult Services","REV","Revenue","R4389","PCT Older Person Home Care","05-THIRD","Third Party Payments","05A","Independent units within the council","6502","Agency Homecare (Payments To Independent Units)","90319457","201301",17/04/2012 00:00:00,521.25,"43419","Home Care Services","REDACTED DATA","ENARA LTD (ENARA COMMUNITY CARE)","65455420","http://opencorporates.com/companies/gb/65455420",""
"London Borough of Redbridge","http://opendatacommunities.org/doc/london-borough-council/redbridge","6BADULTSOCIA","Adult Social Care","6CADPHYSDIS","Adults Under 65 with Phys Disab or Sensory Impair","REV","Revenue","R4206","PCT Physical Disability and Sensory Home  Care","05-THIRD","Third Party Payments","05A","Independent units within the council","6502","Agency Homecare (Payments To Independent Units)","90310250","201212",21/03/2012 00:00:00,521.52,"31230","Employment & Recruitment Agencies","REDACTED DATA","CARE ASSOCIATES (RECRUITMENT) LTD.","",,""
"London Borough of Redbridge","http://opendatacommunities.org/doc/london-borough-council/redbridge","6BADULTSOCIA","Adult Social Care","6COTHADSERV","Other Adult Services","REV","Revenue","R4389","PCT Older Person Home Care","05-THIRD","Third Party Payments","05A","Independent units within the council","6502","Agency Homecare (Payments To Independent Units)","90309095","201212",09/03/2012 00:00:00,521.66,"43419","Home Care Services","REDACTED DATA","ENARA LTD (ENARA COMMUNITY CARE)","65455420","http://opencorporates.com/companies/gb/65455420",""
"London Borough of Redbridge","http://opendatacommunities.org/doc/london-borough-council/redbridge","6BADULTSOCIA","Adult Social Care","6COLDINCMENT","Older People (65 or over) incl. Older Mentally Ill","REV","Revenue","R4391","OP Home Care","05-THIRD","Third Party Payments","05A","Independent units within the council","6502","Agency Homecare (Payments To Independent Units)","90309115","201212",09/03/2012 00:00:00,521.82,"43419","Home Care Services","REDACTED DATA","ENARA LTD (ENARA COMMUNITY CARE)","65455420","http://opencorporates.com/companies/gb/65455420",""
"London Borough of Redbridge","http://opendatacommunities.org/doc/london-borough-council/redbridge","3BLEACENTFND","LEA Centrally Held School Funds","3CSUPPORTSEN","Supporting Special Education Needs","REV","Revenue","R3341","Tuition Service","10-CAPFIN","Capital Financing","50G","Capital - Other Capital Outlay","7407","Capital Expenditure","60171921","201212",22/03/2012 00:00:00,435,"20623","Computer Consumables & Stationery","REDACTED DATA","TOUCAN COMPUTING LTD","3185327","http://opencorporates.com/companies/gb/3185327","676198387"
"London Borough of Redbridge","http://opendatacommunities.org/doc/london-borough-council/redbridge","6BSOCIALSERV","Social Services","6CCHILLOOKED","Children Looked After","REV","Revenue","R2157","CP and EI - Business and Finance Social Care","01-EMPLOYEES","Employees","01A","Direct employee expenses","4","Agency Staff - Pay","60173274","201301",03/04/2012 00:00:00,435.05,"31230","Employment & Recruitment Agencies","REDACTED DATA","BERRY RECRUITMENT LTD","7036111","http://opencorporates.com/companies/gb/7036111","981989739"
"London Borough of Redbridge","http://opendatacommunities.org/doc/london-borough-council/redbridge","6BSOCIALSERV","Social Services","6CCHILLOOKED","Children Looked After","REV","Revenue","R2157","CP and EI - Business and Finance Social Care","01-EMPLOYEES","Employees","01A","Direct employee expenses","4","Agency Staff - Pay","60173218","201301",28/03/2012 00:00:00,435.05,"31230","Employment & Recruitment Agencies","REDACTED DATA","BERRY RECRUITMENT LTD","7036111","http://opencorporates.com/companies/gb/7036111","981989739"
"London Borough of Redbridge","http://opendatacommunities.org/doc/london-borough-council/redbridge","6BSOCIALSERV","Social Services","6CFAMSUPPSER","Family Support Services","REV","Revenue","R2159","CP and EI - Thackeray Drive Residential","01-EMPLOYEES","Employees","01A","Direct employee expenses","4","Agency Staff - Pay","60169052","201212",22/02/2012 00:00:00,435.05,"31230","Employment & Recruitment Agencies","REDACTED DATA","BERRY RECRUITMENT LTD","7036111","http://opencorporates.com/companies/gb/7036111","981989739"
"London Borough of Redbridge","http://opendatacommunities.org/doc/london-borough-council/redbridge","6BADULTSOCIA","Adult Social Care","6COLDINCMENT","Older People (65 or over) incl. Older Mentally Ill","REV","Revenue","R4211","Older People Direct Payments","06-TRANSFER","Transfer Payments","06B","Social Services Clients","7053","Direct Payments","3222740","201212",12/03/2012 00:00:00,632.8,"56800","Payroll Services","REDACTED DATA","HUMAN MANAGEMENT ASSISTANCE-CLIENT ACCOUNT","4752026","http://opencorporates.com/companies/gb/4752026","815230071"
"London Borough of Redbridge","http://opendatacommunities.org/doc/london-borough-council/redbridge","6BADULTSOCIA","Adult Social Care","6COLDINCMENT","Older People (65 or over) incl. Older Mentally Ill","REV","Revenue","R4391","OP Home Care","05-THIRD","Third Party Payments","05A","Independent units within the council","6502","Agency Homecare (Payments To Independent Units)","90318297","201301",10/04/2012 00:00:00,523.96,"53280","Nursing Agencies","REDACTED DATA","IMMACULATE HEALTHCARE SERVICES LIMITED","",,""
"London Borough of Redbridge","http://opendatacommunities.org/doc/london-borough-council/redbridge","6BADULTSOCIA","Adult Social Care","6COLDINCMENT","Older People (65 or over) incl. Older Mentally Ill","REV","Revenue","R4391","OP Home Care","05-THIRD","Third Party Payments","05A","Independent units within the council","6502","Agency Homecare (Payments To Independent Units)","90314051","201301",30/03/2012 00:00:00,523.96,"53280","Nursing Agencies","REDACTED DATA","IMMACULATE HEALTHCARE SERVICES LIMITED","",,""
"London Borough of Redbridge","http://opendatacommunities.org/doc/london-borough-council/redbridge","6BADULTSOCIA","Adult Social Care","6COTHADSERV","Other Adult Services","REV","Revenue","R4390","PCT HIV Home Care","05-THIRD","Third Party Payments","05A","Independent units within the council","6502","Agency Homecare (Payments To Independent Units)","90314019","201301",26/03/2012 00:00:00,523.96,"53280","Nursing Agencies","REDACTED DATA","IMMACULATE HEALTHCARE SERVICES LIMITED","",,""
"London Borough of Redbridge","http://opendatacommunities.org/doc/london-borough-council/redbridge","6BADULTSOCIA","Adult Social Care","6COTHADSERV","Other Adult Services","REV","Revenue","R4390","PCT HIV Home Care","05-THIRD","Third Party Payments","05A","Independent units within the council","6502","Agency Homecare (Payments To Independent Units)","90318300","201301",10/04/2012 00:00:00,523.96,"53280","Nursing Agencies","REDACTED DATA","IMMACULATE HEALTHCARE SERVICES LIMITED","",,""
"London Borough of Redbridge","http://opendatacommunities.org/doc/london-borough-council/redbridge","6BADULTSOCIA","Adult Social Care","6COTHADSERV","Other Adult Services","REV","Revenue","R4390","PCT HIV Home Care","05-THIRD","Third Party Payments","05A","Independent units within the council","6502","Agency Homecare (Payments To Independent Units)","90314054","201301",30/03/2012 00:00:00,523.96,"53280","Nursing Agencies","REDACTED DATA","IMMACULATE HEALTHCARE SERVICES LIMITED","",,""
"London Borough of Redbridge","http://opendatacommunities.org/doc/london-borough-council/redbridge","6BADULTSOCIA","Adult Social Care","6COLDINCMENT","Older People (65 or over) incl. Older Mentally Ill","REV","Revenue","R4391","OP Home Care","05-THIRD","Third Party Payments","05A","Independent units within the council","6502","Agency Homecare (Payments To Independent Units)","90310900","201212",16/03/2012 00:00:00,523.96,"53280","Nursing Agencies","REDACTED DATA","IMMACULATE HEALTHCARE SERVICES LIMITED","",,""
"London Borough of Redbridge","http://opendatacommunities.org/doc/london-borough-council/redbridge","6BADULTSOCIA","Adult Social Care","6COLDINCMENT","Older People (65 or over) incl. Older Mentally Ill","REV","Revenue","R4391","OP Home Care","05-THIRD","Third Party Payments","05A","Independent units within the council","6502","Agency Homecare (Payments To Independent Units)","90308164","201212",09/03/2012 00:00:00,523.96,"53280","Nursing Agencies","REDACTED DATA","IMMACULATE HEALTHCARE SERVICES LIMITED","",,""
"London Borough of Redbridge","http://opendatacommunities.org/doc/london-borough-council/redbridge","6BADULTSOCIA","Adult Social Care","6COLDINCMENT","Older People (65 or over) incl. Older Mentally Ill","REV","Revenue","R4391","OP Home Care","05-THIRD","Third Party Payments","05A","Independent units within the council","6502","Agency Homecare (Payments To Independent Units)","90310960","201212",23/03/2012 00:00:00,523.96,"53280","Nursing Agencies","REDACTED DATA","IMMACULATE HEALTHCARE SERVICES LIMITED","",,""
"London Borough of Redbridge","http://opendatacommunities.org/doc/london-borough-council/redbridge","6BADULTSOCIA","Adult Social Care","6COLDINCMENT","Older People (65 or over) incl. Older Mentally Ill","REV","Revenue","R4391","OP Home Care","05-THIRD","Third Party Payments","05A","Independent units within the council","6502","Agency Homecare (Payments To Independent Units)","90308105","201212",02/03/2012 00:00:00,523.96,"53280","Nursing Agencies","REDACTED DATA","IMMACULATE HEALTHCARE SERVICES LIMITED","",,""
"London Borough of Redbridge","http://opendatacommunities.org/doc/london-borough-council/redbridge","6BADULTSOCIA","Adult Social Care","6COTHADSERV","Other Adult Services","REV","Revenue","R4390","PCT HIV Home Care","05-THIRD","Third Party Payments","05A","Independent units within the council","6502","Agency Homecare (Payments To Independent Units)","90308108","201212",02/03/2012 00:00:00,523.96,"53280","Nursing Agencies","REDACTED DATA","IMMACULATE HEALTHCARE SERVICES LIMITED","",,""
"London Borough of Redbridge","http://opendatacommunities.org/doc/london-borough-council/redbridge","6BADULTSOCIA","Adult Social Care","6COTHADSERV","Other Adult Services","REV","Revenue","R4390","PCT HIV Home Care","05-THIRD","Third Party Payments","05A","Independent units within the council","6502","Agency Homecare (Payments To Independent Units)","90310903","201212",16/03/2012 00:00:00,523.96,"53280","Nursing Agencies","REDACTED DATA","IMMACULATE HEALTHCARE SERVICES LIMITED","",,""
"London Borough of Redbridge","http://opendatacommunities.org/doc/london-borough-council/redbridge","6BADULTSOCIA","Adult Social Care","6COTHADSERV","Other Adult Services","REV","Revenue","R4390","PCT HIV Home Care","05-THIRD","Third Party Payments","05A","Independent units within the council","6502","Agency Homecare (Payments To Independent Units)","90308178","201212",12/03/2012 00:00:00,523.96,"53280","Nursing Agencies","REDACTED DATA","IMMACULATE HEALTHCARE SERVICES LIMITED","",,""
"London Borough of Redbridge","http://opendatacommunities.org/doc/london-borough-council/redbridge","5BGFHOUSING","General Fund Housing","5CHOUSSTRAT","Housing Strategy","REV","Revenue","R5517","Strategy","01-EMPLOYEES","Employees","01B","Indirect employee expenses","2403","External Training","60173951","201301",05/04/2012 00:00:00,436.67,"17020","Charities and Voluntary Organisations","REDACTED DATA","VISION REDBRIDGE CULTURE AND LEISURE","6032714","http://opencorporates.com/companies/gb/6032714","906429031"
"London Borough of Redbridge","http://opendatacommunities.org/doc/london-borough-council/redbridge","6BADULTSOCIA","Adult Social Care","6COTHADSERV","Other Adult Services","REV","Revenue","R4389","PCT Older Person Home Care","05-THIRD","Third Party Payments","05A","Independent units within the council","6502","Agency Homecare (Payments To Independent Units)","90315044","201301",03/04/2012 00:00:00,524.37,"43419","Home Care Services","REDACTED DATA","ENARA LTD (ENARA COMMUNITY CARE)","65455420","http://opencorporates.com/companies/gb/65455420",""
"London Borough of Redbridge","http://opendatacommunities.org/doc/london-borough-council/redbridge","2BENVIRONMEN","Environmental Services","2CENVTLHEALT","Environmental Health","REV","Revenue","R6020","Public Conveniences","02-PREMISES","Premises","02I","Grounds maintenance costs","4750","Grounds Maintenance","60171635","201212",20/03/2012 00:00:00,437.19,"17020","Charities and Voluntary Organisations","REDACTED DATA","VISION REDBRIDGE CULTURE AND LEISURE","6032714","http://opencorporates.com/companies/gb/6032714","906429031"
"London Borough of Redbridge","http://opendatacommunities.org/doc/london-borough-council/redbridge","9BNONBVO","Outside the BVACOP Objective Structure","9CNONBVO","Outside the BVACOP Objective Structure","REV","Revenue","R7702","Vehicle Workshop","04-SUPPLIES","Supplies And Services","04A","Equipment, furniture and materials","5510","Materials","631966","201301",26/04/2012 00:00:00,108.97,"13330","Car Body Repairs","REDACTED DATA","BARKING PANELCRAFT","",,""
"London Borough of Redbridge","http://opendatacommunities.org/doc/london-borough-council/redbridge","9BNONBVO","Outside the BVACOP Objective Structure","9CNONBVO","Outside the BVACOP Objective Structure","REV","Revenue","R7702","Vehicle Workshop","04-SUPPLIES","Supplies And Services","04A","Equipment, furniture and materials","5510","Materials","631966","201301",26/04/2012 00:00:00,328.25,"13330","Car Body Repairs","REDACTED DATA","BARKING PANELCRAFT","",,""
"London Borough of Redbridge","http://opendatacommunities.org/doc/london-borough-council/redbridge","1BCENTRALPUB","Central Services to the Public","1CLOCALTAXCO","Local Tax Collection","REV","Revenue","R5760","Council Tax Collection","04-SUPPLIES","Supplies And Services","04D","Printing, stationery and general office expenses","5710","Stationery","60174016","201301",02/04/2012 00:00:00,437.5,"49180","Mailing Houses","REDACTED DATA","DSI BILLING SERVICES","3823171","http://opencorporates.com/companies/gb/3823171","739980671"
"London Borough of Redbridge","http://opendatacommunities.org/doc/london-borough-council/redbridge","6BADULTSOCIA","Adult Social Care","6COTHADSERV","Other Adult Services","REV","Revenue","R4389","PCT Older Person Home Care","05-THIRD","Third Party Payments","05A","Independent units within the council","6502","Agency Homecare (Payments To Independent Units)","90318858","201301",17/04/2012 00:00:00,525,"53350","Nursing Homes","REDACTED DATA","ELEANOR NURSING & SOCIALCARE LTD","4393038","http://opencorporates.com/companies/gb/4393038",""
"London Borough of Redbridge","http://opendatacommunities.org/doc/london-borough-council/redbridge","6BADULTSOCIA","Adult Social Care","6COLDINCMENT","Older People (65 or over) incl. Older Mentally Ill","REV","Revenue","R4391","OP Home Care","05-THIRD","Third Party Payments","05A","Independent units within the council","6502","Agency Homecare (Payments To Independent Units)","90319609","201301",17/04/2012 00:00:00,525.14,"43419","Home Care Services","REDACTED DATA","ENARA LTD (ENARA COMMUNITY CARE)","65455420","http://opencorporates.com/companies/gb/65455420",""
"London Borough of Redbridge","http://opendatacommunities.org/doc/london-borough-council/redbridge","6BADULTSOCIA","Adult Social Care","6COTHADSERV","Other Adult Services","REV","Revenue","R4389","PCT Older Person Home Care","05-THIRD","Third Party Payments","05A","Independent units within the council","6502","Agency Homecare (Payments To Independent Units)","90308610","201212",02/03/2012 00:00:00,525.28,"53350","Nursing Homes","REDACTED DATA","ELEANOR NURSING & SOCIALCARE LTD","4393038","http://opencorporates.com/companies/gb/4393038",""
"London Borough of Redbridge","http://opendatacommunities.org/doc/london-borough-council/redbridge","3BOPTIONHLDG","Optional Holding Accounts","3CADULT","Adult Education","REV","Revenue","R3483","RIAE   Exams","04-SUPPLIES","Supplies And Services","04A","Equipment, furniture and materials","5502","Equipment Purchase","3225604","201301",02/04/2012 00:00:00,525.9,"29300","Education Agencies & Authorities","REDACTED DATA","CITY & GUILDS","312832","http://opencorporates.com/companies/gb/312832","788656455"
"London Borough of Redbridge","http://opendatacommunities.org/doc/london-borough-council/redbridge","4BPARKING","Parking Services","4CTRAFMGT&RS","Traffic Management & Road Safety","REV","Revenue","R7084","Road Safety General","04-SUPPLIES","Supplies And Services","04K","Miscellaneous expenses","6263","Supportive Activities","60171186","201212",02/03/2012 00:00:00,438.38,"29340","Educational Equipment & Supplies","REDACTED DATA","GLS EDUCATIONAL SUPPLIES LTD","",,"765934584"
"London Borough of Redbridge","http://opendatacommunities.org/doc/london-borough-council/redbridge","9BNONBVO","Outside the BVACOP Objective Structure","9CNONBVO","Outside the BVACOP Objective Structure","REV","Revenue","R5031","Central Heating HRA","02-PREMISES","Premises","02E","Water services","4005","Heating and Hot Water","3227918","201301",27/03/2012 00:00:00,504.59,"30586","Electricity Companies","REDACTED DATA","EDF ENERGY 1 LTD (PO BOX 3956 PLYMOUTH)","",,"523041202"
"London Borough of Redbridge","http://opendatacommunities.org/doc/london-borough-council/redbridge","9BNONBVO","Outside the BVACOP Objective Structure","9CNONBVO","Outside the BVACOP Objective Structure","REV","Revenue","R5031","Central Heating HRA","02-PREMISES","Premises","02E","Water services","4005","Heating and Hot Water","3227918","201301",27/03/2012 00:00:00,-3.33,"30586","Electricity Companies","REDACTED DATA","EDF ENERGY 1 LTD (PO BOX 3956 PLYMOUTH)","",,"523041202"
"London Borough of Redbridge","http://opendatacommunities.org/doc/london-borough-council/redbridge","6BADULTSOCIA","Adult Social Care","6CADPHYSDIS","Adults Under 65 with Phys Disab or Sensory Impair","REV","Revenue","R4214","PD Direct Payments","06-TRANSFER","Transfer Payments","06B","Social Services Clients","7053","Direct Payments","3226019","201301",10/04/2012 00:00:00,696,"90005","Home Care Services DP","REDACTED DATA","REDACTED DATA","",,""
"London Borough of Redbridge","http://opendatacommunities.org/doc/london-borough-council/redbridge","6BADULTSOCIA","Adult Social Care","6CADPHYSDIS","Adults Under 65 with Phys Disab or Sensory Impair","REV","Revenue","R4214","PD Direct Payments","06-TRANSFER","Transfer Payments","06B","Social Services Clients","7053","Direct Payments","3226019","201301",10/04/2012 00:00:00,-135.6,"90005","Home Care Services DP","REDACTED DATA","REDACTED DATA","",,""
"London Borough of Redbridge","http://opendatacommunities.org/doc/london-borough-council/redbridge","6BADULTSOCIA","Adult Social Care","6CADPHYSDIS","Adults Under 65 with Phys Disab or Sensory Impair","REV","Revenue","R4214","PD Direct Payments","09-INCOME","Income","09C","Customer & Client Receipts","8545","Direct Payments Income","3226019","201301",10/04/2012 00:00:00,7.64,"90005","Home Care Services DP","REDACTED DATA","REDACTED DATA","",,""
"London Borough of Redbridge","http://opendatacommunities.org/doc/london-borough-council/redbridge","6BADULTSOCIA","Adult Social Care","6CADPHYSDIS","Adults Under 65 with Phys Disab or Sensory Impair","REV","Revenue","R4214","PD Direct Payments","09-INCOME","Income","09C","Customer & Client Receipts","8545","Direct Payments Income","3226019","201301",10/04/2012 00:00:00,-41.55,"90005","Home Care Services DP","REDACTED DATA","REDACTED DATA","",,""
"London Borough of Redbridge","http://opendatacommunities.org/doc/london-borough-council/redbridge","3BNONSCHFUND","Non-School Funding","3CNONSCH","Non Schools","REV","Revenue","R3947","Loxford CC Nursery","01-EMPLOYEES","Employees","01A","Direct employee expenses","4","Agency Staff - Pay","60170949","201212",29/02/2012 00:00:00,438.84,"31230","Employment & Recruitment Agencies","REDACTED DATA","RANDSTAD EDUCATION LTD","3403530","http://opencorporates.com/companies/gb/3403530","492435726"
"London Borough of Redbridge","http://opendatacommunities.org/doc/london-borough-council/redbridge","1BOTHEROPI&E","Other Operating Income & Expenditure","1CTRADSURDEF","Trading Account Surpluses & Deficits","REV","Revenue","R7207","Building Services","04-SUPPLIES","Supplies And Services","04A","Equipment, furniture and materials","5502","Equipment Purchase","60173602","201301",05/04/2012 00:00:00,439.1,"20703","Computer Systems and Software","REDACTED DATA","PROBRAND LIMITED","2653446","http://opencorporates.com/companies/gb/2653446","580401565"
"London Borough of Redbridge","http://opendatacommunities.org/doc/london-borough-council/redbridge","6BADULTSOCIA","Adult Social Care","6COLDINCMENT","Older People (65 or over) incl. Older Mentally Ill","REV","Revenue","R4391","OP Home Care","05-THIRD","Third Party Payments","05A","Independent units within the council","6502","Agency Homecare (Payments To Independent Units)","90312181","201212",22/03/2012 00:00:00,527.01,"43419","Home Care Services","REDACTED DATA","ENARA LTD (ENARA COMMUNITY CARE)","65455420","http://opencorporates.com/companies/gb/65455420",""
"London Borough of Redbridge","http://opendatacommunities.org/doc/london-borough-council/redbridge","1BOTHEROPI&E","Other Operating Income & Expenditure","1CTRADSURDEF","Trading Account Surpluses & Deficits","REV","Revenue","R9253","Network and Exchange Line","04-SUPPLIES","Supplies And Services","04F","Communications and computing","5854","Exchange Line Rental","3221715","201212",16/02/2012 00:00:00,439.2,"76510","Telecommunication Services","REDACTED DATA","NTL/VIRGIN MEDIA PAYMENTS LTD(MAIN ACCT)","1785381","http://opencorporates.com/companies/gb/1785381","591819014"
"London Borough of Redbridge","http://opendatacommunities.org/doc/london-borough-council/redbridge","6BADULTSOCIA","Adult Social Care","6COLDINCMENT","Older People (65 or over) incl. Older Mentally Ill","REV","Revenue","R4211","Older People Direct Payments","06-TRANSFER","Transfer Payments","06B","Social Services Clients","7053","Direct Payments","3225833","201301",10/04/2012 00:00:00,710.55,"56800","Payroll Services","REDACTED DATA","HUMAN MANAGEMENT ASSISTANCE-CLIENT ACCOUNT","4752026","http://opencorporates.com/companies/gb/4752026","815230071"
"London Borough of Redbridge","http://opendatacommunities.org/doc/london-borough-council/redbridge","6BADULTSOCIA","Adult Social Care","6COLDINCMENT","Older People (65 or over) incl. Older Mentally Ill","REV","Revenue","R4211","Older People Direct Payments","06-TRANSFER","Transfer Payments","06B","Social Services Clients","7053","Direct Payments","3225833","201301",10/04/2012 00:00:00,-138.43,"56800","Payroll Services","REDACTED DATA","HUMAN MANAGEMENT ASSISTANCE-CLIENT ACCOUNT","4752026","http://opencorporates.com/companies/gb/4752026","815230071"
"London Borough of Redbridge","http://opendatacommunities.org/doc/london-borough-council/redbridge","6BADULTSOCIA","Adult Social Care","6COLDINCMENT","Older People (65 or over) incl. Older Mentally Ill","REV","Revenue","R4211","Older People Direct Payments","09-INCOME","Income","09C","Customer & Client Receipts","8545","Direct Payments Income","3225833","201301",10/04/2012 00:00:00,-55.05,"56800","Payroll Services","REDACTED DATA","HUMAN MANAGEMENT ASSISTANCE-CLIENT ACCOUNT","4752026","http://opencorporates.com/companies/gb/4752026","815230071"
"London Borough of Redbridge","http://opendatacommunities.org/doc/london-borough-council/redbridge","6BADULTSOCIA","Adult Social Care","6COLDINCMENT","Older People (65 or over) incl. Older Mentally Ill","REV","Revenue","R4211","Older People Direct Payments","09-INCOME","Income","09C","Customer & Client Receipts","8545","Direct Payments Income","3225833","201301",10/04/2012 00:00:00,10.11,"56800","Payroll Services","REDACTED DATA","HUMAN MANAGEMENT ASSISTANCE-CLIENT ACCOUNT","4752026","http://opencorporates.com/companies/gb/4752026","815230071"
"London Borough of Redbridge","http://opendatacommunities.org/doc/london-borough-council/redbridge","3BLEACENTFND","LEA Centrally Held School Funds","3CSUPPORTSEN","Supporting Special Education Needs","REV","Revenue","R3022","Home Tuition","01-EMPLOYEES","Employees","01A","Direct employee expenses","4","Agency Staff - Pay","60174185","201301",04/04/2012 00:00:00,439.5,"31230","Employment & Recruitment Agencies","REDACTED DATA","OFFICE ANGELS","1985032","http://opencorporates.com/companies/gb/1985032","524020109"
"London Borough of Redbridge","http://opendatacommunities.org/doc/london-borough-council/redbridge","3BLEACENTFND","LEA Centrally Held School Funds","3CASSURACCES","Assuring Access to Schools","REV","Revenue","R3290","Mus Sch - Delegated","04-SUPPLIES","Supplies And Services","04A","Equipment, furniture and materials","5515","Equipment for Extended Schools","60172753","201301",30/03/2012 00:00:00,440,"52510","Musical Instruments & Sheet Music","REDACTED DATA","PHIL PARKER LTD","405984","http://opencorporates.com/companies/gb/405984","239305759"
"London Borough of Redbridge","http://opendatacommunities.org/doc/london-borough-council/redbridge","3BLEACENTFND","LEA Centrally Held School Funds","3CNONSCH","Non Schools","REV","Revenue","R3854","SDG Finance Training 1","04-SUPPLIES","Supplies And Services","04H","Grants and subscriptions","5950","Grants","60173770","201301",05/03/2012 00:00:00,440,"17020","Charities and Voluntary Organisations","REDACTED DATA","FRENFORD CLUBS LIMITED (ARDLEIGH GREEN)","3226473","http://opencorporates.com/companies/gb/3226473",""
"London Borough of Redbridge","http://opendatacommunities.org/doc/london-borough-council/redbridge","5BGFHOUSING","General Fund Housing","5CHOUSADVICE","Housing Advice","REV","Revenue","R5530","HAC Temporary Accomodation","05-THIRD","Third Party Payments","05H","Private contractors","6912","Bed & Breakfast Charges","70039551","201301",12/03/2012 00:00:00,440,"61896","Property & Estate Management","REDACTED DATA","ROSSMORE HOTEL LTD","5097081","http://opencorporates.com/companies/gb/5097081","653211370"
"London Borough of Redbridge","http://opendatacommunities.org/doc/london-borough-council/redbridge","6BADULTSOCIA","Adult Social Care","6CADPHYSDIS","Adults Under 65 with Phys Disab or Sensory Impair","REV","Revenue","R4393","PD Home Care","05-THIRD","Third Party Payments","05A","Independent units within the council","6502","Agency Homecare (Payments To Independent Units)","90314802","201301",29/03/2012 00:00:00,528,"43419","Home Care Services","REDACTED DATA","CAREWATCH CARE SERVICES LTD","2949558","http://opencorporates.com/companies/gb/2949558","927457005"
"London Borough of Redbridge","http://opendatacommunities.org/doc/london-borough-council/redbridge","6BADULTSOCIA","Adult Social Care","6COLDINCMENT","Older People (65 or over) incl. Older Mentally Ill","REV","Revenue","R4391","OP Home Care","05-THIRD","Third Party Payments","05A","Independent units within the council","6502","Agency Homecare (Payments To Independent Units)","90315240","201301",04/04/2012 00:00:00,528.06,"43419","Home Care Services","REDACTED DATA","ENARA LTD (ENARA COMMUNITY CARE)","65455420","http://opencorporates.com/companies/gb/65455420",""
"London Borough of Redbridge","http://opendatacommunities.org/doc/london-borough-council/redbridge","9BNONBVO","Outside the BVACOP Objective Structure","9CNONBVO","Outside the BVACOP Objective Structure","REV","Revenue","R7702","Vehicle Workshop","04-SUPPLIES","Supplies And Services","04A","Equipment, furniture and materials","5510","Materials","631795","201301",11/04/2012 00:00:00,246.6,"48700","Lubricant Mnfrs & Distributors","REDACTED DATA","FUCHS LUBRICANTS (UK) PLC","300293","http://opencorporates.com/companies/gb/300293","284166443"
"London Borough of Redbridge","http://opendatacommunities.org/doc/london-borough-council/redbridge","9BNONBVO","Outside the BVACOP Objective Structure","9CNONBVO","Outside the BVACOP Objective Structure","REV","Revenue","R7702","Vehicle Workshop","04-SUPPLIES","Supplies And Services","04A","Equipment, furniture and materials","5510","Materials","631795","201301",11/04/2012 00:00:00,193.6,"48700","Lubricant Mnfrs & Distributors","REDACTED DATA","FUCHS LUBRICANTS (UK) PLC","300293","http://opencorporates.com/companies/gb/300293","284166443"
"London Borough of Redbridge","http://opendatacommunities.org/doc/london-borough-council/redbridge","6BADULTSOCIA","Adult Social Care","6COLDINCMENT","Older People (65 or over) incl. Older Mentally Ill","REV","Revenue","R4211","Older People Direct Payments","06-TRANSFER","Transfer Payments","06B","Social Services Clients","7053","Direct Payments","3225828","201301",10/04/2012 00:00:00,-158.2,"56800","Payroll Services","REDACTED DATA","HUMAN MANAGEMENT ASSISTANCE-CLIENT ACCOUNT","4752026","http://opencorporates.com/companies/gb/4752026","815230071"
"London Borough of Redbridge","http://opendatacommunities.org/doc/london-borough-council/redbridge","6BADULTSOCIA","Adult Social Care","6COLDINCMENT","Older People (65 or over) incl. Older Mentally Ill","REV","Revenue","R4211","Older People Direct Payments","06-TRANSFER","Transfer Payments","06B","Social Services Clients","7053","Direct Payments","3225828","201301",10/04/2012 00:00:00,812,"56800","Payroll Services","REDACTED DATA","HUMAN MANAGEMENT ASSISTANCE-CLIENT ACCOUNT","4752026","http://opencorporates.com/companies/gb/4752026","815230071"
"London Borough of Redbridge","http://opendatacommunities.org/doc/london-borough-council/redbridge","6BADULTSOCIA","Adult Social Care","6COLDINCMENT","Older People (65 or over) incl. Older Mentally Ill","REV","Revenue","R4211","Older People Direct Payments","09-INCOME","Income","09C","Customer & Client Receipts","8545","Direct Payments Income","3225828","201301",10/04/2012 00:00:00,29.68,"56800","Payroll Services","REDACTED DATA","HUMAN MANAGEMENT ASSISTANCE-CLIENT ACCOUNT","4752026","http://opencorporates.com/companies/gb/4752026","815230071"
"London Borough of Redbridge","http://opendatacommunities.org/doc/london-borough-council/redbridge","6BADULTSOCIA","Adult Social Care","6COLDINCMENT","Older People (65 or over) incl. Older Mentally Ill","REV","Revenue","R4211","Older People Direct Payments","09-INCOME","Income","09C","Customer & Client Receipts","8545","Direct Payments Income","3225828","201301",10/04/2012 00:00:00,-155.15,"56800","Payroll Services","REDACTED DATA","HUMAN MANAGEMENT ASSISTANCE-CLIENT ACCOUNT","4752026","http://opencorporates.com/companies/gb/4752026","815230071"
"London Borough of Redbridge","http://opendatacommunities.org/doc/london-borough-council/redbridge","6BADULTSOCIA","Adult Social Care","6COLDINCMENT","Older People (65 or over) incl. Older Mentally Ill","REV","Revenue","R4391","OP Home Care","05-THIRD","Third Party Payments","05A","Independent units within the council","6502","Agency Homecare (Payments To Independent Units)","90312046","201212",22/03/2012 00:00:00,528.9,"43419","Home Care Services","REDACTED DATA","ENARA LTD (ENARA COMMUNITY CARE)","65455420","http://opencorporates.com/companies/gb/65455420",""
"London Borough of Redbridge","http://opendatacommunities.org/doc/london-borough-council/redbridge","6BSOCIALSERV","Social Services","6COLDINCMENT","Older People (65 or over) incl. Older Mentally Ill","REV","Revenue","R4059","Elderly Mentally ill Home Care","05-THIRD","Third Party Payments","05A","Independent units within the council","6502","Agency Homecare (Payments To Independent Units)","90310064","201212",26/03/2012 00:00:00,529.09,"31230","Employment & Recruitment Agencies","REDACTED DATA","TAYLOR GORDON & CO LTD T/AS PLAN PERSONNEL & PLAN CARE","",,"190680845"
"London Borough of Redbridge","http://opendatacommunities.org/doc/london-borough-council/redbridge","6BADULTSOCIA","Adult Social Care","6COLDINCMENT","Older People (65 or over) incl. Older Mentally Ill","REV","Revenue","R4391","OP Home Care","05-THIRD","Third Party Payments","05A","Independent units within the council","6502","Agency Homecare (Payments To Independent Units)","90319477","201301",17/04/2012 00:00:00,530.14,"43419","Home Care Services","REDACTED DATA","ENARA LTD (ENARA COMMUNITY CARE)","65455420","http://opencorporates.com/companies/gb/65455420",""
"London Borough of Redbridge","http://opendatacommunities.org/doc/london-borough-council/redbridge","6BSOCIALSERV","Social Services","6CASYLUMSEEK","Asylum Seekers","REV","Revenue","R2128","CLAFH - Leaving Care Asylum Seekers","06-TRANSFER","Transfer Payments","06B","Social Services Clients","7051","Asylum Seekers","3223284","201212",29/02/2012 00:00:00,442.26,"43419","Home Care Services","REDACTED DATA","LCS PARTNERSHIPS LTD (LONDON CARE SOLUTIONS)","6820538","http://opencorporates.com/companies/gb/6820538","975528279"
"London Borough of Redbridge","http://opendatacommunities.org/doc/london-borough-council/redbridge","4BPUBLICTRAN","Public Transport","4CPARKING","Parking Services","REV","Revenue","R7037","Parking Enforcements Non CCTV","04-SUPPLIES","Supplies And Services","04D","Printing, stationery and general office expenses","5710","Stationery","60170176","201212",20/02/2012 00:00:00,442.5,"61540","Printers","REDACTED DATA","LIBERTY PRINTERS LTD - LIBERTY SERVICES","2920033","http://opencorporates.com/companies/gb/2920033","918128422"
"London Borough of Redbridge","http://opendatacommunities.org/doc/london-borough-council/redbridge","4BMANGT&SUPP","Management & Support Services","4CHIGHRDROUT","Highways/Roads (Routine)","REV","Revenue","R7070","Reactive Maintenance","05-THIRD","Third Party Payments","05H","Private contractors","6915","Contractor Payments","3224996","201212",21/03/2012 00:00:00,442.55,"18632","Civil Engineers","REDACTED DATA","KENSON CONTRACTORS BENINGTON LTD","1314691","http://opencorporates.com/companies/gb/1314691","301629589"
"London Borough of Redbridge","http://opendatacommunities.org/doc/london-borough-council/redbridge","6BADULTSOCIA","Adult Social Care","6CADPHYSDIS","Adults Under 65 with Phys Disab or Sensory Impair","REV","Revenue","R4393","PD Home Care","05-THIRD","Third Party Payments","05A","Independent units within the council","6502","Agency Homecare (Payments To Independent Units)","90311643","201212",22/03/2012 00:00:00,531.2,"43419","Home Care Services","REDACTED DATA","CAREWATCH CARE SERVICES LTD","2949558","http://opencorporates.com/companies/gb/2949558","927457005"
"London Borough of Redbridge","http://opendatacommunities.org/doc/london-borough-council/redbridge","9BNONBVO","Outside the BVACOP Objective Structure","9CNONBVO","Outside the BVACOP Objective Structure","BAL","Balance Sheet","B0006","Mech Engineerng Store","99-NONBV","Capital, Balance Sheet and Control","50K","Current Assets","9407","Variation A/C - Payments","631701","201301",02/04/2012 00:00:00,442.75,"20375","Commercial Vehicle Mnfrs","REDACTED DATA","JOHNSTON SWEEPERS LTD","",,""
"London Borough of Redbridge","http://opendatacommunities.org/doc/london-borough-council/redbridge","6BADULTSOCIA","Adult Social Care","6COLDINCMENT","Older People (65 or over) incl. Older Mentally Ill","REV","Revenue","R4391","OP Home Care","05-THIRD","Third Party Payments","05A","Independent units within the council","6502","Agency Homecare (Payments To Independent Units)","90315066","201301",03/04/2012 00:00:00,531.4,"43419","Home Care Services","REDACTED DATA","ENARA LTD (ENARA COMMUNITY CARE)","65455420","http://opencorporates.com/companies/gb/65455420",""
"London Borough of Redbridge","http://opendatacommunities.org/doc/london-borough-council/redbridge","3BNONSCHFUND","Non-School Funding","3CNONSCH","Non Schools","REV","Revenue","R3945","Childrens Centre Central","04-SUPPLIES","Supplies And Services","04D","Printing, stationery and general office expenses","5706","Printing","60174362","201301",16/04/2012 00:00:00,442.92,"57614","Photocopiers","REDACTED DATA","RICOH UK LTD","473236","http://opencorporates.com/companies/gb/473236","524161280"
"London Borough of Redbridge","http://opendatacommunities.org/doc/london-borough-council/redbridge","6BADULTSOCIA","Adult Social Care","6CADLEARNDIS","Adults Under 65 with Learning Disabilities","REV","Revenue","R4296","Mulberry Lodge","01-EMPLOYEES","Employees","01A","Direct employee expenses","4","Agency Staff - Pay","60172205","201212",18/03/2012 00:00:00,532.08,"17020","Charities and Voluntary Organisations","REDACTED DATA","REDBRIDGE CROSSROADS CAS","2647932","http://opencorporates.com/companies/gb/2647932",""
"London Borough of Redbridge","http://opendatacommunities.org/doc/london-borough-council/redbridge","4BMANGT&SUPP","Management & Support Services","4CHIGHRDROUT","Highways/Roads (Routine)","REV","Revenue","R7070","Reactive Maintenance","05-THIRD","Third Party Payments","05H","Private contractors","6915","Contractor Payments","3221816","201212",06/03/2012 00:00:00,443.8,"18632","Civil Engineers","REDACTED DATA","KENSON CONTRACTORS BENINGTON LTD","1314691","http://opencorporates.com/companies/gb/1314691","301629589"
"London Borough of Redbridge","http://opendatacommunities.org/doc/london-borough-council/redbridge","9BNONBVO","Outside the BVACOP Objective Structure","9CNONBVO","Outside the BVACOP Objective Structure","REV","Revenue","R5031","Central Heating HRA","02-PREMISES","Premises","02E","Water services","4005","Heating and Hot Water","3227884","201301",27/03/2012 00:00:00,-3.55,"30586","Electricity Companies","REDACTED DATA","EDF ENERGY 1 LTD (PO BOX 3956 PLYMOUTH)","",,"523041202"
"London Borough of Redbridge","http://opendatacommunities.org/doc/london-borough-council/redbridge","9BNONBVO","Outside the BVACOP Objective Structure","9CNONBVO","Outside the BVACOP Objective Structure","REV","Revenue","R5031","Central Heating HRA","02-PREMISES","Premises","02E","Water services","4005","Heating and Hot Water","3227884","201301",27/03/2012 00:00:00,510.82,"30586","Electricity Companies","REDACTED DATA","EDF ENERGY 1 LTD (PO BOX 3956 PLYMOUTH)","",,"523041202"
"London Borough of Redbridge","http://opendatacommunities.org/doc/london-borough-council/redbridge","1BOTHEROPI&E","Other Operating Income & Expenditure","1CTRADSURDEF","Trading Account Surpluses & Deficits","REV","Revenue","R9830","Print Team","04-SUPPLIES","Supplies And Services","04A","Equipment, furniture and materials","5510","Materials","60174068","201301",19/04/2012 00:00:00,444,"55980","Paper & Board Supplies","REDACTED DATA","DENIAN OFFICE LTD","1378558","http://opencorporates.com/companies/gb/1378558","299590489"
"London Borough of Redbridge","http://opendatacommunities.org/doc/london-borough-council/redbridge","3BOPTIONHLDG","Optional Holding Accounts","3CADULT","Adult Education","REV","Revenue","R3490","RIAE   Home Cost Centre","02-PREMISES","Premises","02A","Repairs, alteration and maintenance of buildings","3040","Tenant Maintenance","3225179","201212",13/03/2012 00:00:00,105,"29340","Educational Equipment & Supplies","REDACTED DATA","MORLEYS OF BICESTER LIMITED","242437","http://opencorporates.com/companies/gb/242437","236514864"
"London Borough of Redbridge","http://opendatacommunities.org/doc/london-borough-council/redbridge","3BOPTIONHLDG","Optional Holding Accounts","3CADULT","Adult Education","REV","Revenue","R3491","RIAE   Family Learning","04-SUPPLIES","Supplies And Services","04A","Equipment, furniture and materials","5502","Equipment Purchase","3225179","201212",13/03/2012 00:00:00,339,"29340","Educational Equipment & Supplies","REDACTED DATA","MORLEYS OF BICESTER LIMITED","242437","http://opencorporates.com/companies/gb/242437","236514864"
"London Borough of Redbridge","http://opendatacommunities.org/doc/london-borough-council/redbridge","6BADULTSOCIA","Adult Social Care","6COLDINCMENT","Older People (65 or over) incl. Older Mentally Ill","REV","Revenue","R4211","Older People Direct Payments","06-TRANSFER","Transfer Payments","06B","Social Services Clients","7053","Direct Payments","3225801","201301",10/04/2012 00:00:00,533.6,"90005","Home Care Services DP","REDACTED DATA","REDACTED DATA","",,""
"London Borough of Redbridge","http://opendatacommunities.org/doc/london-borough-council/redbridge","4BMANGT&SUPP","Management & Support Services","4CHIGHRDROUT","Highways/Roads (Routine)","REV","Revenue","R7070","Reactive Maintenance","05-THIRD","Third Party Payments","05H","Private contractors","6915","Contractor Payments","3223778","201212",14/03/2012 00:00:00,444.95,"18632","Civil Engineers","REDACTED DATA","KENSON CONTRACTORS BENINGTON LTD","1314691","http://opencorporates.com/companies/gb/1314691","301629589"
"London Borough of Redbridge","http://opendatacommunities.org/doc/london-borough-council/redbridge","3BLEACENTFND","LEA Centrally Held School Funds","3CSUPPORTSEN","Supporting Special Education Needs","REV","Revenue","R3341","Tuition Service","04-SUPPLIES","Supplies And Services","04E","Services","5757","Group Work Activities","60169459","201212",01/03/2012 00:00:00,445,"20623","Computer Consumables & Stationery","REDACTED DATA","TOUCAN COMPUTING LTD","3185327","http://opencorporates.com/companies/gb/3185327","676198387"
"London Borough of Redbridge","http://opendatacommunities.org/doc/london-borough-council/redbridge","6BADULTSOCIA","Adult Social Care","6CADLEARNDIS","Adults Under 65 with Learning Disabilities","REV","Revenue","R4296","Mulberry Lodge","01-EMPLOYEES","Employees","01A","Direct employee expenses","409","Agency Staff Pay","60173238","201301",03/04/2012 00:00:00,445.2,"31230","Employment & Recruitment Agencies","REDACTED DATA","CRASTER RECRUITMENT LTD","7654534","http://opencorporates.com/companies/gb/7654534","119719983"
"London Borough of Redbridge","http://opendatacommunities.org/doc/london-borough-council/redbridge","6BADULTSOCIA","Adult Social Care","6COLDINCMENT","Older People (65 or over) incl. Older Mentally Ill","REV","Revenue","R4391","OP Home Care","05-THIRD","Third Party Payments","05A","Independent units within the council","6502","Agency Homecare (Payments To Independent Units)","90314619","201301",03/04/2012 00:00:00,534.57,"53350","Nursing Homes","REDACTED DATA","ELEANOR NURSING & SOCIALCARE LTD","4393038","http://opencorporates.com/companies/gb/4393038",""
"London Borough of Redbridge","http://opendatacommunities.org/doc/london-borough-council/redbridge","6BADULTSOCIA","Adult Social Care","6COLDINCMENT","Older People (65 or over) incl. Older Mentally Ill","REV","Revenue","R4391","OP Home Care","05-THIRD","Third Party Payments","05A","Independent units within the council","6502","Agency Homecare (Payments To Independent Units)","90311475","201212",19/03/2012 00:00:00,534.57,"53350","Nursing Homes","REDACTED DATA","ELEANOR NURSING & SOCIALCARE LTD","4393038","http://opencorporates.com/companies/gb/4393038",""
"London Borough of Redbridge","http://opendatacommunities.org/doc/london-borough-council/redbridge","6BADULTSOCIA","Adult Social Care","6COLDINCMENT","Older People (65 or over) incl. Older Mentally Ill","REV","Revenue","R4391","OP Home Care","05-THIRD","Third Party Payments","05A","Independent units within the council","6502","Agency Homecare (Payments To Independent Units)","90308986","201212",09/03/2012 00:00:00,534.74,"43419","Home Care Services","REDACTED DATA","ENARA LTD (ENARA COMMUNITY CARE)","65455420","http://opencorporates.com/companies/gb/65455420",""
"London Borough of Redbridge","http://opendatacommunities.org/doc/london-borough-council/redbridge","9BNONBVO","Outside the BVACOP Objective Structure","9CNONBVO","Outside the BVACOP Objective Structure","REV","Revenue","R7602","Routine Sweeping DSO","04-SUPPLIES","Supplies And Services","04C","Clothes, uniform and laundry","5651","Protective Clothing","60173482","201301",15/03/2012 00:00:00,446.3,"86070","Workwear & Protective Equipment","REDACTED DATA","PCI (GB) LTD T/A PCI TRUSTYLE","6661924","http://opencorporates.com/companies/gb/6661924","739492294"
"London Borough of Redbridge","http://opendatacommunities.org/doc/london-borough-council/redbridge","9BNONBVO","Outside the BVACOP Objective Structure","9CNONBVO","Outside the BVACOP Objective Structure","REV","Revenue","R5131","Repairs and Maintenance - MFS","02-PREMISES","Premises","02A","Repairs, alteration and maintenance of buildings","3038","Service Repairs","70039982","201301",17/04/2012 00:00:00,446.4,"11700","Burglar and Intruder Alarm Systems","REDACTED DATA","CARTEL SECURITY SYSTEMS LTD","3376202","http://opencorporates.com/companies/gb/3376202","696815967"
"London Borough of Redbridge","http://opendatacommunities.org/doc/london-borough-council/redbridge","6BADULTSOCIA","Adult Social Care","6CADMENHLTH","Adults Under 65 with Mental Health Needs","REV","Revenue","R4213","MH Direct Payments","06-TRANSFER","Transfer Payments","06B","Social Services Clients","7053","Direct Payments","3222634","201212",12/03/2012 00:00:00,565,"56800","Payroll Services","REDACTED DATA","HUMAN MANAGEMENT ASSISTANCE-CLIENT ACCOUNT","4752026","http://opencorporates.com/companies/gb/4752026","815230071"
"London Borough of Redbridge","http://opendatacommunities.org/doc/london-borough-council/redbridge","6BADULTSOCIA","Adult Social Care","6CADMENHLTH","Adults Under 65 with Mental Health Needs","REV","Revenue","R4213","MH Direct Payments","09-INCOME","Income","09C","Customer & Client Receipts","8545","Direct Payments Income","3222634","201212",12/03/2012 00:00:00,-29.2,"56800","Payroll Services","REDACTED DATA","HUMAN MANAGEMENT ASSISTANCE-CLIENT ACCOUNT","4752026","http://opencorporates.com/companies/gb/4752026","815230071"
"London Borough of Redbridge","http://opendatacommunities.org/doc/london-borough-council/redbridge","3BLEACENTFND","LEA Centrally Held School Funds","3CASSURACCES","Assuring Access to Schools","REV","Revenue","R3010","Whitbread Sg","02-PREMISES","Premises","02B","Energy costs","4000","Electricity","60171540","201212",13/03/2012 00:00:00,447.22,"30586","Electricity Companies","REDACTED DATA","SOUTHERN ELECTRIC","2716495","http://opencorporates.com/companies/gb/2716495","553769603"
"London Borough of Redbridge","http://opendatacommunities.org/doc/london-borough-council/redbridge","6BADULTSOCIA","Adult Social Care","6CADPHYSDIS","Adults Under 65 with Phys Disab or Sensory Impair","REV","Revenue","R4214","PD Direct Payments","06-TRANSFER","Transfer Payments","06B","Social Services Clients","7053","Direct Payments","3222762","201212",12/03/2012 00:00:00,791,"56800","Payroll Services","REDACTED DATA","HUMAN MANAGEMENT ASSISTANCE-CLIENT ACCOUNT","4752026","http://opencorporates.com/companies/gb/4752026","815230071"
"London Borough of Redbridge","http://opendatacommunities.org/doc/london-borough-council/redbridge","6BADULTSOCIA","Adult Social Care","6CADPHYSDIS","Adults Under 65 with Phys Disab or Sensory Impair","REV","Revenue","R4214","PD Direct Payments","09-INCOME","Income","09C","Customer & Client Receipts","8545","Direct Payments Income","3222762","201212",12/03/2012 00:00:00,-254.28,"56800","Payroll Services","REDACTED DATA","HUMAN MANAGEMENT ASSISTANCE-CLIENT ACCOUNT","4752026","http://opencorporates.com/companies/gb/4752026","815230071"
"London Borough of Redbridge","http://opendatacommunities.org/doc/london-borough-council/redbridge","4BMANGT&SUPP","Management & Support Services","4CHIGHRDROUT","Highways/Roads (Routine)","REV","Revenue","R7003","Signs non illuminated","05-THIRD","Third Party Payments","05H","Private contractors","6915","Contractor Payments","3224031","201212",09/03/2012 00:00:00,447.36,"21555","Construction Contractors - General","REDACTED DATA","MAY GURNEY LIMITED","873179","http://opencorporates.com/companies/gb/873179","105540018"
"London Borough of Redbridge","http://opendatacommunities.org/doc/london-borough-council/redbridge","6BADULTSOCIA","Adult Social Care","6COLDINCMENT","Older People (65 or over) incl. Older Mentally Ill","REV","Revenue","R4211","Older People Direct Payments","06-TRANSFER","Transfer Payments","06B","Social Services Clients","7053","Direct Payments","3222645","201212",12/03/2012 00:00:00,598.92,"56800","Payroll Services","REDACTED DATA","HUMAN MANAGEMENT ASSISTANCE-CLIENT ACCOUNT","4752026","http://opencorporates.com/companies/gb/4752026","815230071"
"London Borough of Redbridge","http://opendatacommunities.org/doc/london-borough-council/redbridge","3BOPTIONHLDG","Optional Holding Accounts","3CADULT","Adult Education","REV","Revenue","R3490","RIAE   Home Cost Centre","02-PREMISES","Premises","02A","Repairs, alteration and maintenance of buildings","3040","Tenant Maintenance","3226702","201301",03/04/2012 00:00:00,447.95,"29340","Educational Equipment & Supplies","REDACTED DATA","DEMCO EUROPE LTD (GRESSWELL)","2067190","http://opencorporates.com/companies/gb/2067190","443818636"
"London Borough of Redbridge","http://opendatacommunities.org/doc/london-borough-council/redbridge","6BADULTSOCIA","Adult Social Care","6COLDINCMENT","Older People (65 or over) incl. Older Mentally Ill","REV","Revenue","R4378","OP Residential","05-THIRD","Third Party Payments","05F","Voluntary associations","6802","Residential Homes","90306250","201212",02/03/2012 00:00:00,-691.77,"64760","Rest & Retirement Homes","REDACTED DATA","ST JOSEPH'S REST HOME","",,""
"London Borough of Redbridge","http://opendatacommunities.org/doc/london-borough-council/redbridge","6BADULTSOCIA","Adult Social Care","6CADLEARNDIS","Adults Under 65 with Learning Disabilities","REV","Revenue","R4296","Mulberry Lodge","01-EMPLOYEES","Employees","01A","Direct employee expenses","409","Agency Staff Pay","60173236","201301",03/04/2012 00:00:00,448.5,"31230","Employment & Recruitment Agencies","REDACTED DATA","CRASTER RECRUITMENT LTD","7654534","http://opencorporates.com/companies/gb/7654534","119719983"
"London Borough of Redbridge","http://opendatacommunities.org/doc/london-borough-council/redbridge","9BNONBVO","Outside the BVACOP Objective Structure","9CNONBVO","Outside the BVACOP Objective Structure","REV","Revenue","R7702","Vehicle Workshop","04-SUPPLIES","Supplies And Services","04A","Equipment, furniture and materials","5510","Materials","631562","201301",28/03/2012 00:00:00,383.5,"13330","Car Body Repairs","REDACTED DATA","BARKING PANELCRAFT","",,""
"London Borough of Redbridge","http://opendatacommunities.org/doc/london-borough-council/redbridge","9BNONBVO","Outside the BVACOP Objective Structure","9CNONBVO","Outside the BVACOP Objective Structure","REV","Revenue","R7702","Vehicle Workshop","04-SUPPLIES","Supplies And Services","04A","Equipment, furniture and materials","5510","Materials","631562","201301",28/03/2012 00:00:00,65,"13330","Car Body Repairs","REDACTED DATA","BARKING PANELCRAFT","",,""
"London Borough of Redbridge","http://opendatacommunities.org/doc/london-borough-council/redbridge","6BADULTSOCIA","Adult Social Care","6CADPHYSDIS","Adults Under 65 with Phys Disab or Sensory Impair","REV","Revenue","R4206","PCT Physical Disability and Sensory Home  Care","05-THIRD","Third Party Payments","05A","Independent units within the council","6502","Agency Homecare (Payments To Independent Units)","90310248","201212",21/03/2012 00:00:00,538.47,"31230","Employment & Recruitment Agencies","REDACTED DATA","CARE ASSOCIATES (RECRUITMENT) LTD.","",,""
"London Borough of Redbridge","http://opendatacommunities.org/doc/london-borough-council/redbridge","6BADULTSOCIA","Adult Social Care","6COLDINCMENT","Older People (65 or over) incl. Older Mentally Ill","REV","Revenue","R4332","Living Well Centre","02-PREMISES","Premises","02A","Repairs, alteration and maintenance of buildings","3026","Minor Maintenance","787936","201301",03/04/2012 00:00:00,448.98,"61961","Property Maintenance & Repairs","REDACTED DATA","MORRISONS FACILITIES SERVICES LTD","120550","http://opencorporates.com/companies/gb/120550","297280913"
"London Borough of Redbridge","http://opendatacommunities.org/doc/london-borough-council/redbridge","6BADULTSOCIA","Adult Social Care","6COLDINCMENT","Older People (65 or over) incl. Older Mentally Ill","REV","Revenue","R4211","Older People Direct Payments","06-TRANSFER","Transfer Payments","06B","Social Services Clients","7053","Direct Payments","3226144","201301",10/04/2012 00:00:00,-132.78,"90005","Home Care Services DP","REDACTED DATA","REDACTED DATA","",,""
"London Borough of Redbridge","http://opendatacommunities.org/doc/london-borough-council/redbridge","6BADULTSOCIA","Adult Social Care","6COLDINCMENT","Older People (65 or over) incl. Older Mentally Ill","REV","Revenue","R4211","Older People Direct Payments","06-TRANSFER","Transfer Payments","06B","Social Services Clients","7053","Direct Payments","3226144","201301",10/04/2012 00:00:00,681.55,"90005","Home Care Services DP","REDACTED DATA","REDACTED DATA","",,""
"London Borough of Redbridge","http://opendatacommunities.org/doc/london-borough-council/redbridge","6BADULTSOCIA","Adult Social Care","6COLDINCMENT","Older People (65 or over) incl. Older Mentally Ill","REV","Revenue","R4211","Older People Direct Payments","09-INCOME","Income","09C","Customer & Client Receipts","8545","Direct Payments Income","3226144","201301",10/04/2012 00:00:00,7.96,"90005","Home Care Services DP","REDACTED DATA","REDACTED DATA","",,""
"London Borough of Redbridge","http://opendatacommunities.org/doc/london-borough-council/redbridge","6BADULTSOCIA","Adult Social Care","6COLDINCMENT","Older People (65 or over) incl. Older Mentally Ill","REV","Revenue","R4211","Older People Direct Payments","09-INCOME","Income","09C","Customer & Client Receipts","8545","Direct Payments Income","3226144","201301",10/04/2012 00:00:00,-17.9,"90005","Home Care Services DP","REDACTED DATA","REDACTED DATA","",,""
"London Borough of Redbridge","http://opendatacommunities.org/doc/london-borough-council/redbridge","3BLEACENTFND","LEA Centrally Held School Funds","3CASSURACCES","Assuring Access to Schools","REV","Revenue","R3290","Mus Sch - Delegated","04-SUPPLIES","Supplies And Services","04D","Printing, stationery and general office expenses","5703","Reprographics","60169933","201301",16/01/2012 00:00:00,449.14,"57614","Photocopiers","REDACTED DATA","RICOH UK LTD","473236","http://opencorporates.com/companies/gb/473236","524161280"
"London Borough of Redbridge","http://opendatacommunities.org/doc/london-borough-council/redbridge","4BMANGT&SUPP","Management & Support Services","4CHIGHRDROUT","Highways/Roads (Routine)","REV","Revenue","R7070","Reactive Maintenance","05-THIRD","Third Party Payments","05H","Private contractors","6915","Contractor Payments","3227181","201301",04/04/2012 00:00:00,449.76,"18632","Civil Engineers","REDACTED DATA","KENSON CONTRACTORS BENINGTON LTD","1314691","http://opencorporates.com/companies/gb/1314691","301629589"
"London Borough of Redbridge","http://opendatacommunities.org/doc/london-borough-council/redbridge","1BCENTRALPUB","Central Services to the Public","1CTRADSURDEF","Trading Account Surpluses & Deficits","REV","Revenue","R5752","Centrally Controlled Costs","04-SUPPLIES","Supplies And Services","04H","Grants and subscriptions","5954","Professional Fees","60174800","201301",23/03/2012 00:00:00,450,"45255","Institutes - Professional","REDACTED DATA","NICHOLAS HAM","",,"798946437"
"London Borough of Redbridge","http://opendatacommunities.org/doc/london-borough-council/redbridge","1BOTHEROPI&E","Other Operating Income & Expenditure","1CTRADSURDEF","Trading Account Surpluses & Deficits","REV","Revenue","R9354","Legal Disbursements","04-SUPPLIES","Supplies And Services","04H","Grants and subscriptions","5954","Professional Fees","60174804","201301",16/04/2012 00:00:00,450,"6700","Barristers","REDACTED DATA","JANE HODGSON","",,"788274277"
"London Borough of Redbridge","http://opendatacommunities.org/doc/london-borough-council/redbridge","2BENVIRONMEN","Environmental Services","2CSTCLEANS","Street Cleansing (not chargeable to Highways)","REV","Revenue","R6110","Cleans-Bottle Banks","05-THIRD","Third Party Payments","05A","Independent units within the council","3009","Env. Prot. Act","60173653","201301",12/04/2012 00:00:00,450,"17150","Recycling and Disposal - Chemicals","REDACTED DATA","P & T HAULAGE LTD","4199094","http://opencorporates.com/companies/gb/4199094","672812133"
"London Borough of Redbridge","http://opendatacommunities.org/doc/london-borough-council/redbridge","3BLEACENTFND","LEA Centrally Held School Funds","3CFACILIMPRO","Facilitating School Improvement","REV","Revenue","R3830","Network Learning Community","01-EMPLOYEES","Employees","01B","Indirect employee expenses","2402","Internal Training","60172881","201301",30/03/2012 00:00:00,540,"67981","Schools - Local Authority","REDACTED DATA","SNARESBROOK PRIMARY SCHOOL A/C","",,""
"London Borough of Redbridge","http://opendatacommunities.org/doc/london-borough-council/redbridge","3BNONSCHFUND","Non-School Funding","3CNONSCH","Non Schools","REV","Revenue","R3951","Aldersbrook After School Club","01-EMPLOYEES","Employees","01A","Direct employee expenses","4","Agency Staff - Pay","60173984","201301",28/03/2012 00:00:00,450,"31230","Employment & Recruitment Agencies","REDACTED DATA","PROTOCOL EDUCATION LTD","2926583","http://opencorporates.com/companies/gb/2926583","764390315"
"London Borough of Redbridge","http://opendatacommunities.org/doc/london-borough-council/redbridge","3BOPTIONHLDG","Optional Holding Accounts","3CYOUTH","Youth Service","REV","Revenue","R3475","Arts","04-SUPPLIES","Supplies And Services","04E","Services","5757","Group Work Activities","60173043","201301",30/03/2012 00:00:00,540,"52437","Music Teachers","REDACTED DATA","GARY DAY","3620894513","http://opencorporates.com/companies/gb/3620894513",""
"London Borough of Redbridge","http://opendatacommunities.org/doc/london-borough-council/redbridge","6BSOCIALSERV","Social Services","6CCHILLOOKED","Children Looked After","REV","Revenue","R2113","SEN and CD - Section 5 and 6 Care Packages","05-THIRD","Third Party Payments","05A","Independent units within the council","6502","Agency Homecare (Payments To Independent Units)","3226292","201301",19/03/2012 00:00:00,540,"43419","Home Care Services","REDACTED DATA","FASTFLOW DE VERE CARE","",,""
"London Borough of Redbridge","http://opendatacommunities.org/doc/london-borough-council/redbridge","1BOTHEROPI&E","Other Operating Income & Expenditure","1CTRADSURDEF","Trading Account Surpluses & Deficits","REV","Revenue","R9354","Legal Disbursements","04-SUPPLIES","Supplies And Services","04H","Grants and subscriptions","5954","Professional Fees","60172261","201212",19/03/2012 00:00:00,450,"6700","Barristers","REDACTED DATA","JANE HODGSON","",,"788274277"
"London Borough of Redbridge","http://opendatacommunities.org/doc/london-borough-council/redbridge","1BOTHEROPI&E","Other Operating Income & Expenditure","1CTRADSURDEF","Trading Account Surpluses & Deficits","REV","Revenue","R9831","Design Team","04-SUPPLIES","Supplies And Services","04H","Grants and subscriptions","5955","Fees","60172431","201212",01/06/2011 00:00:00,540,"61540","Printers","REDACTED DATA","SPOTCOLOUR LTD","4316155","http://opencorporates.com/companies/gb/4316155","788281870"
"London Borough of Redbridge","http://opendatacommunities.org/doc/london-borough-council/redbridge","2BENVIRONMEN","Environmental Services","2CSTCLEANS","Street Cleansing (not chargeable to Highways)","REV","Revenue","R6111","Cleans-Fly Tipping","05-THIRD","Third Party Payments","05A","Independent units within the council","3009","Env. Prot. Act","60172018","201212",24/02/2012 00:00:00,450,"17150","Recycling and Disposal - Chemicals","REDACTED DATA","P & T HAULAGE LTD","4199094","http://opencorporates.com/companies/gb/4199094","672812133"
"London Borough of Redbridge","http://opendatacommunities.org/doc/london-borough-council/redbridge","3BLEACENTFND","LEA Centrally Held School Funds","3CASSURACCES","Assuring Access to Schools","REV","Revenue","R3265","Drama Centre Del","01-EMPLOYEES","Employees","01A","Direct employee expenses","63","Child Theatre Works Add Hrs","60170499","201212",09/03/2012 00:00:00,540,"77630","Theatre Companies","REDACTED DATA","WIZARD STORIES","",,""
"London Borough of Redbridge","http://opendatacommunities.org/doc/london-borough-council/redbridge","3BLEACENTFND","LEA Centrally Held School Funds","3CASSURACCES","Assuring Access to Schools","REV","Revenue","R3265","Drama Centre Del","01-EMPLOYEES","Employees","01A","Direct employee expenses","63","Child Theatre Works Add Hrs","60170500","201212",09/03/2012 00:00:00,540,"77630","Theatre Companies","REDACTED DATA","WIZARD STORIES","",,""
"London Borough of Redbridge","http://opendatacommunities.org/doc/london-borough-council/redbridge","3BLEACENTFND","LEA Centrally Held School Funds","3CSCHSTRATMG","Schools Strategic Management","REV","Revenue","R3007","Client and Resources","01-EMPLOYEES","Employees","01B","Indirect employee expenses","2403","External Training","60172496","201212",23/03/2012 00:00:00,450,"0","Not Classified","REDACTED DATA","SOLUTIONS FIRE SAFETY LTD","3977646","http://opencorporates.com/companies/gb/3977646","752568802"
"London Borough of Redbridge","http://opendatacommunities.org/doc/london-borough-council/redbridge","3BLEACENTFND","LEA Centrally Held School Funds","3CSCHSTRATMG","Schools Strategic Management","REV","Revenue","R3007","Client and Resources","01-EMPLOYEES","Employees","01B","Indirect employee expenses","2403","External Training","60172494","201212",23/03/2012 00:00:00,450,"0","Not Classified","REDACTED DATA","SOLUTIONS FIRE SAFETY LTD","3977646","http://opencorporates.com/companies/gb/3977646","752568802"
"London Borough of Redbridge","http://opendatacommunities.org/doc/london-borough-council/redbridge","3BNONSCHFUND","Non-School Funding","3CNONSCH","Non Schools","REV","Revenue","R3951","Aldersbrook After School Club","01-EMPLOYEES","Employees","01A","Direct employee expenses","4","Agency Staff - Pay","60170976","201212",07/03/2012 00:00:00,450,"31230","Employment & Recruitment Agencies","REDACTED DATA","PROTOCOL EDUCATION LTD","2926583","http://opencorporates.com/companies/gb/2926583","764390315"
"London Borough of Redbridge","http://opendatacommunities.org/doc/london-borough-council/redbridge","3BNONSCHFUND","Non-School Funding","3CNONSCH","Non Schools","REV","Revenue","R3951","Aldersbrook After School Club","01-EMPLOYEES","Employees","01A","Direct employee expenses","4","Agency Staff - Pay","60171870","201212",21/03/2012 00:00:00,450,"31230","Employment & Recruitment Agencies","REDACTED DATA","PROTOCOL EDUCATION LTD","2926583","http://opencorporates.com/companies/gb/2926583","764390315"
"London Borough of Redbridge","http://opendatacommunities.org/doc/london-borough-council/redbridge","3BNONSCHFUND","Non-School Funding","3CNONSCH","Non Schools","REV","Revenue","R3951","Aldersbrook After School Club","01-EMPLOYEES","Employees","01A","Direct employee expenses","4","Agency Staff - Pay","60171876","201212",14/03/2012 00:00:00,450,"31230","Employment & Recruitment Agencies","REDACTED DATA","PROTOCOL EDUCATION LTD","2926583","http://opencorporates.com/companies/gb/2926583","764390315"
"London Borough of Redbridge","http://opendatacommunities.org/doc/london-borough-council/redbridge","3BNONSCHFUND","Non-School Funding","3CNONSCH","Non Schools","REV","Revenue","R3953","2 Year Old Funding","05-THIRD","Third Party Payments","05H","Private contractors","6908","Private Nurseries & Childminders","60171751","201212",21/03/2012 00:00:00,540,"59760","Playgroups, Nurseries and Creches","REDACTED DATA","ST PAULS BUSY BEES PLAYGROUP","",,""
"London Borough of Redbridge","http://opendatacommunities.org/doc/london-borough-council/redbridge","3BNONSCHFUND","Non-School Funding","3CNONSCH","Non Schools","REV","Revenue","R3953","2 Year Old Funding","05-THIRD","Third Party Payments","05H","Private contractors","6908","Private Nurseries & Childminders","60170991","201212",06/03/2012 00:00:00,540,"59760","Playgroups, Nurseries and Creches","REDACTED DATA","AL-FARAH THE SUNFLOWER NURSERY","",,""
"London Borough of Redbridge","http://opendatacommunities.org/doc/london-borough-council/redbridge","3BNONSCHFUND","Non-School Funding","3CNONSCH","Non Schools","REV","Revenue","R3953","2 Year Old Funding","05-THIRD","Third Party Payments","05H","Private contractors","6908","Private Nurseries & Childminders","60170992","201212",06/03/2012 00:00:00,540,"59760","Playgroups, Nurseries and Creches","REDACTED DATA","AL-FARAH THE SUNFLOWER NURSERY","",,""
"London Borough of Redbridge","http://opendatacommunities.org/doc/london-borough-council/redbridge","3BNONSCHFUND","Non-School Funding","3CNONSCH","Non Schools","REV","Revenue","R3953","2 Year Old Funding","05-THIRD","Third Party Payments","05H","Private contractors","6908","Private Nurseries & Childminders","60171943","201212",20/03/2012 00:00:00,540,"17600","Childminders","REDACTED DATA","TAMARA PEGGS","8311177747","http://opencorporates.com/companies/gb/8311177747",""
"London Borough of Redbridge","http://opendatacommunities.org/doc/london-borough-council/redbridge","3BNONSCHFUND","Non-School Funding","3CNONSCH","Non Schools","REV","Revenue","R3953","2 Year Old Funding","05-THIRD","Third Party Payments","05H","Private contractors","6908","Private Nurseries & Childminders","60170250","201212",20/01/2012 00:00:00,540,"59760","Playgroups, Nurseries and Creches","REDACTED DATA","TAMBA DAY NURSERY LIMITED","",,""
"London Borough of Redbridge","http://opendatacommunities.org/doc/london-borough-council/redbridge","3BNONSCHFUND","Non-School Funding","3CNONSCH","Non Schools","REV","Revenue","R3953","2 Year Old Funding","05-THIRD","Third Party Payments","05H","Private contractors","6908","Private Nurseries & Childminders","60170251","201212",20/01/2012 00:00:00,540,"59760","Playgroups, Nurseries and Creches","REDACTED DATA","TAMBA DAY NURSERY LIMITED","",,""
"London Borough of Redbridge","http://opendatacommunities.org/doc/london-borough-council/redbridge","3BNONSCHFUND","Non-School Funding","3CNONSCH","Non Schools","REV","Revenue","R3953","2 Year Old Funding","05-THIRD","Third Party Payments","05H","Private contractors","6908","Private Nurseries & Childminders","60170252","201212",20/01/2012 00:00:00,540,"59760","Playgroups, Nurseries and Creches","REDACTED DATA","TAMBA DAY NURSERY LIMITED","",,""
"London Borough of Redbridge","http://opendatacommunities.org/doc/london-borough-council/redbridge","3BNONSCHFUND","Non-School Funding","3CNONSCH","Non Schools","REV","Revenue","R3953","2 Year Old Funding","05-THIRD","Third Party Payments","05H","Private contractors","6908","Private Nurseries & Childminders","60170993","201212",06/03/2012 00:00:00,540,"59760","Playgroups, Nurseries and Creches","REDACTED DATA","AL-FARAH THE SUNFLOWER NURSERY","",,""
"London Borough of Redbridge","http://opendatacommunities.org/doc/london-borough-council/redbridge","3BNONSCHFUND","Non-School Funding","3CNONSCH","Non Schools","REV","Revenue","R3953","2 Year Old Funding","05-THIRD","Third Party Payments","05H","Private contractors","6908","Private Nurseries & Childminders","60170994","201212",06/03/2012 00:00:00,540,"59760","Playgroups, Nurseries and Creches","REDACTED DATA","AL-FARAH THE SUNFLOWER NURSERY","",,""
"London Borough of Redbridge","http://opendatacommunities.org/doc/london-borough-council/redbridge","3BNONSCHFUND","Non-School Funding","3CNONSCH","Non Schools","REV","Revenue","R3953","2 Year Old Funding","05-THIRD","Third Party Payments","05H","Private contractors","6908","Private Nurseries & Childminders","60170981","201212",04/03/2012 00:00:00,540,"59760","Playgroups, Nurseries and Creches","REDACTED DATA","LITTLE RASCALS (ILFORD) LTD","5813376","http://opencorporates.com/companies/gb/5813376",""
"London Borough of Redbridge","http://opendatacommunities.org/doc/london-borough-council/redbridge","6BSOCIALSERV","Social Services","6CCHILLOOKED","Children Looked After","REV","Revenue","R2113","SEN and CD - Section 5 and 6 Care Packages","05-THIRD","Third Party Payments","05A","Independent units within the council","6502","Agency Homecare (Payments To Independent Units)","3224275","201212",03/03/2012 00:00:00,540,"31230","Employment & Recruitment Agencies","REDACTED DATA","SHARED CARE SERVICES LTD","4704680","http://opencorporates.com/companies/gb/4704680",""
"London Borough of Redbridge","http://opendatacommunities.org/doc/london-borough-council/redbridge","6BSOCIALSERV","Social Services","6CCHILLOOKED","Children Looked After","REV","Revenue","R2113","SEN and CD - Section 5 and 6 Care Packages","05-THIRD","Third Party Payments","05A","Independent units within the council","6502","Agency Homecare (Payments To Independent Units)","3224276","201212",03/03/2012 00:00:00,540,"31230","Employment & Recruitment Agencies","REDACTED DATA","SHARED CARE SERVICES LTD","4704680","http://opencorporates.com/companies/gb/4704680",""
"London Borough of Redbridge","http://opendatacommunities.org/doc/london-borough-council/redbridge","6BSOCIALSERV","Social Services","6CCHILLOOKED","Children Looked After","REV","Revenue","R2117","SEN and CD Care and Support Packages Social Care","05-THIRD","Third Party Payments","05H","Private contractors","6902","Respite Care","70038261","201212",04/12/2011 00:00:00,540,"17580","Childcare Services","REDACTED DATA","CHILDVILLE AFTER SCHOOL SERVICES  LTD","6074219","http://opencorporates.com/companies/gb/6074219",""
"London Borough of Redbridge","http://opendatacommunities.org/doc/london-borough-council/redbridge","6BSOCIALSERV","Social Services","6CCHILLOOKED","Children Looked After","REV","Revenue","R2117","SEN and CD Care and Support Packages Social Care","06-TRANSFER","Transfer Payments","06B","Social Services Clients","7050","Agency Homecare","3223328","201212",03/03/2012 00:00:00,540,"31230","Employment & Recruitment Agencies","REDACTED DATA","SHARED CARE SERVICES LTD","4704680","http://opencorporates.com/companies/gb/4704680",""
"London Borough of Redbridge","http://opendatacommunities.org/doc/london-borough-council/redbridge","6BSOCIALSERV","Social Services","6CCHILLOOKED","Children Looked After","REV","Revenue","R2132","CLAFH - Asylum Seekers Non Grant Funded","06-TRANSFER","Transfer Payments","06B","Social Services Clients","7061","Support Package","60171794","201212",06/02/2012 00:00:00,540,"47846","Letting Agents","REDACTED DATA","CROWN ACCOMMADATION","2854495012","http://opencorporates.com/companies/gb/2854495012",""
"London Borough of Redbridge","http://opendatacommunities.org/doc/london-borough-council/redbridge","6BSOCIALSERV","Social Services","6CCHILLOOKED","Children Looked After","REV","Revenue","R2132","CLAFH - Asylum Seekers Non Grant Funded","06-TRANSFER","Transfer Payments","06B","Social Services Clients","7061","Support Package","60171795","201212",04/03/2012 00:00:00,540,"47846","Letting Agents","REDACTED DATA","CROWN ACCOMMADATION","2854495012","http://opencorporates.com/companies/gb/2854495012",""
"London Borough of Redbridge","http://opendatacommunities.org/doc/london-borough-council/redbridge","6BSOCIALSERV","Social Services","6CCHILLOOKED","Children Looked After","REV","Revenue","R2177","CP and EI- Public Law Outline","04-SUPPLIES","Supplies And Services","04H","Grants and subscriptions","5954","Professional Fees","60172145","201212",16/03/2012 00:00:00,450,"6700","Barristers","REDACTED DATA","WING YAN CHAN","2962161487","http://opencorporates.com/companies/gb/2962161487","911989592"
"London Borough of Redbridge","http://opendatacommunities.org/doc/london-borough-council/redbridge","6BADULTSOCIA","Adult Social Care","6COLDINCMENT","Older People (65 or over) incl. Older Mentally Ill","REV","Revenue","R4378","OP Residential","05-THIRD","Third Party Payments","05H","Private contractors","6902","Respite Care","90305777","201212",28/02/2012 00:00:00,540.08,"64710","Residential Care Homes","REDACTED DATA","VEECARE LTD T/AS LOUGHTON HALL","5751389","http://opencorporates.com/companies/gb/5751389",""
"London Borough of Redbridge","http://opendatacommunities.org/doc/london-borough-council/redbridge","9BNONBVO","Outside the BVACOP Objective Structure","9CNONBVO","Outside the BVACOP Objective Structure","REV","Revenue","R5131","Repairs and Maintenance - MFS","02-PREMISES","Premises","02A","Repairs, alteration and maintenance of buildings","3037","Service Contracts","70040001","201301",30/03/2012 00:00:00,450.34,"30350","Electrical Testing & Inspecting","REDACTED DATA","RGE SERVICES LTD","3305853","http://opencorporates.com/companies/gb/3305853","919118812"
"London Borough of Redbridge","http://opendatacommunities.org/doc/london-borough-council/redbridge","9BNONBVO","Outside the BVACOP Objective Structure","9CNONBVO","Outside the BVACOP Objective Structure","REV","Revenue","R5131","Repairs and Maintenance - MFS","02-PREMISES","Premises","02A","Repairs, alteration and maintenance of buildings","3037","Service Contracts","70040000","201301",30/03/2012 00:00:00,450.34,"30350","Electrical Testing & Inspecting","REDACTED DATA","RGE SERVICES LTD","3305853","http://opencorporates.com/companies/gb/3305853","919118812"
"London Borough of Redbridge","http://opendatacommunities.org/doc/london-borough-council/redbridge","3BOPTIONHLDG","Optional Holding Accounts","3CYOUTH","Youth Service","REV","Revenue","R3408","Wanstead YC Delegated","04-SUPPLIES","Supplies And Services","04A","Equipment, furniture and materials","5502","Equipment Purchase","60174744","201301",29/03/2012 00:00:00,540.66,"83682","Water Companies","REDACTED DATA","THAMES WATER UTILITIES LTD","2366661","http://opencorporates.com/companies/gb/2366661",""
"London Borough of Redbridge","http://opendatacommunities.org/doc/london-borough-council/redbridge","6BADULTSOCIA","Adult Social Care","6COLDINCMENT","Older People (65 or over) incl. Older Mentally Ill","REV","Revenue","R4391","OP Home Care","05-THIRD","Third Party Payments","05A","Independent units within the council","6502","Agency Homecare (Payments To Independent Units)","90318841","201301",16/04/2012 00:00:00,540.82,"53350","Nursing Homes","REDACTED DATA","ELEANOR NURSING & SOCIALCARE LTD","4393038","http://opencorporates.com/companies/gb/4393038",""
"London Borough of Redbridge","http://opendatacommunities.org/doc/london-borough-council/redbridge","9BNONBVO","Outside the BVACOP Objective Structure","9CNONBVO","Outside the BVACOP Objective Structure","REV","Revenue","R7702","Vehicle Workshop","04-SUPPLIES","Supplies And Services","04A","Equipment, furniture and materials","5510","Materials","631896","201301",24/04/2012 00:00:00,450.9,"20370","Commercial Vehicle Dealers","REDACTED DATA","DUTTON FORSHAW MOTOR CO LTD -  DOVERCOURT CHELMSFORD","680734","http://opencorporates.com/companies/gb/680734","805155746"
"London Borough of Redbridge","http://opendatacommunities.org/doc/london-borough-council/redbridge","6BADULTSOCIA","Adult Social Care","6COLDINCMENT","Older People (65 or over) incl. Older Mentally Ill","REV","Revenue","R4391","OP Home Care","05-THIRD","Third Party Payments","05A","Independent units within the council","6502","Agency Homecare (Payments To Independent Units)","90318374","201301",12/04/2012 00:00:00,541.16,"53280","Nursing Agencies","REDACTED DATA","IMMACULATE HEALTHCARE SERVICES LIMITED","",,""
"London Borough of Redbridge","http://opendatacommunities.org/doc/london-borough-council/redbridge","6BADULTSOCIA","Adult Social Care","6COLDINCMENT","Older People (65 or over) incl. Older Mentally Ill","REV","Revenue","R4391","OP Home Care","05-THIRD","Third Party Payments","05A","Independent units within the council","6502","Agency Homecare (Payments To Independent Units)","90318415","201301",20/04/2012 00:00:00,541.16,"53280","Nursing Agencies","REDACTED DATA","IMMACULATE HEALTHCARE SERVICES LIMITED","",,""
"London Borough of Redbridge","http://opendatacommunities.org/doc/london-borough-council/redbridge","6BADULTSOCIA","Adult Social Care","6COTHADSERV","Other Adult Services","REV","Revenue","R4390","PCT HIV Home Care","05-THIRD","Third Party Payments","05A","Independent units within the council","6502","Agency Homecare (Payments To Independent Units)","90318367","201301",12/04/2012 00:00:00,541.16,"53280","Nursing Agencies","REDACTED DATA","IMMACULATE HEALTHCARE SERVICES LIMITED","",,""
"London Borough of Redbridge","http://opendatacommunities.org/doc/london-borough-council/redbridge","6BADULTSOCIA","Adult Social Care","6CADPHYSDIS","Adults Under 65 with Phys Disab or Sensory Impair","REV","Revenue","R4214","PD Direct Payments","06-TRANSFER","Transfer Payments","06B","Social Services Clients","7053","Direct Payments","3226061","201301",10/04/2012 00:00:00,-197.75,"56800","Payroll Services","REDACTED DATA","HUMAN MANAGEMENT ASSISTANCE-CLIENT ACCOUNT","4752026","http://opencorporates.com/companies/gb/4752026","815230071"
"London Borough of Redbridge","http://opendatacommunities.org/doc/london-borough-council/redbridge","6BADULTSOCIA","Adult Social Care","6CADPHYSDIS","Adults Under 65 with Phys Disab or Sensory Impair","REV","Revenue","R4214","PD Direct Payments","06-TRANSFER","Transfer Payments","06B","Social Services Clients","7053","Direct Payments","3226061","201301",10/04/2012 00:00:00,1015,"56800","Payroll Services","REDACTED DATA","HUMAN MANAGEMENT ASSISTANCE-CLIENT ACCOUNT","4752026","http://opencorporates.com/companies/gb/4752026","815230071"
"London Borough of Redbridge","http://opendatacommunities.org/doc/london-borough-council/redbridge","6BADULTSOCIA","Adult Social Care","6CADPHYSDIS","Adults Under 65 with Phys Disab or Sensory Impair","REV","Revenue","R4214","PD Direct Payments","09-INCOME","Income","09C","Customer & Client Receipts","8545","Direct Payments Income","3226061","201301",10/04/2012 00:00:00,-338.7,"56800","Payroll Services","REDACTED DATA","HUMAN MANAGEMENT ASSISTANCE-CLIENT ACCOUNT","4752026","http://opencorporates.com/companies/gb/4752026","815230071"
"London Borough of Redbridge","http://opendatacommunities.org/doc/london-borough-council/redbridge","6BADULTSOCIA","Adult Social Care","6CADPHYSDIS","Adults Under 65 with Phys Disab or Sensory Impair","REV","Revenue","R4214","PD Direct Payments","09-INCOME","Income","09C","Customer & Client Receipts","8545","Direct Payments Income","3226061","201301",10/04/2012 00:00:00,63.57,"56800","Payroll Services","REDACTED DATA","HUMAN MANAGEMENT ASSISTANCE-CLIENT ACCOUNT","4752026","http://opencorporates.com/companies/gb/4752026","815230071"
"London Borough of Redbridge","http://opendatacommunities.org/doc/london-borough-council/redbridge","6BADULTSOCIA","Adult Social Care","6CADPHYSDIS","Adults Under 65 with Phys Disab or Sensory Impair","REV","Revenue","R4393","PD Home Care","05-THIRD","Third Party Payments","05A","Independent units within the council","6502","Agency Homecare (Payments To Independent Units)","90313314","201301",02/04/2012 00:00:00,542.22,"31230","Employment & Recruitment Agencies","REDACTED DATA","TAYLOR GORDON & CO LTD T/AS PLAN PERSONNEL & PLAN CARE","",,"190680845"
"London Borough of Redbridge","http://opendatacommunities.org/doc/london-borough-council/redbridge","6BADULTSOCIA","Adult Social Care","6CADPHYSDIS","Adults Under 65 with Phys Disab or Sensory Impair","REV","Revenue","R4393","PD Home Care","05-THIRD","Third Party Payments","05A","Independent units within the council","6502","Agency Homecare (Payments To Independent Units)","90317150","201301",18/04/2012 00:00:00,542.22,"31230","Employment & Recruitment Agencies","REDACTED DATA","TAYLOR GORDON & CO LTD T/AS PLAN PERSONNEL & PLAN CARE","",,"190680845"
"London Borough of Redbridge","http://opendatacommunities.org/doc/london-borough-council/redbridge","6BADULTSOCIA","Adult Social Care","6CADPHYSDIS","Adults Under 65 with Phys Disab or Sensory Impair","REV","Revenue","R4393","PD Home Care","05-THIRD","Third Party Payments","05A","Independent units within the council","6502","Agency Homecare (Payments To Independent Units)","90317314","201301",19/04/2012 00:00:00,542.22,"31230","Employment & Recruitment Agencies","REDACTED DATA","TAYLOR GORDON & CO LTD T/AS PLAN PERSONNEL & PLAN CARE","",,"190680845"
"London Borough of Redbridge","http://opendatacommunities.org/doc/london-borough-council/redbridge","6BADULTSOCIA","Adult Social Care","6CADPHYSDIS","Adults Under 65 with Phys Disab or Sensory Impair","REV","Revenue","R4393","PD Home Care","05-THIRD","Third Party Payments","05A","Independent units within the council","6502","Agency Homecare (Payments To Independent Units)","90306914","201212",06/03/2012 00:00:00,542.22,"31230","Employment & Recruitment Agencies","REDACTED DATA","TAYLOR GORDON & CO LTD T/AS PLAN PERSONNEL & PLAN CARE","",,"190680845"
"London Borough of Redbridge","http://opendatacommunities.org/doc/london-borough-council/redbridge","6BADULTSOCIA","Adult Social Care","6CADPHYSDIS","Adults Under 65 with Phys Disab or Sensory Impair","REV","Revenue","R4393","PD Home Care","05-THIRD","Third Party Payments","05A","Independent units within the council","6502","Agency Homecare (Payments To Independent Units)","90307083","201212",13/03/2012 00:00:00,542.22,"31230","Employment & Recruitment Agencies","REDACTED DATA","TAYLOR GORDON & CO LTD T/AS PLAN PERSONNEL & PLAN CARE","",,"190680845"
"London Borough of Redbridge","http://opendatacommunities.org/doc/london-borough-council/redbridge","6BSOCIALSERV","Social Services","6CCHILLOOKED","Children Looked After","REV","Revenue","R2113","SEN and CD - Section 5 and 6 Care Packages","05-THIRD","Third Party Payments","05A","Independent units within the council","6502","Agency Homecare (Payments To Independent Units)","3221763","201212",26/02/2012 00:00:00,542.52,"17020","Charities and Voluntary Organisations","REDACTED DATA","REDBRIDGE CROSSROADS CAS","2647932","http://opencorporates.com/companies/gb/2647932",""
"London Borough of Redbridge","http://opendatacommunities.org/doc/london-borough-council/redbridge","6BADULTSOCIA","Adult Social Care","6CADLEARNDIS","Adults Under 65 with Learning Disabilities","REV","Revenue","R4293","Woodbine Club House","02-PREMISES","Premises","02B","Energy costs","4002","Gas","60174328","201301",12/04/2012 00:00:00,452.25,"39564","Gas Companies","REDACTED DATA","KENT COUNTY COUNCIL (GAS & ELECTRIC)","",,"204269191"
"London Borough of Redbridge","http://opendatacommunities.org/doc/london-borough-council/redbridge","1BOTHEROPI&E","Other Operating Income & Expenditure","1CTRADSURDEF","Trading Account Surpluses & Deficits","REV","Revenue","R9831","Design Team","04-SUPPLIES","Supplies And Services","04H","Grants and subscriptions","5955","Fees","60173249","201301",28/03/2012 00:00:00,453,"61540","Printers","REDACTED DATA","REDLIN PRINT LTD","1389113","http://opencorporates.com/companies/gb/1389113",""
"London Borough of Redbridge","http://opendatacommunities.org/doc/london-borough-council/redbridge","6BADULTSOCIA","Adult Social Care","6CADLEARNDIS","Adults Under 65 with Learning Disabilities","REV","Revenue","R4218","LD Individual Budgets","06-TRANSFER","Transfer Payments","06B","Social Services Clients","7053","Direct Payments","3225824","201301",10/04/2012 00:00:00,544,"43419","Home Care Services","REDACTED DATA","NATALIE NASTRUCCI","",,""
"London Borough of Redbridge","http://opendatacommunities.org/doc/london-borough-council/redbridge","6BADULTSOCIA","Adult Social Care","6CADPHYSDIS","Adults Under 65 with Phys Disab or Sensory Impair","REV","Revenue","R4393","PD Home Care","05-THIRD","Third Party Payments","05A","Independent units within the council","6502","Agency Homecare (Payments To Independent Units)","90311774","201212",22/03/2012 00:00:00,544,"43419","Home Care Services","REDACTED DATA","CAREWATCH CARE SERVICES LTD","2949558","http://opencorporates.com/companies/gb/2949558","927457005"
"London Borough of Redbridge","http://opendatacommunities.org/doc/london-borough-council/redbridge","6BADULTSOCIA","Adult Social Care","6CADLEARNDIS","Adults Under 65 with Learning Disabilities","REV","Revenue","R4383","LD - External Day Care","05-THIRD","Third Party Payments","05H","Private contractors","6904","Day Centres","90319952","201301",28/03/2012 00:00:00,-19.45,"17020","Charities and Voluntary Organisations","REDACTED DATA","MENCAP","550457","http://opencorporates.com/companies/gb/550457","233010136"
"London Borough of Redbridge","http://opendatacommunities.org/doc/london-borough-council/redbridge","6BADULTSOCIA","Adult Social Care","6CADLEARNDIS","Adults Under 65 with Learning Disabilities","REV","Revenue","R4383","LD - External Day Care","05-THIRD","Third Party Payments","05H","Private contractors","6904","Day Centres","90319952","201301",28/03/2012 00:00:00,155.63,"17020","Charities and Voluntary Organisations","REDACTED DATA","MENCAP","550457","http://opencorporates.com/companies/gb/550457","233010136"
"London Borough of Redbridge","http://opendatacommunities.org/doc/london-borough-council/redbridge","6BADULTSOCIA","Adult Social Care","6CADLEARNDIS","Adults Under 65 with Learning Disabilities","REV","Revenue","R4383","LD - External Day Care","05-THIRD","Third Party Payments","05H","Private contractors","6904","Day Centres","90319952","201301",28/03/2012 00:00:00,408.54,"17020","Charities and Voluntary Organisations","REDACTED DATA","MENCAP","550457","http://opencorporates.com/companies/gb/550457","233010136"
"London Borough of Redbridge","http://opendatacommunities.org/doc/london-borough-council/redbridge","6BADULTSOCIA","Adult Social Care","6COLDINCMENT","Older People (65 or over) incl. Older Mentally Ill","REV","Revenue","R4211","Older People Direct Payments","06-TRANSFER","Transfer Payments","06B","Social Services Clients","7053","Direct Payments","3225947","201301",10/04/2012 00:00:00,-149.73,"56800","Payroll Services","REDACTED DATA","HUMAN MANAGEMENT ASSISTANCE-CLIENT ACCOUNT","4752026","http://opencorporates.com/companies/gb/4752026","815230071"
"London Borough of Redbridge","http://opendatacommunities.org/doc/london-borough-council/redbridge","6BADULTSOCIA","Adult Social Care","6COLDINCMENT","Older People (65 or over) incl. Older Mentally Ill","REV","Revenue","R4211","Older People Direct Payments","06-TRANSFER","Transfer Payments","06B","Social Services Clients","7053","Direct Payments","3225947","201301",10/04/2012 00:00:00,768.55,"56800","Payroll Services","REDACTED DATA","HUMAN MANAGEMENT ASSISTANCE-CLIENT ACCOUNT","4752026","http://opencorporates.com/companies/gb/4752026","815230071"
"London Borough of Redbridge","http://opendatacommunities.org/doc/london-borough-council/redbridge","6BADULTSOCIA","Adult Social Care","6COLDINCMENT","Older People (65 or over) incl. Older Mentally Ill","REV","Revenue","R4211","Older People Direct Payments","09-INCOME","Income","09C","Customer & Client Receipts","8545","Direct Payments Income","3225947","201301",10/04/2012 00:00:00,15.41,"56800","Payroll Services","REDACTED DATA","HUMAN MANAGEMENT ASSISTANCE-CLIENT ACCOUNT","4752026","http://opencorporates.com/companies/gb/4752026","815230071"
"London Borough of Redbridge","http://opendatacommunities.org/doc/london-borough-council/redbridge","6BADULTSOCIA","Adult Social Care","6COLDINCMENT","Older People (65 or over) incl. Older Mentally Ill","REV","Revenue","R4211","Older People Direct Payments","09-INCOME","Income","09C","Customer & Client Receipts","8545","Direct Payments Income","3225947","201301",10/04/2012 00:00:00,-89.35,"56800","Payroll Services","REDACTED DATA","HUMAN MANAGEMENT ASSISTANCE-CLIENT ACCOUNT","4752026","http://opencorporates.com/companies/gb/4752026","815230071"
"London Borough of Redbridge","http://opendatacommunities.org/doc/london-borough-council/redbridge","6BADULTSOCIA","Adult Social Care","6CADLEARNDIS","Adults Under 65 with Learning Disabilities","REV","Revenue","R4394","LD - Homecare","05-THIRD","Third Party Payments","05A","Independent units within the council","6502","Agency Homecare (Payments To Independent Units)","90313097","201301",05/04/2012 00:00:00,545.24,"43419","Home Care Services","REDACTED DATA","ALLIED HEALTHCARE GROUP LTD","1689856","http://opencorporates.com/companies/gb/1689856","813058355"
"London Borough of Redbridge","http://opendatacommunities.org/doc/london-borough-council/redbridge","6BADULTSOCIA","Adult Social Care","6CADLEARNDIS","Adults Under 65 with Learning Disabilities","REV","Revenue","R4293","Woodbine Club House","01-EMPLOYEES","Employees","01A","Direct employee expenses","4","Agency Staff - Pay","60170089","201212",29/02/2012 00:00:00,455,"31230","Employment & Recruitment Agencies","REDACTED DATA","CRASTER RECRUITMENT LTD","7654534","http://opencorporates.com/companies/gb/7654534","119719983"
"London Borough of Redbridge","http://opendatacommunities.org/doc/london-borough-council/redbridge","6BADULTSOCIA","Adult Social Care","6CADLEARNDIS","Adults Under 65 with Learning Disabilities","REV","Revenue","R4293","Woodbine Club House","01-EMPLOYEES","Employees","01A","Direct employee expenses","4","Agency Staff - Pay","60171583","201212",20/03/2012 00:00:00,455,"31230","Employment & Recruitment Agencies","REDACTED DATA","CRASTER RECRUITMENT LTD","7654534","http://opencorporates.com/companies/gb/7654534","119719983"
"London Borough of Redbridge","http://opendatacommunities.org/doc/london-borough-council/redbridge","6BADULTSOCIA","Adult Social Care","6CADLEARNDIS","Adults Under 65 with Learning Disabilities","REV","Revenue","R4215","LD Direct Payments","06-TRANSFER","Transfer Payments","06B","Social Services Clients","7053","Direct Payments","3225815","201301",10/04/2012 00:00:00,-158.2,"90005","Home Care Services DP","REDACTED DATA","REDACTED DATA","",,""
"London Borough of Redbridge","http://opendatacommunities.org/doc/london-borough-council/redbridge","6BADULTSOCIA","Adult Social Care","6CADLEARNDIS","Adults Under 65 with Learning Disabilities","REV","Revenue","R4215","LD Direct Payments","06-TRANSFER","Transfer Payments","06B","Social Services Clients","7053","Direct Payments","3225815","201301",10/04/2012 00:00:00,812,"90005","Home Care Services DP","REDACTED DATA","REDACTED DATA","",,""
"London Borough of Redbridge","http://opendatacommunities.org/doc/london-borough-council/redbridge","6BADULTSOCIA","Adult Social Care","6CADLEARNDIS","Adults Under 65 with Learning Disabilities","REV","Revenue","R4215","LD Direct Payments","09-INCOME","Income","09C","Customer & Client Receipts","8545","Direct Payments Income","3225815","201301",10/04/2012 00:00:00,25.21,"90005","Home Care Services DP","REDACTED DATA","REDACTED DATA","",,""
"London Borough of Redbridge","http://opendatacommunities.org/doc/london-borough-council/redbridge","6BADULTSOCIA","Adult Social Care","6CADLEARNDIS","Adults Under 65 with Learning Disabilities","REV","Revenue","R4215","LD Direct Payments","09-INCOME","Income","09C","Customer & Client Receipts","8545","Direct Payments Income","3225815","201301",10/04/2012 00:00:00,-132.55,"90005","Home Care Services DP","REDACTED DATA","REDACTED DATA","",,""
"London Borough of Redbridge","http://opendatacommunities.org/doc/london-borough-council/redbridge","6BADULTSOCIA","Adult Social Care","6COTHADSERV","Other Adult Services","REV","Revenue","R4389","PCT Older Person Home Care","05-THIRD","Third Party Payments","05A","Independent units within the council","6502","Agency Homecare (Payments To Independent Units)","90311487","201212",20/03/2012 00:00:00,547.01,"53350","Nursing Homes","REDACTED DATA","ELEANOR NURSING & SOCIALCARE LTD","4393038","http://opencorporates.com/companies/gb/4393038",""
"London Borough of Redbridge","http://opendatacommunities.org/doc/london-borough-council/redbridge","4BMANGT&SUPP","Management & Support Services","4CHIGHRDROUT","Highways/Roads (Routine)","REV","Revenue","R7070","Reactive Maintenance","05-THIRD","Third Party Payments","05H","Private contractors","6915","Contractor Payments","3223709","201212",14/03/2012 00:00:00,455.86,"18632","Civil Engineers","REDACTED DATA","KENSON CONTRACTORS BENINGTON LTD","1314691","http://opencorporates.com/companies/gb/1314691","301629589"
"London Borough of Redbridge","http://opendatacommunities.org/doc/london-borough-council/redbridge","6BADULTSOCIA","Adult Social Care","6CADPHYSDIS","Adults Under 65 with Phys Disab or Sensory Impair","REV","Revenue","R4214","PD Direct Payments","06-TRANSFER","Transfer Payments","06B","Social Services Clients","7053","Direct Payments","3225918","201301",10/04/2012 00:00:00,522,"56800","Payroll Services","REDACTED DATA","HUMAN MANAGEMENT ASSISTANCE-CLIENT ACCOUNT","4752026","http://opencorporates.com/companies/gb/4752026","815230071"
"London Borough of Redbridge","http://opendatacommunities.org/doc/london-borough-council/redbridge","6BADULTSOCIA","Adult Social Care","6CADPHYSDIS","Adults Under 65 with Phys Disab or Sensory Impair","REV","Revenue","R4214","PD Direct Payments","06-TRANSFER","Transfer Payments","06B","Social Services Clients","7053","Direct Payments","3225918","201301",10/04/2012 00:00:00,305.1,"56800","Payroll Services","REDACTED DATA","HUMAN MANAGEMENT ASSISTANCE-CLIENT ACCOUNT","4752026","http://opencorporates.com/companies/gb/4752026","815230071"
"London Borough of Redbridge","http://opendatacommunities.org/doc/london-borough-council/redbridge","6BADULTSOCIA","Adult Social Care","6CADPHYSDIS","Adults Under 65 with Phys Disab or Sensory Impair","REV","Revenue","R4214","PD Direct Payments","09-INCOME","Income","09C","Customer & Client Receipts","8545","Direct Payments Income","3225918","201301",10/04/2012 00:00:00,-99.81,"56800","Payroll Services","REDACTED DATA","HUMAN MANAGEMENT ASSISTANCE-CLIENT ACCOUNT","4752026","http://opencorporates.com/companies/gb/4752026","815230071"
"London Borough of Redbridge","http://opendatacommunities.org/doc/london-borough-council/redbridge","6BADULTSOCIA","Adult Social Care","6CADPHYSDIS","Adults Under 65 with Phys Disab or Sensory Impair","REV","Revenue","R4214","PD Direct Payments","09-INCOME","Income","09C","Customer & Client Receipts","8545","Direct Payments Income","3225918","201301",10/04/2012 00:00:00,-178.8,"56800","Payroll Services","REDACTED DATA","HUMAN MANAGEMENT ASSISTANCE-CLIENT ACCOUNT","4752026","http://opencorporates.com/companies/gb/4752026","815230071"
"London Borough of Redbridge","http://opendatacommunities.org/doc/london-borough-council/redbridge","6BADULTSOCIA","Adult Social Care","6CADLEARNDIS","Adults Under 65 with Learning Disabilities","REV","Revenue","R4296","Mulberry Lodge","01-EMPLOYEES","Employees","01A","Direct employee expenses","409","Agency Staff Pay","60172873","201301",28/03/2012 00:00:00,457.12,"31230","Employment & Recruitment Agencies","REDACTED DATA","CRASTER RECRUITMENT LTD","7654534","http://opencorporates.com/companies/gb/7654534","119719983"
